Workbook

Sheet Instructions
A1: On-site Stormwater Management - List Approach Calculator
A2: Instructions
A3: Version 07-28-2017
A5: To use the On-Site List Calculator you must select "Enable Content" when the Security Warning appears.
A6: Note this calculator is designed to work with Microsoft Excel 2010 or newer
A7: Introduction
A8: This spreadsheet tool helps users implement the On-site List Approach for projects in the City of Seattle.
B9: Instructions for evaluating, selecting and sizing on-site best management practices (BMPs) are provided below.
A11: Refer to Volume 1, Volume 3 (Section 3.3 and Chapter 5), and Appendix C of the Seattle Stormwater Manual (Seattle 2015) for On-site
B12: Stormwater Management requirements, BMP design requirements and infeasibility criteria.
A14: The "Project Summary" and "BMP Sizing/Modeling" tabs can be used to provide documentation for compliance with the
B15: On-site List requirement.
A17: How to Use the On-site List Calculator
B18: Project Summary Tab:
B19: A. Fill in the light green cells in the "Project Summary" tab.
C21: Step 1: Determine if Dispersion and Infiltration are Feasible
D22: Refer to Section 3.1 and Section 3.2 in Volume 3 of the Seattle Stormwater Manual (Seattle 2015).
C24: Step 2: Calculate Areas by Surface Type
D25: Divide the project area into hard surface areas with distinct drainage pathways and conduct a BMP evaluation
D26: for each surface "sub area". Refer to Figure 1 below for an example. Enter roof and non-roof areas and number
D27: of areas into "Project Summary" tab and hit Enter. Excel tabs will be generated for each individual surface.
D28: Note: Do not create a surface tab for Permeable Pavement Facilities (PPF). PPFs are the only hard surface that
D29: will not have a surface tab. Enter the PPF area on the BMP Sizing tab.
C31: Step 3: Refer to Applicable On-site List(s)
D32: On-site Lists are provided in Volume 1, Section 5.1 for all project type(s). The applicable on-site BMPs are provided
D33: in this calculator in the "Surface" tabs based on information entered in the "Project Summary" tab.
B50: Figure 1. Example Delineation of Hard Surface Areas with Distinct Drainage Pathways for a Parcel or Single Family Project.
B68: Figure 2. Example Delineation of Hard Surface Areas for for Trail and Sidewalk Projects.
B70: Surface Tab(s):
C71: Step 4: Evaluate BMPs by Category
D72: On each "Surface" tab, select "Infeasible", "Not evaluated", or "Use BMP" for each category. Note BMPs in each
D73: category may be evaluated in any order. (See detailed information in Steps 5 through 10).
C75: Step 5: Evaluate Feasibility of Category 1 BMPs
D76: Determine feasibility of the BMP(s) in Category 1. The BMP is considered infeasible if one of the following applies:
E77: -The BMP is considered infeasible per the criteria provided in the “Infeasibility Criteria” tab.
E78: -Competing needs (e.g., historic preservation laws, health and safety standards) as provided in
F79: SMC, Section 22.805.070 conflict with the BMP.
E80: -The size of the BMP in the "Surface" tab(s) (generated based on "Project Summary" tab inputs)
E81: cannot be met on the site.
C83: Step 6: Select Category 1 BMP(s)
D84: If any of the Category 1 BMPs are feasible for a surface, then a Category 1 BMP must be used to manage
D85: runoff from the surface. Identify the BMP selected for the surface area by selecting "Use BMP" from
D86: the drop down menu. After BMP(s) are selected, the calculator will size the BMP for the surface area
D87: based on the facility information (e.g., ponding depth) entered in the "BMP Sizing" tab.
D88: Note: Facility sizes provided in this tool are the minimum size required. Facilities can be made larger to
D89: meet additional requirements (i.e., flow control and/or water quality treatment standards).
C91: Step 7: Document Infeasibility of Category 1 BMPs (if applicable)
D92: If all the Category 1 BMPs are deemed infeasible, select "Infeasible" and the applicable "infeasibility criteria"
D93: from the drop down menus and proceed to Step 8. In addition, the applicant shall provide a completed On-site
D94: List Requirement Infeasibility Criteria Checklist (refer to the tables provided in Appendix C of the Seattle
D95: Stormwater Manual) or a narrative description and rationale with substantial evidence sufficient to explain
D96: and justify the applicant's conclusion that On-site BMPs are infeasible.
C98: Step 8: Evaluate/Select Category 2 BMPs
D99: If all of the Category 1 BMPs are deemed infeasible, evaluate the On-site BMPs in Category 2 using the same approach
D100: described in Steps 5 through 7.
C102: Step 9: Evaluate/Select Category 3 BMPs
D103: If all of the Category 2 BMPs are deemed infeasible, evaluate the On-site BMPs in Category 3 using the same approach
D104: described in Steps 5 through 7.
C106: Step 10: Evaluate/Select Category 4 BMPs
D107: If all of the Category 3 BMPs are deemed infeasible, evaluate the On-site BMPs in Category 4 using the same approach
D108: described in Steps 5 through 7.
B110: BMP Sizing Tab:
B111: B. Once a "Surface" tab is completed for each surface, complete the information on the "BMP Sizing" tab
D113: For each surface, select the BMP that the surface drains to.
D114: If more than one surface drains to the same BMP, indicate with the same BMP number.
D115: The appropriate sizing will be provided for each BMP based on the area of the surfaces draining to it.
D116: For BMPs with multiple design parameters (i.e., ponding depth, side slopes),
D117: select the design parameters that will be applied to the project.
B119: Project Summary Tab:
B120: C. The "Project Summary" tab summarizes the selected BMPs and BMP sizes by surface.

Sheet Project Summary
A1: On-site Stormwater Management - List Approach Calculator
A2: Site and Drainage Control Summary
A3: =Version -> Version 07-28-2017
A4: To use the On-Site List Calculator you must select "Enable Content" when the Security Warning appears.
A5: Project Information | AR5: Hidden Column
B6: Site Address | V6: SDCI Project Number
B8: Primary Contact | V8: SDOT Project Number | AR8: Type | AS8: Old
B10: Project Type | V10: Primary Contact E-mail or Phone | AR10: =IFERROR(INDEX(Lookup!$L$2:$L$5,MATCH($H$10,Project,0)),"") ->  | AS10: Trail
AS11: Trail and Sidewalk
B12: Total Site Area | AA12: sf | AB12: ´ | AC12: =IF(AND(AR10="SFR",W14>10000),"For greater than 10,000 sf of new plus replaced hard surface the project is a Parcel Based Project.",IF(AND(W12<>"",OR(W14<>"",W16<>"",W18<>"",W20<>""),W12<>W14+W16+W18+W20),"Total site area must equal new/replace hard surface + existing hard surface + new/replace landscape + undisturbed area.","")) -> 
B14: Total New plus Replaced Hard Surface Area | AA14: sf | AB14: ´
B16: Existing Hard Surface Area to Remain | AA16: sf | AB16: ´
B18: Total New and/or Replaced Lawn and Landscaping | AA18: sf | AB18: ´
B20: Undisturbed and protected site area | AA20: sf | AB20: ´
B22: Was the project lot created or reduced in size after Jan 1, 2016?
B24: Project Engineer | W24: Engineer E-mail | AR24: Engineer Required | AS24: =OR(W14>5000,U50>5000,AC27="Yes",AJ66="Yes",AND(Q70="Yes",NOT(AA70="Simple infiltration test")),Q32="On Site Infiltration (For Small Projects Only)") -> FALSE
A26: =IF(AC27="Yes","Submit Continuous Runoff Model in a Drainage Report to demonstrate On-site Performance Standard (Vol. 1, Section 5.2.1) is met.",IF(AND(OR(AR10="Road",AR10="Trail"),W14>=2000),"On-site Stormwater Management is required for ≥ 2,000 sf of new plus replaced area.",IF(AND(OR(AR10="Parcel",AR10="SFR"),W22="Yes",W14>=750),"On-site Stormater Management is required for ≥ 750 sf of new plus replaced area.",IF(AND(OR(AR10="Parcel",AR10="SFR"),W22="No",W14>=1500),"On-site Stormwater Management required for ≥ 1,500 sf of new plus replaced area.",IF(AND(H10<>"",W14<>"",W22<>""),"On-site Stormwater Management is not required.",""))))) -> 
B27: On-site Performance Standard will be used (professional engineer required)?
A28: Site Information
B29: Note: If required for your project, reference the Preliminary Assessment Report (PAR) to complete this section. If the total
B30: areas proposed are different form those provided in the PAR, requirements may change.
B32: Approved Point of Stormwater Discharge
D34: Drainage Basin | AR34: Drainage Basin Category | AS34: =IFERROR(INDEX(Lookup!$K$2:$K$19,MATCH(CONCATENATE(Q34,AE36),Lookup!$J$2:$J$19,0)),1) -> 1
D36: Is the downstream drainage system considered Capacity Constrained by SPU?
B38: Approved Point of Wastewater Discharge
B40: Approved Point of Sub-Surface Discharge
B42: Flow Control is required | AU42: check boxes
D44: Flow Control Standard | AR44: Flow Control Required | AS44: =Q42="Yes" -> FALSE | AV44: oil control
B46: Water Treatment for pollution-generating surfaces is required | AR46: Water Quality | AS46: =X46="Yes" -> FALSE | AV46: phosphorus
D48: Select required treatment | M48: ´ | R48: Oil Control | X48: Phosphorus | AD48: Enhanced | AJ48: Basic | AV48: enhanced
D50: Total Pollution Generating Hard Surface Area | Y50: sf | AV50: basic
D52: Total Pollution Generating Pervious Surface Area | Y52: sf | AV52: steep slope
B54: Source Control is required | V54: ´ | AR54: Dispersion Infeasible | AS54: =AJ66="Yes" -> FALSE | AV54: potential slide
B56: Environmentally Critical Areas | V56: ´ | AR56: Infiltration Infeasible | AS56: =Q72="No" -> FALSE | AV56: riparian cooridor
D58: Steep Slope | K58: Potential Slide | R58: Riparian Corridor | Y58: Wetland | AE58: Liquefaction | AK58: Flood Prone | AR58: Infiltrating Area | AS58: =SUMIF(BD83:BD84,TRUE,W83:W84) -> 0 | AV58: wetland
D60: Landfill | K60: Known Landslide | R60: Fish / Wildlife | Y60: Peat / Groundwater Management | AK60: Shoreline Habitat | AV60: liquefaction
B62: Temporary dewatering required | V62: ´ | X62: Permanent dewatering required | AV62: flood prone
B64: Is there known soil and/or groundwater contamination on this site? | AV64: landfill
B66: A licensed professional recommends dispersion not be used anywhere within the project site due to reasonable concerns of erosion, slope failure, or flooding. | AV66: known landslide
AV67: fish wildlife
A69: Infiltration Information | AR69: Infiltration Exploration or Mapped | AV69: peat
B70: Is infiltration investigation required? | V70: =IF(Q70="","",IF(Q70="No","Why?","Type of test:")) ->  | AR70: =OR(Q70="Yes",AND(Q70="No",AA70="Site is mapped as ""infltr. investigation not required""")) -> FALSE | AV70: shoreline
D72: Is infiltration on the site feasible? | V72: =IF(Q72="No","Why?",IF(AND(Q70="No",AA70="Other"),"Explain:","")) ->  | AR72: Measured Infiltration Rate | AS72: =O74 -> 0
D74: Site Measured Infiltration Rate | Q74: x | R74: Infiltration Rate Correction Factor | AF74: = | AG74: =AD74*O74 -> 0 | AJ74: Site Design Inf Rate | AR74: Infiltration Rate (in/hr) | AS74: =IF(Q72="No",0,AG74) -> 0
A76: On-site Stormwater Management | W76: =IF(SUM(W83:Z84)>0,IF(ROUND(SUM(W83:Z84)+SUMIF($AT$82:$AT$84,"Permeable Pavement Facility",$BB$82:$BB$84),0)>ROUND(W14,0),"Note total area entered on surface tabs (plus permeable pavement facility area) exceeds the total new plus replaced hard surface area entered above.",IF(ROUND(SUM(W83:Z84)+SUMIF($AT$82:$AT$84,"Permeable Pavement Facility",$BB$82:$BB$84),0)<ROUND(W14,0),"Note total area entered on surface tabs (plus permeable pavement facility area) does not match total new plus replaced hard surface area entered above.","")),IF(SUM(Q77:T79)=0,"Enter number of surface areas and hit Enter","")) -> Enter number of surface areas and hit Enter | AR76: Areas | AS76: Sheets | AT76: Old
B77: Number of roof areas | Q77: 0 | AR77: =SUM(Q77,Q79) -> 0 | AS77: =MAX($AS$82:$AS$84) -> 0 | AT77: 0
B79: Number of other surface areas | Q79: 0 | AT79: 0
B81: Surface | E81: Surfaces Description | K81: On-site BMP | W81: Contrib. Area (sf) | AA81: Facility Size (sf) | AG81: Facility Configuration | AR81: Sheet Name | AS81: Count | AT81: BMP | AU81: BMP # from Sizing Tab | AV81: Count for BMP # | AW81: List more than 1 BMP | AX81: List Name | AY81: Roof / Non Roof | AZ81: Roof Managed | BA81: Surface Managed | BB81: Facility Size no units | BC81: Vol Managed per Year (gal) | BD81: Infiltrating BMP
AS82: -1 | AU82: 0 | BB82: =IF($AC$27="Yes",0,IF(AT82="None Feasible","-",IFERROR(IF(AU82<=MAX($AU81:AU$82),"^",INDEX('BMP Sizing'!$AQ$49:$AQ$209,MATCH(AU82,'BMP Sizing'!$AN$49:$AN$209,0))),"-"))) -> ^
B83: =AS83 -> 0 | E83: =IFERROR(IF(INDIRECT("'"&AR83&"'!N9")="","",IF(INDIRECT("'"&AR83&"'!N9")="Roof",INDIRECT("'"&AR83&"'!N9")&":"&INDIRECT("'"&AR83&"'!n11"),"Surface:"&INDIRECT("'"&AR83&"'!n11"))),"") ->  | K83: =IF(AT83="","",IF($AC$27="Yes",INDEX('BMP Modeling'!H:H,MATCH(B83,'BMP Modeling'!B:B,0)),IF(AND(AW83,AV83>1),INDEX('BMP Sizing'!$K$7:$K$45,MATCH(AU83,'BMP Sizing'!$AO$7:$AO$45,0)),AT83))) ->  | W83: =IFERROR(INDIRECT("'"&AR83&"'!N13"),"") ->  | AA83: =IF($AC$27="Yes",TEXT(INDEX('BMP Modeling'!$O$10:$O$29,MATCH(B83,'BMP Modeling'!$B$10:$B$29,0)),"#,###")& " " &INDEX('BMP Modeling'!$T$10:$T$29,MATCH(B83,'BMP Modeling'!$B$10:$B$29,0)),IF(AT83="None Feasible","-",IFERROR(IF(AU83<=MAX($AU$82:AU82),"^",TEXT(INDEX('BMP Sizing'!$AQ$49:$AQ$209,MATCH(AU83,'BMP Sizing'!$AN$49:$AN$209,0)),"#,##0")& " " & INDEX('BMP Sizing'!$AR$49:$AR$209,MATCH(AU83,'BMP Sizing'!$AN$49:$AN$209,0)) ),"-"))) -> - | AG83: =IFERROR(IF($AC$27="Yes","See Plan",IF(AU83<=MAX($AU$82:AU82),"^",INDEX('BMP Sizing'!$AT$49:$AT$209,MATCH(AU83,'BMP Sizing'!$AN$49:$AN$209,0)))),"-") -> - | AR83: =$AR$10&" - Surface "&B83 -> - Surface 0 | AS83: =AS82+1 -> 0 | AT83: =IFERROR(INDEX(INDIRECT("'"&AR83&"'!BS:BS"),MATCH(TRUE,INDIRECT("'"&AR83&"'!BX:BX"),0)),"") ->  | AU83: =IFERROR(INDEX('BMP Sizing'!$AO$7:$AO$46,MATCH(AS83,'BMP Sizing'!$B$7:$B$46,0)),"") ->  | AV83: =COUNTIF($AT$82:$AT$84,AT83) -> 3 | AW83: =INDEX(Lookup!$B$70:$B$87,MATCH(AT83,Lookup!$A$70:$A$87,0)) ->  | AX83: =TRIM(SUBSTITUTE(SUBSTITUTE(AT83," ",""),"-","")&IF(AW83,AV83,"")) ->  | AY83: =IFERROR(INDIRECT("'"&AR83&"'!N9"),"") ->  | AZ83: =IF(OR(AT83="Vegetated Roof System",AND(AT83="Permeable Pavement Facility",AY83="Roof")), BB83>=INT(INDEX('BMP Sizing'!$V$49:$V$209,MATCH(AU83,'BMP Sizing'!$AN$49:$AN$209,0))*INDEX('BMP Sizing'!$AP$49:$AP$209,MATCH(AU83,'BMP Sizing'!$AN$49:$AN$209,0))),AND(OR(AND(AU83>0,AU83<>""),$AC$27="yes"),AY83="Roof",BC83>0)) -> FALSE | BA83: =IF(AND(AT83="Permeable Pavement Facility",AY83="Non-Roof"), BB83>=INDEX('BMP Sizing'!$V$49:$V$209,MATCH(AU83,'BMP Sizing'!$AN$49:$AN$209,0))*INDEX('BMP Sizing'!$AP$49:$AP$209,MATCH(AU83,'BMP Sizing'!$AN$49:$AN$209,0)),AND(OR(AND(AU83>0,AU83<>""),$AC$27="Yes"),AY83="Non-Roof",BC83>0)) -> FALSE | BB83: =IF($AC$27="Yes",0,IF(AT83="None Feasible","-",IFERROR(IF(AU83<=MAX($AU$82:AU82),"^",INDEX('BMP Sizing'!$AQ$49:$AQ$209,MATCH(AU83,'BMP Sizing'!$AN$49:$AN$209,0))),"-"))) -> - | BC83: =IF($AC$27="Yes", IFERROR(INDEX('BMP Modeling'!$V$10:$V$50,MATCH(AS83,'BMP Modeling'!$B$10:$B$50,0))/158*7.48052,0), IF(AT83="None Feasible","-",IFERROR(IF(AU83<=MAX($AU$82:AU82),"^",INDEX('BMP Sizing'!$AS$49:$AS$209,MATCH(AU83,'BMP Sizing'!$AN$49:$AN$209,0))),"-"))) -> - | BD83: =INDEX(Lookup!$H$70:$H$87,MATCH(AT83,Lookup!$A$70:$A$86,0)) -> 
B85: Total New/Replaced Roof Area | P85: =SUMIF($AY$82:$AY$84,"Roof",$W$82:$Z$84) -> 0 | X85: Total Roof Area Managed | AI85: =SUMIF($AZ$82:$AZ$84,TRUE,$W$82:$Z$84) -> 0
B87: Total New/Replaced Other Surface Area | P87: =SUMIF($AY$82:$AY$84,"Non-Roof",$W$82:$Z$84)+SUMIF($AT$82:$AT$84,"Permeable Pavement Facility",$BB$82:$BB$84) -> 0 | V87: ´ | X87: Total Other Surface Managed | AI87: =SUMIF($BA$82:$BA$84,TRUE,$W$82:$Z$84)+SUMIFS($BB$82:$BB$84,AT82:AT84,"Permeable Pavement Facility") -> 0
B89: Total Area Managed | P89: =SUM($AI$85:$AN$87) -> 0 | X89: Total Volume Managed On Site | AI89: =IFERROR(TEXT(SUM($BC$83:$BC$84),"#,##0")&" gal","") -> 0 gal
B91: Estimated compost required for soil amendment | S91: =IF(W18="",0,W18*0.0062) -> 0 | V91: cy | X91: Volume of compost required for soil amendment will be verified by the DPD Site Inspector for SDCI permitted projects.

Sheet Parcel (hidden)
A1: On-site Stormwater Management - List Approach Calculator | BZ1: Column to Use | CB1: Evaluation Required
A2: Surface Identification and BMP Evaluation for Parcel-Based Projects | BS2: None Feasible | BX2: =AND(COUNTIFS(BT19:BT76,"Feasibility",BV19:BV76,TRUE)=COUNTIF(BT19:BT76,"Feasibility"),COUNTIF(BX19:BX76,TRUE)=0) -> FALSE | BZ2: =OFFSET(CA2,0,IF($N$9="Roof",0,3)+'Project Summary'!$AS$34) -> 4 | CB2: 1 | CC2: 2 | CD2: 3 | CE2: 4 | CF2: 5 | CG2: 6
B4: Project No. | N4: ='Project Summary'!$AG$6 -> 0 | CB4: Roof | CC4: Roof | CD4: Roof | CE4: Surface | CF4: Surface | CG4: Surface
B7: Hard Surface Number | BS7: BMP | BT7: Dropdown Lookup | BU7: Grey Out | BV7: Infeasible Selected | BW7: Infeasibility Criteria Selected | BX7: BMP Selected | BY7: Other BMP in Group Selected | BZ7: Evaluation Required | CA7: Dispersion/Infiltration Infeasible | CB7: Not designated receiving water | CC7: Public combined sewer or capacity constrained | CD7: Designated Receiving Water | CE7: Not designated receiving water | CF7: Public combined sewer or capacity constrained | CG7: Designated Receiving Water
B9: Hard Surface Type | T9: ´ | W9: =IF(COUNTIF(BX19:BX79,TRUE)>1,"More than one Use BMP selected, please select only one. ","") & IF(SUMPRODUCT($BV$19:$BV$80*NOT(BW19:BW80)*NOT(BY19:BY80)) > 0,SUMPRODUCT($BV$19:$BV$80*NOT(BW19:BW80)*NOT(BY19:BY80))&" BMP(s) require infeasibility criteria.","") -> 
B11: Hard Surface Description
B13: Surface Area (sf)
A15: Category 1 (Select 1 BMP from Category 1, order does not matter, or move to Category 2) | BS15: Category 1
B17: BMP | P17: Feasibility | W17: Infeasibility Criteria (see infeasibility criteria tab for full text)
B19: Full Dispersion | BS19: Full Dispersion | BT19: =IF(BZ19,IF(CA19,"Infeasible","Feasibility"),"NoEval") -> Feasibility | BU19: =IF(OR(BX19,P19=""),FALSE,OR(NOT(BZ19),BV19)) -> FALSE | BV19: =P19="Infeasible" -> FALSE | BW19: =AND(BV19,NOT(W19="")) -> FALSE | BX19: =P19="Use BMP" -> FALSE | BY19: =OR(BX22,BX25) -> FALSE | BZ19: =INDEX(CB19:CG19,MATCH($BZ$2,$CB$2:$CG$2,0)) -> TRUE | CA19: =Dispersion -> FALSE | CB19: TRUE | CC19: TRUE | CD19: TRUE | CE19: TRUE | CF19: TRUE | CG19: TRUE
B22: Infiltration Trench | BS22: Infiltration Trench | BT22: =IF(BZ22,IF(CA22,"Infeasible","Feasibility"),"NoEval") -> Feasibility | BU22: =IF(OR(BX22,P22=""),FALSE,OR(NOT(BZ22),BV22)) -> FALSE | BV22: =P22="Infeasible" -> FALSE | BW22: =AND(BV22,NOT(W22="")) -> FALSE | BX22: =P22="Use BMP" -> FALSE | BY22: =OR(BX19,BX25) -> FALSE | BZ22: =INDEX(CB22:CG22,MATCH($BZ$2,$CB$2:$CG$2,0)) -> TRUE | CA22: =AND(InfExploration,OR(InfiltrationInfeasible,MeasuredInfRate<5)) -> FALSE | CB22: TRUE | CC22: TRUE | CD22: TRUE | CE22: TRUE | CF22: TRUE | CG22: TRUE
B25: Dry Well | BS25: Dry Well | BT25: =IF(BZ25,IF(CA25,"Infeasible","Feasibility"),"NoEval") -> Feasibility | BU25: =IF(OR(BX25,P25=""),FALSE,OR(NOT(BZ25),BV25)) -> FALSE | BV25: =P25="Infeasible" -> FALSE | BW25: =AND(BV25,NOT(W25="")) -> FALSE | BX25: =P25="Use BMP" -> FALSE | BY25: =OR(BX19,BX22) -> FALSE | BZ25: =INDEX(CB25:CG25,MATCH($BZ$2,$CB$2:$CG$2,0)) -> TRUE | CA25: =AND(InfExploration,OR(InfiltrationInfeasible,MeasuredInfRate<5)) -> FALSE | CB25: TRUE | CC25: TRUE | CD25: TRUE | CE25: TRUE | CF25: TRUE | CG25: TRUE
A28: Category 2 | BS28: Category 2 | BU28: =NOT(AND(BU19:BU25,N9<>"")) -> TRUE
B30: BMP | P30: Feasibility | W30: Infeasibility Criteria
B32: Rain Garden | BS32: Rain Garden | BT32: =IF(BZ32,IF(CA32,"Infeasible","Feasibility"),"NoEval") -> Feasibility | BU32: =IF(OR(BX32,P32=""),FALSE,OR(NOT(BZ32),BV32)) -> FALSE | BV32: =P32="Infeasible" -> FALSE | BW32: =AND(BV32,NOT(W32="")) -> FALSE | BX32: =P32="Use BMP" -> FALSE | BY32: =OR(BX35,BX38,BX41,BX44) -> FALSE | BZ32: =INDEX(CB32:CG32,MATCH($BZ$2,$CB$2:$CG$2,0)) -> TRUE | CA32: =AND(InfExploration,OR(InfiltrationInfeasible,MeasuredInfRate<0.3)) -> FALSE | CB32: =AND(NOT('Project Summary'!$AS$44),NOT('Project Summary'!$AS$46),N13<5000) -> TRUE | CC32: =AND(NOT('Project Summary'!$AS$44),NOT('Project Summary'!$AS$46),N13<5000) -> TRUE | CD32: =AND(NOT('Project Summary'!$AS$44),NOT('Project Summary'!$AS$46),N13<5000) -> TRUE | CE32: =AND(NOT('Project Summary'!$AS$44),NOT('Project Summary'!$AS$46),N13<5000) -> TRUE | CF32: =AND(NOT('Project Summary'!$AS$44),NOT('Project Summary'!$AS$46),N13<5000) -> TRUE | CG32: =AND(NOT('Project Summary'!$AS$44),NOT('Project Summary'!$AS$46),N13<5000) -> TRUE
C33: =IF($N$9="","",IF(BZ32,"","Evaluation not allowed when project requires flow control or water quality treatment or >5000 SF hard surface is infiltrated onsite.")) -> 
B35: Infiltrating Bioretention | BS35: Infiltrating Bioretention | BT35: =IF(BZ35,IF(CA35,"Infeasible","Feasibility"),"NoEval") -> Feasibility | BU35: =IF(OR(BX35,P35=""),FALSE,OR(NOT(BZ35),BV35)) -> FALSE | BV35: =P35="Infeasible" -> FALSE | BW35: =AND(BV35,NOT(W35="")) -> FALSE | BX35: =P35="Use BMP" -> FALSE | BY35: =OR(BX32,BX38,BX41,BX44) -> FALSE | BZ35: =INDEX(CB35:CG35,MATCH($BZ$2,$CB$2:$CG$2,0)) -> TRUE | CA35: =AND(InfExploration,OR(InfiltrationInfeasible,MeasuredInfRate<0.3)) -> FALSE | CB35: TRUE | CC35: TRUE | CD35: TRUE | CE35: TRUE | CF35: TRUE | CG35: TRUE
B38: Rainwater Harvesting | BS38: Rainwater Harvesting | BT38: =IF(N9="Roof",IF(BZ38,"Feasibility","NotRequired"),"NoEval") -> NoEval | BU38: =IF(OR(BX38,P38=""),FALSE,OR(NOT(BZ38),BV38)) -> FALSE | BV38: =P38="Infeasible" -> FALSE | BW38: =AND(BV38,NOT(W38="")) -> FALSE | BX38: =P38="Use BMP" -> FALSE | BY38: =OR(BX32,BX35,BX41,BX44) -> FALSE | BZ38: =INDEX(CB38:CG38,MATCH($BZ$2,$CB$2:$CG$2,0)) -> FALSE | CB38: ='Project Summary'!$P$85>=10000 -> FALSE | CC38: ='Project Summary'!$P$85>=10000 -> FALSE | CD38: FALSE | CE38: FALSE | CF38: FALSE | CG38: FALSE
C39: =IF($N$9="","",IF(N9="Roof",IF(BZ2=3,"Evaluation not required but allowed.",IF(NOT(BZ38),"Evaluation not required for less than 10,000 sf of new and replaced rooftop but allowed.","")),"Evaluation not allowed for non-roof surfaces.")) -> 
B41: Permeable Pavement Facility | BS41: Permeable Pavement Facility | BT41: =IF($CA$41,"Infeasible","Feasibility") -> Feasibility | BU41: =IF(OR(BX41,P41=""),FALSE,OR(NOT(BZ41),BV41)) -> FALSE | BV41: =P41="Infeasible" -> FALSE | BW41: =AND(BV41,NOT(W41="")) -> FALSE | BX41: =P41="Use BMP" -> FALSE | BY41: =OR(BX32,BX35,BX38,BX44) -> FALSE | BZ41: =INDEX(CB41:CG41,MATCH($BZ$2,$CB$2:$CG$2,0)) -> TRUE | CA41: =AND(InfExploration,OR(InfiltrationInfeasible,MeasuredInfRate<0.3)) -> FALSE | CB41: TRUE | CC41: TRUE | CD41: TRUE | CE41: TRUE | CF41: TRUE | CG41: TRUE
C42: =IF(BX41,"Note: the surface area ("&N13&" sf) must represent the area contributing to the permeable pavement facility. Do not create a separate surface tab for the Permeable Pavement Facility, facility area will be entered on the BMP Sizing sheet.","") -> 
B44: Permeable Pavement Surface | BS44: Permeable Pavement Surface | BT44: =IF(NOT($BZ$44),"NoEval",IF($CA$44,"Infeasible","Feasibility")) -> Feasibility | BU44: =IF(OR(BX44,P44=""),FALSE,OR(NOT(BZ44),BV44)) -> FALSE | BV44: =P44="Infeasible" -> FALSE | BW44: =AND(BV44,NOT(W44="")) -> FALSE | BX44: =P44="Use BMP" -> FALSE | BY44: =OR(BX32,BX35,BX38,BX41) -> FALSE | BZ44: =INDEX(CB44:CG44,MATCH($BZ$2,$CB$2:$CG$2,0)) -> TRUE | CB44: FALSE | CC44: FALSE | CD44: FALSE | CE44: TRUE | CF44: TRUE | CG44: TRUE
C45: =IF(N9="","",IF(N9="Roof","Evaluation not allowed for roof surfaces.","")) -> 
A47: Category 3 | BS47: Category 3 | BU47: =NOT(AND(BU19:BU27,BU29:BU46,N9<>"")) -> TRUE
B49: BMP | W49: Infeasibility Criteria
B51: Sheet Flow Dispersion | BS51: Sheet Flow Dispersion | BT51: =IF(BZ51,"Feasibility","Infeasible") -> Feasibility | BU51: =IF(OR(BX51,P51=""),FALSE,OR(NOT(BZ51),BV51)) -> FALSE | BV51: =P51="Infeasible" -> FALSE | BW51: =AND(BV51,NOT(W51="")) -> FALSE | BX51: =P51="Use BMP" -> FALSE | BY51: =OR(BX54,BX57,BX60,BX63,BX66) -> FALSE | BZ51: =AND(INDEX(CB51:CG51,MATCH($BZ$2,$CB$2:$CG$2,0)),NOT(CA51)) -> TRUE | CA51: =Dispersion -> FALSE | CB51: TRUE | CC51: TRUE | CD51: TRUE | CE51: TRUE | CF51: TRUE | CG51: TRUE
B54: Concentrated Flow Dispersion | BS54: Concentrated Flow Dispersion | BT54: =IF(BZ54,"Feasibility",IF(N9="Roof","NoEval","Infeasible")) -> Feasibility | BU54: =IF(OR(BX54,P54=""),FALSE,OR(NOT(BZ54),BV54)) -> FALSE | BV54: =P54="Infeasible" -> FALSE | BW54: =AND(BV54,NOT(W54="")) -> FALSE | BX54: =P54="Use BMP" -> FALSE | BY54: =OR(BX51,BX57,BX60,BX63,BX66) -> FALSE | BZ54: =AND(INDEX(CB54:CG54,MATCH($BZ$2,$CB$2:$CG$2,0)),NOT(CA54)) -> TRUE | CA54: =Dispersion -> FALSE | CB54: FALSE | CC54: FALSE | CD54: FALSE | CE54: TRUE | CF54: TRUE | CG54: TRUE
C55: =IF($N$9="Roof","Evaluation not allowed for roof surfaces.","") -> 
B57: Splashblock Downspout Dispersion | BS57: Splashblock Downspout Dispersion | BT57: =IF(BZ57,"Feasibility",IF(CA57,"Infeasible","NoEval")) -> NoEval | BU57: =IF(OR(BX57,P57=""),FALSE,OR(NOT(BZ57),BV57)) -> FALSE | BV57: =P57="Infeasible" -> FALSE | BW57: =AND(BV57,NOT(W57="")) -> FALSE | BX57: =P57="Use BMP" -> FALSE | BY57: =OR(BX51,BX54,BX60,BX63,BX66) -> FALSE | BZ57: =AND(INDEX(CB57:CG57,MATCH($BZ$2,$CB$2:$CG$2,0)),NOT(CA57)) -> FALSE | CA57: =Dispersion -> FALSE | CB57: TRUE | CC57: TRUE | CD57: TRUE | CE57: FALSE | CF57: FALSE | CG57: FALSE
C58: =IF($N$9="","",IF($N$9="Roof","","Evaluation not allowed for non-roof surfaces.")) -> 
B60: Trench Downspout Dispersion | BS60: Trench Downspout Dispersion | BT60: =IF(BZ60,"Feasibility",IF(CA60,"Infeasible","NoEval")) -> NoEval | BU60: =IF(OR(BX60,P60=""),FALSE,OR(NOT(BZ60),BV60)) -> FALSE | BV60: =P60="Infeasible" -> FALSE | BW60: =AND(BV60,NOT(W60="")) -> FALSE | BX60: =P60="Use BMP" -> FALSE | BY60: =OR(BX51,BX54,BX57,BX63,BX66) -> FALSE | BZ60: =AND(INDEX(CB60:CG60,MATCH($BZ$2,$CB$2:$CG$2,0)),NOT(CA60)) -> FALSE | CA60: =Dispersion -> FALSE | CB60: TRUE | CC60: TRUE | CD60: TRUE | CE60: FALSE | CF60: FALSE | CG60: FALSE
C61: =IF($N$9="","",IF($N$9="Roof","","Evaluation not allowed for non-roof surfaces.")) -> 
B63: Non-Infiltrating Bioretention | BS63: Non-Infiltrating Bioretention | BT63: =IF(BZ63,"Feasibility","Infeasible") -> Feasibility | BU63: =IF(OR(BX63,P63=""),FALSE,OR(NOT(BZ63),BV63)) -> FALSE | BV63: =P63="Infeasible" -> FALSE | BW63: =AND(BV63,NOT(W63="")) -> FALSE | BX63: =P63="Use BMP" -> FALSE | BY63: =OR(BX51,BX54,BX57,BX60,BX66) -> FALSE | BZ63: =INDEX(CB63:CG63,MATCH($BZ$2,$CB$2:$CG$2,0)) -> TRUE | CB63: TRUE | CC63: TRUE | CD63: TRUE | CE63: TRUE | CF63: TRUE | CG63: TRUE
B66: Vegetated Roof System | BS66: Vegetated Roof System | BT66: =IF(BZ66,IF(N9="Roof","Feasibility","NoEval"),"NotRequired") -> NotRequired | BU66: =IF(OR(BX66,P66=""),FALSE,OR(NOT(BZ66),BV66)) -> FALSE | BV66: =P66="Infeasible" -> FALSE | BW66: =AND(BV66,NOT(W66="")) -> FALSE | BX66: =P66="Use BMP" -> FALSE | BY66: =OR(BX51,BX54,BX57,BX60,BX63) -> FALSE | BZ66: =INDEX(CB66:CG66,MATCH($BZ$2,$CB$2:$CG$2,0)) -> FALSE | CB66: ='Project Summary'!$P$85>=5000 -> FALSE | CC66: ='Project Summary'!$P$85>=5000 -> FALSE | CD66: FALSE | CE66: FALSE | CF66: FALSE | CG66: FALSE
C67: =IF($N$9="","",IF(N9="Roof",IF(NOT(BZ66),"Evaluation not required.",""),"Evaluation not allowed for non-roof surfaces.")) -> 
A69: Category 4 | BS69: Category 4 | BU69: =NOT(AND(BU19:BU27,BU29:BU46,BU48:BU67,N9<>"")) -> TRUE
B71: BMP | W71: Infeasibility Criteria
B73: Perforated Stub-out Connection | BS73: Perforated Stub-out Connection | BT73: =IF(N9="Roof",IF(CA73,"Infeasible","Feasibility"),"NoEval") -> NoEval | BU73: =IF(OR(BX73,P73=""),FALSE,OR(NOT(BZ73),BV73)) -> FALSE | BV73: =P73="Infeasible" -> FALSE | BW73: =AND(BV73,NOT(W73="")) -> FALSE | BX73: =P73="Use BMP" -> FALSE | BY73: =BX76 -> FALSE | BZ73: =INDEX(CB73:CG73,MATCH($BZ$2,$CB$2:$CG$2,0)) -> FALSE | CA73: =AND(InfExploration,OR(InfiltrationInfeasible,MeasuredInfRate<0.3)) -> FALSE | CB73: TRUE | CC73: TRUE | CD73: TRUE | CE73: FALSE | CF73: FALSE | CG73: FALSE
C74: =IF($N$9="","",IF(N9="Roof","","Evaluation not allowed for non-roof surfaces.")) -> 
B76: New or Retained Trees | BS76: New or Retained Trees | BT76: =IF(N9="Roof","NoEval","Feasibility") -> Feasibility | BU76: =IF(OR(BX76,P76=""),FALSE,OR(NOT(BZ76),BV76)) -> FALSE | BV76: =P76="Infeasible" -> FALSE | BW76: =AND(BV76,NOT(W76="")) -> FALSE | BX76: =P76="Use BMP" -> FALSE | BY76: =BX73 -> FALSE | BZ76: =INDEX(CB76:CG76,MATCH($BZ$2,$CB$2:$CG$2,0)) -> TRUE | CB76: FALSE | CC76: FALSE | CD76: FALSE | CE76: TRUE | CF76: TRUE | CG76: TRUE
C77: =IF(NOT(BZ76),"Evaluation not allowed for roof surfaces.","") -> 

Sheet SFR (hidden)
A1: On-site Stormwater Management - List Approach Calculator | BZ1: Column to Use | CB1: Evaluation Required
A2: Surface Identification and BMP Evaluation for Single Family Residential Projects | BS2: None Feasible | BX2: =AND(COUNTIFS(BT19:BT79,"Feasibility",BV19:BV79,TRUE)=COUNTIF(BT19:BT79,"Feasibility"),COUNTIF(BX19:BX79,TRUE)=0) -> FALSE | BZ2: =OFFSET(CA2,0,IF($N$9="Roof",0,3)+'Project Summary'!$AS$34) -> 4 | CB2: 1 | CC2: 2 | CD2: 3 | CE2: 4 | CF2: 5 | CG2: 6
B4: Project No. | N4: ='Project Summary'!$AG$6 -> 0 | CB4: Roof | CC4: Roof | CD4: Roof | CE4: Surface | CF4: Surface | CG4: Surface
B7: Hard Surface Number | BS7: BMP | BT7: Dropdown Lookup | BU7: Grey Out | BV7: Infeasible Selected | BW7: Infeasibility Criteria Selected | BX7: BMP Selected | BY7: Other BMP in Group Selected | BZ7: Evaluation Required | CA7: Infiltration /Dispersion Infeasible | CB7: Not designated receiving water | CC7: Public combined sewer or capacity constrained | CD7: Designated Receiving Water | CE7: Not designated receiving water | CF7: Public combined sewer or capacity constrained | CG7: Designated Receiving Water
B9: Hard Surface Type | T9: ´ | W9: =IF(COUNTIF(BX19:BX79,TRUE)>1,"More than one Use BMP selected, please select only one. ","") & IF(SUMPRODUCT($BV$19:$BV$80*NOT(BW19:BW80)*NOT(BY19:BY80)) > 0,SUMPRODUCT($BV$19:$BV$80*NOT(BW19:BW80)*NOT(BY19:BY80))&" BMP(s) require infeasibility criteria.","") -> 
B11: Hard Surface Description
B13: Surface Area (sf)
A15: Category 1 (Select 1 BMP from Category 1, order does not matter, or move to Category 2) | BS15: Category 1
B17: BMP | P17: Feasibility | W17: Infeasibility Criteria
B19: Full Dispersion | BS19: Full Dispersion | BT19: =IF(CA19,"Infeasible",IF(BZ19,"Feasibility","NoEval")) -> Feasibility | BU19: =IF(OR(P19="",BX19),FALSE,OR(NOT(BZ19),BV19)) -> FALSE | BV19: =P19="Infeasible" -> FALSE | BW19: =AND(BV19,NOT(W19="")) -> FALSE | BX19: =P19="Use BMP" -> FALSE | BY19: =OR(BX22,BX25) -> FALSE | BZ19: =INDEX(CB19:CG19,MATCH($BZ$2,$CB$2:$CG$2,0)) -> TRUE | CA19: =Dispersion -> FALSE | CB19: TRUE | CC19: TRUE | CD19: TRUE | CE19: TRUE | CF19: TRUE | CG19: TRUE
B22: Infiltration Trench | BS22: Infiltration Trench | BT22: =IF(CA22,"Infeasible",IF(BZ22,"Feasibility","NoEval")) -> Feasibility | BU22: =IF(OR(P22="",BX22),FALSE,OR(NOT(BZ22),BV22)) -> FALSE | BV22: =P22="Infeasible" -> FALSE | BW22: =AND(BV22,NOT(W22="")) -> FALSE | BX22: =P22="Use BMP" -> FALSE | BY22: =OR(BX19,BX25) -> FALSE | BZ22: =INDEX(CB22:CG22,MATCH($BZ$2,$CB$2:$CG$2,0)) -> TRUE | CA22: =AND(InfExploration,OR(InfiltrationInfeasible,MeasuredInfRate<5)) -> FALSE | CB22: TRUE | CC22: TRUE | CD22: TRUE | CE22: TRUE | CF22: TRUE | CG22: TRUE
B25: Dry Well | BS25: Dry Well | BT25: =IF(CA25,"Infeasible",IF(BZ25,"Feasibility","NoEval")) -> Feasibility | BU25: =IF(OR(P25="",BX25),FALSE,OR(NOT(BZ25),BV25)) -> FALSE | BV25: =P25="Infeasible" -> FALSE | BW25: =AND(BV25,NOT(W25="")) -> FALSE | BX25: =P25="Use BMP" -> FALSE | BY25: =OR(BX19,BX22) -> FALSE | BZ25: =INDEX(CB25:CG25,MATCH($BZ$2,$CB$2:$CG$2,0)) -> TRUE | CA25: =AND(InfExploration,OR(InfiltrationInfeasible,MeasuredInfRate<5)) -> FALSE | CB25: TRUE | CC25: TRUE | CD25: TRUE | CE25: TRUE | CF25: TRUE | CG25: TRUE
A28: Category 2 | BS28: Category 2 | BU28: =OR(NOT(AND(BU19:BU25)),N9="") -> TRUE
B30: BMP | P30: Feasibility | W30: Infeasibility Criteria
B32: Rain Garden | BS32: Rain Garden | BT32: =IF(CA32,"Infeasible",IF(BZ32,"Feasibility","NotRequired")) -> Feasibility | BU32: =IF(OR(P32="",BX32),FALSE,OR(NOT(BZ32),BV32)) -> FALSE | BV32: =P32="Infeasible" -> FALSE | BW32: =AND(BV32,NOT(W32="")) -> FALSE | BX32: =P32="Use BMP" -> FALSE | BY32: =OR(BX35,BX38,BX41,BX44) -> FALSE | BZ32: =INDEX(CB32:CG32,MATCH($BZ$2,$CB$2:$CG$2,0)) -> TRUE | CA32: =AND(InfExploration,OR(InfiltrationInfeasible,MeasuredInfRate<0.3)) -> FALSE | CB32: =$N$13<5000 -> TRUE | CC32: =$N$13<5000 -> TRUE | CD32: TRUE | CE32: TRUE | CF32: TRUE | CG32: TRUE
C33: =IF($N$9="","",IF(BZ32,"","Evaluation not allowed for projects with greater than 5,000 sf of hard surface infiltrating on site.")) -> 
B35: Infiltrating Bioretention | BS35: Infiltrating Bioretention | BT35: =IF($CA$35,"Infeasible","Feasibility") -> Feasibility | BU35: =IF(OR(P35="",BX35),FALSE,OR(NOT(BZ35),BV35)) -> FALSE | BV35: =P35="Infeasible" -> FALSE | BW35: =AND(BV35,NOT(W35="")) -> FALSE | BX35: =P35="Use BMP" -> FALSE | BY35: =OR(BX32,BX38,BX41,BX44) -> FALSE | BZ35: =INDEX(CB35:CG35,MATCH($BZ$2,$CB$2:$CG$2,0)) -> TRUE | CA35: =AND(InfExploration,OR(InfiltrationInfeasible,MeasuredInfRate<0.3)) -> FALSE | CB35: TRUE | CC35: TRUE | CD35: TRUE | CE35: TRUE | CF35: TRUE | CG35: TRUE
B38: Rainwater Harvesting | BS38: Rainwater Harvesting | BT38: =IF($BZ$38,"Feasibility",IF($N$9="Roof","NotRequired","NoEval")) -> NoEval | BU38: =IF(OR(P38="",BX38),FALSE,OR(NOT(BZ38),BV38)) -> FALSE | BV38: =P38="Infeasible" -> FALSE | BW38: =AND(BV38,NOT(W38="")) -> FALSE | BX38: =P38="Use BMP" -> FALSE | BY38: =OR(BX32,BX35,BX41,BX44) -> FALSE | BZ38: =INDEX(CB38:CG38,MATCH($BZ$2,$CB$2:$CG$2,0)) -> FALSE | CB38: FALSE | CC38: FALSE | CD38: FALSE | CE38: FALSE | CF38: FALSE | CG38: FALSE
C39: =IF($N$9="","",IF($N$9="Roof","Evaluation not required but allowed.","")) -> 
B41: Permeable Pavement Facility | BS41: Permeable Pavement Facility | BT41: =IF($CA$41,"Infeasible","Feasibility") -> Feasibility | BU41: =IF(OR(P41="",BX41),FALSE,OR(NOT(BZ41),BV41)) -> FALSE | BV41: =P41="Infeasible" -> FALSE | BW41: =AND(BV41,NOT(W41="")) -> FALSE | BX41: =P41="Use BMP" -> FALSE | BY41: =OR(BX32,BX35,BX38,BX44) -> FALSE | BZ41: =INDEX(CB41:CG41,MATCH($BZ$2,$CB$2:$CG$2,0)) -> TRUE | CA41: =AND(InfExploration,OR(InfiltrationInfeasible,MeasuredInfRate<0.3)) -> FALSE | CB41: TRUE | CC41: TRUE | CD41: TRUE | CE41: TRUE | CF41: TRUE | CG41: TRUE
C42: =IF(BX41,"Note the surface area ("&N13&" sf) should represent the area contributing to the permeable pavement facility. Facility area will be entered on the BMP Sizing tab.","") -> 
B44: Permeable Pavement Surface | BS44: Permeable Pavement Surface | BT44: =IF(NOT($BZ$44),"NoEval",IF($CA$44,"Infeasible","Feasibility")) -> Feasibility | BU44: =IF(OR(P44="",BX44),FALSE,OR(NOT(BZ44),BV44)) -> FALSE | BV44: =P44="Infeasible" -> FALSE | BW44: =AND(BV44,NOT(W44="")) -> FALSE | BX44: =P44="Use BMP" -> FALSE | BY44: =OR(BX32,BX35,BX38,BX41) -> FALSE | BZ44: =INDEX(CB44:CG44,MATCH($BZ$2,$CB$2:$CG$2,0)) -> TRUE | CB44: FALSE | CC44: FALSE | CD44: FALSE | CE44: TRUE | CF44: TRUE | CG44: TRUE
C45: =IF(N9="","",IF(N9="Roof","Evaluation not allowed for roof surfaces.","")) -> 
A47: Category 3 | BS47: Category 3 | BU47: =OR(NOT(AND(BU19:BU27,BU29:BU46)),N9="") -> TRUE
B49: BMP | P49: Feasibility | W49: Infeasibility Criteria
B51: Sheet Flow Dispersion | BS51: Sheet Flow Dispersion | BT51: =IF($CA$51,"Infeasible","Feasibility") -> Feasibility | BU51: =IF(OR(P51="",BX51),FALSE,OR(NOT(BZ51),BV51)) -> FALSE | BV51: =P51="Infeasible" -> FALSE | BW51: =AND(BV51,NOT(W51="")) -> FALSE | BX51: =P51="Use BMP" -> FALSE | BY51: =OR(BX54,BX57,BX60,BX63,BX66) -> FALSE | BZ51: =INDEX(CB51:CG51,MATCH($BZ$2,$CB$2:$CG$2,0)) -> TRUE | CA51: =Dispersion -> FALSE | CB51: TRUE | CC51: TRUE | CD51: TRUE | CE51: TRUE | CF51: TRUE | CG51: TRUE
B54: Concentrated Flow Dispersion | BS54: Concentrated Flow Dispersion | BT54: =IF(BZ54,IF($CA$54,"Infeasible","Feasibility"),"NoEval") -> Feasibility | BU54: =IF(OR(P54="",BX54),FALSE,OR(NOT(BZ54),BV54)) -> FALSE | BV54: =P54="Infeasible" -> FALSE | BW54: =AND(BV54,NOT(W54="")) -> FALSE | BX54: =P54="Use BMP" -> FALSE | BY54: =OR(BX51,BX57,BX60,BX63,BX66) -> FALSE | BZ54: =INDEX(CB54:CG54,MATCH($BZ$2,$CB$2:$CG$2,0)) -> TRUE | CA54: =Dispersion -> FALSE | CB54: FALSE | CC54: FALSE | CD54: FALSE | CE54: TRUE | CF54: TRUE | CG54: TRUE
C55: =IF($N$9="Roof","Evaluation not allowed for roof surfaces.","") -> 
B57: Splashblock Downspout Dispersion | BS57: Splashblock Downspout Dispersion | BT57: =IF(BZ57,IF($CA$57,"Infeasible","Feasibility"),"NoEval") -> NoEval | BU57: =IF(OR(P57="",BX57),FALSE,OR(NOT(BZ57),BV57)) -> FALSE | BV57: =P57="Infeasible" -> FALSE | BW57: =AND(BV57,NOT(W57="")) -> FALSE | BX57: =P57="Use BMP" -> FALSE | BY57: =OR(BX51,BX54,BX60,BX63,BX66) -> FALSE | BZ57: =INDEX(CB57:CG57,MATCH($BZ$2,$CB$2:$CG$2,0)) -> FALSE | CA57: =Dispersion -> FALSE | CB57: TRUE | CC57: TRUE | CD57: TRUE | CE57: FALSE | CF57: FALSE | CG57: FALSE
C58: =IF($N$9="","",IF($N$9="Roof","","Evaluation not allowed for non-roof surfaces.")) -> 
B60: Trench Downspout Dispersion | BS60: Trench Downspout Dispersion | BT60: =IF(BZ60,IF($CA$57,"Infeasible","Feasibility"),"NoEval") -> NoEval | BU60: =IF(OR(P60="",BX60),FALSE,OR(NOT(BZ60),BV60)) -> FALSE | BV60: =P60="Infeasible" -> FALSE | BW60: =AND(BV60,NOT(W60="")) -> FALSE | BX60: =P60="Use BMP" -> FALSE | BY60: =OR(BX51,BX54,BX57,BX63,BX66) -> FALSE | BZ60: =INDEX(CB60:CG60,MATCH($BZ$2,$CB$2:$CG$2,0)) -> FALSE | CA60: =Dispersion -> FALSE | CB60: TRUE | CC60: TRUE | CD60: TRUE | CE60: FALSE | CF60: FALSE | CG60: FALSE
C61: =IF($N$9="","",IF($N$9="Roof","","Evaluation not allowed for non-roof surfaces.")) -> 
B63: Non-Infiltrating Bioretention | BS63: Non-Infiltrating Bioretention | BT63: =IF($BZ$63,"Feasibility","NoEval") -> Feasibility | BU63: =IF(OR(P63="",BX63),FALSE,OR(NOT(BZ63),BV63)) -> FALSE | BV63: =P63="Infeasible" -> FALSE | BW63: =AND(BV63,NOT(W63="")) -> FALSE | BX63: =P63="Use BMP" -> FALSE | BY63: =OR(BX51,BX54,BX57,BX60,BX66) -> FALSE | BZ63: =INDEX(CB63:CG63,MATCH($BZ$2,$CB$2:$CG$2,0)) -> TRUE | CB63: TRUE | CC63: TRUE | CD63: TRUE | CE63: TRUE | CF63: TRUE | CG63: TRUE
B66: Vegetated Roof System | BS66: Vegetated Roof System | BT66: =IF($N$9="Roof","NotRequired","NoEval") -> NoEval | BU66: =IF(OR(P66="",BX66),FALSE,OR(NOT(BZ66),BV66)) -> FALSE | BV66: =P66="Infeasible" -> FALSE | BW66: =AND(BV66,NOT(W66="")) -> FALSE | BX66: =P66="Use BMP" -> FALSE | BY66: =OR(BX51,BX54,BX57,BX60,BX63) -> FALSE | BZ66: =INDEX(CB66:CG66,MATCH($BZ$2,$CB$2:$CG$2,0)) -> FALSE | CB66: FALSE | CC66: FALSE | CD66: FALSE | CE66: FALSE | CF66: FALSE | CG66: FALSE
C67: =IF($N$9="","",IF(N9="Roof","Evaluation not required but allowed.","Evaluation not allowed for non-roof surfaces.")) -> 
A69: Category 4 | BS69: Category 4 | BU69: =OR(NOT(AND(BU19:BU27,BU29:BU46,BU48:BU67)),N9="") -> TRUE
B71: BMP | P71: Feasibility | W71: Infeasibility Criteria
B73: Single-family Residential Cisterns | BS73: Single-family Residential Cisterns | BT73: =IF(BZ73,"Feasibility","NoEval") -> NoEval | BU73: =IF(OR(P73="",BX73),FALSE,OR(NOT(BZ73),BV73)) -> FALSE | BV73: =P73="Infeasible" -> FALSE | BW73: =AND(BV73,NOT(W73="")) -> FALSE | BX73: =P73="Use BMP" -> FALSE | BY73: =OR(BX76,BX79) -> FALSE | BZ73: =INDEX(CB73:CG73,MATCH($BZ$2,$CB$2:$CG$2,0)) -> FALSE | CB73: TRUE | CC73: TRUE | CD73: TRUE | CE73: FALSE | CF73: FALSE | CG73: FALSE
C74: =IF($N$9="","",IF($N$9="Roof","","Evaluation not allowed for non-roof surfaces.")) -> 
B76: Perforated Stub-out Connection | BS76: Perforated Stub-out Connection | BT76: =IF(BZ76,IF(CA76,"Infeasible","Feasibility"),"NoEval") -> NoEval | BU76: =IF(OR(P76="",BX76),FALSE,OR(NOT(BZ76),BV76)) -> FALSE | BV76: =P76="Infeasible" -> FALSE | BW76: =AND(BV76,NOT(W76="")) -> FALSE | BX76: =P76="Use BMP" -> FALSE | BY76: =OR(BX73,BX79) -> FALSE | BZ76: =INDEX(CB76:CG76,MATCH($BZ$2,$CB$2:$CG$2,0)) -> FALSE | CA76: =AND(InfExploration,OR(InfiltrationInfeasible,MeasuredInfRate<0.3)) -> FALSE | CB76: TRUE | CC76: TRUE | CD76: TRUE | CE76: FALSE | CF76: FALSE | CG76: FALSE
C77: =IF($N$9="","",IF($N$9="Roof","","Evaluation not allowed for non-roof surfaces.")) -> 
B79: New or Retained Trees | BS79: New or Retained Trees | BT79: =IF(BZ79,"Feasibility","NoEval") -> Feasibility | BU79: =IF(OR(P79="",BX79),FALSE,OR(NOT(BZ79),BV79)) -> FALSE | BV79: =P79="Infeasible" -> FALSE | BW79: =AND(BV79,NOT(W79="")) -> FALSE | BX79: =P79="Use BMP" -> FALSE | BY79: =OR(BX73,BX76) -> FALSE | BZ79: =INDEX(CB79:CG79,MATCH($BZ$2,$CB$2:$CG$2,0)) -> TRUE | CB79: FALSE | CC79: FALSE | CD79: FALSE | CE79: TRUE | CF79: TRUE | CG79: TRUE
C80: =IF(NOT(BZ79),"Evaluation not allowed for roof surfaces.","") -> 

Sheet Trail (hidden)
A1: On-site Stormwater Management - List Approach Calculator | BZ1: Column to Use | CB1: Evaluation Required
A2: Surface Identification and BMP Evaluation for Trail and Sidewalk Projects | BS2: None Feasible | BX2: =AND(COUNTIFS(BT19:BT42,"Feasibility",BV19:BV42,TRUE)=COUNTIF(BT19:BT42,"Feasibility"),COUNTIF(BX19:BX42,TRUE)=0) -> FALSE | BZ2: =OFFSET(CA2,0,IF($N$9="Roof",0,3)+'Project Summary'!$AS$34) -> 4 | CB2: 1 | CC2: 2 | CD2: 3 | CE2: 4 | CF2: 5 | CG2: 6
B4: Project No. | N4: ='Project Summary'!$AG$6 -> 0 | CB4: Roof | CC4: Roof | CD4: Roof | CE4: Surface | CF4: Surface | CG4: Surface
B7: Hard Surface Number | BS7: BMP | BT7: Dropdown Lookup | BU7: Grey Out | BV7: Infeasible Selected | BW7: Infeasibility Criteria Selected | BX7: BMP Selected | BY7: Other BMP in Group Selected | BZ7: Evaluation Required | CA7: Infiltration/ DispersionInfeasible | CB7: Not designated receiving water | CC7: Public combined sewer or capacity constrained | CD7: Designated Receiving Water | CE7: Not designated receiving water | CF7: Public combined sewer or capacity constrained | CG7: Designated Receiving Water
B9: Hard Surface Type | T9: ´ | W9: =IF(COUNTIF(BX19:BX79,TRUE)>1,"More than one Use BMP selected, please select only one. ","") & IF(SUMPRODUCT($BV$19:$BV$80*NOT(BW19:BW80)*NOT(BY19:BY80)) > 0,SUMPRODUCT($BV$19:$BV$80*NOT(BW19:BW80)*NOT(BY19:BY80))&" BMP(s) require infeasibility criteria.","") -> 
B11: Hard Surface Description
B13: Surface Area (sf)
A15: Category 1 (Select 1 BMP from Category 1, order does not matter, or move to Category 2) | BS15: Category 1
B17: BMP | P17: Feasibility | W17: Infeasibility Criteria
B19: Full Dispersion | BS19: Full Dispersion | BT19: =IF(BZ19,IF(CA19,"Infeasible","Feasibility"),"NoEval") -> Feasibility | BU19: =IF(OR(P19="",BX19),FALSE,OR(NOT(BZ19),BV19)) -> FALSE | BV19: =P19="Infeasible" -> FALSE | BW19: =AND(BV19,NOT(W19="")) -> FALSE | BX19: =P19="Use BMP" -> FALSE | BY19: FALSE | BZ19: =INDEX(CB19:CG19,MATCH($BZ$2,$CB$2:$CG$2,0)) -> TRUE | CA19: =Dispersion -> FALSE | CB19: FALSE | CC19: FALSE | CD19: FALSE | CE19: TRUE | CF19: TRUE | CG19: TRUE
A22: Category 2 | BS22: Category 2 | BU22: =NOT(AND(BU19:BU21,N9<>"")) -> TRUE
B24: BMP | P24: Feasibility | W24: Infeasibility Criteria
B26: Rain Garden | BS26: Rain Garden | BT26: =IF(BZ26,IF(CA26,"Infeasible","Feasibility"),"NoEval") -> Feasibility | BU26: =IF(OR(P26="",BX26),FALSE,OR(NOT(BZ26),BV26)) -> FALSE | BV26: =P26="Infeasible" -> FALSE | BW26: =AND(BV26,NOT(W26="")) -> FALSE | BX26: =P26="Use BMP" -> FALSE | BY26: =OR(BX29,BX32) -> FALSE | BZ26: =INDEX(CB26:CG26,MATCH($BZ$2,$CB$2:$CG$2,0)) -> TRUE | CA26: =AND(InfExploration,OR(InfiltrationInfeasible,MeasuredInfRate<0.3)) -> FALSE | CB26: FALSE | CC26: FALSE | CD26: FALSE | CE26: =N13<5000 -> TRUE | CF26: =O13<5000 -> TRUE | CG26: FALSE
C27: =IF($N$9="","",IF(BZ26,"","Evaluation not required.")) -> 
B29: Permeable Pavement Facility | BS29: Permeable Pavement Facility | BT29: =IF(CA29,"Infeasible",IF(BZ29,"Feasibility","NotRequired")) -> NotRequired | BU29: =IF(OR(P29="",BX29),FALSE,OR(NOT(BZ29),BV29)) -> FALSE | BV29: =P29="Infeasible" -> FALSE | BW29: =AND(BV29,NOT(W29="")) -> FALSE | BX29: =P29="Use BMP" -> FALSE | BY29: =OR(BX26,BX32) -> FALSE | BZ29: =INDEX(CB29:CG29,MATCH($BZ$2,$CB$2:$CG$2,0)) -> FALSE | CA29: =AND(InfExploration,OR(InfiltrationInfeasible,MeasuredInfRate<0.3)) -> FALSE | CB29: FALSE | CC29: FALSE | CD29: FALSE | CE29: FALSE | CF29: FALSE | CG29: FALSE
C30: =IF(BX29,"Note the surface area ("&N13&" sf) should represent the area contributing to the permeable pavement facility. Facility area will be entered on the BMP Sizing tab.","") -> 
B32: Permeable Pavement Surface | BS32: Permeable Pavement Surface | BT32: =IF(CA32,"Infeasible",IF(BZ32,"Feasibility","NotRequired")) -> NotRequired | BU32: =IF(OR(P32="",BX32),FALSE,OR(NOT(BZ32),BV32)) -> FALSE | BV32: =P32="Infeasible" -> FALSE | BW32: =AND(BV32,NOT(W32="")) -> FALSE | BX32: =P32="Use BMP" -> FALSE | BY32: =OR(BX26,BX29) -> FALSE | BZ32: =INDEX(CB32:CG32,MATCH($BZ$2,$CB$2:$CG$2,0)) -> FALSE | CB32: FALSE | CC32: FALSE | CD32: FALSE | CE32: FALSE | CF32: TRUE | CG32: FALSE
C33: =IF(N9="","",IF(BZ2=4,"Evaluation is not required.",IF(BZ2=5,"Minimum permeable pavement area in ROW is 2,000 sf.",IF(BZ2=6,IF(N13<2000,"Evaluation not allowed in ROW if new plus replaced PGHS is less than 2,000 sf.","Evaluation not required but allowed if permable pavement in ROW is greater than 2,000 sf"),"")))) -> 
A35: Category 3 | BS35: Category 3 | BU35: =NOT(AND(BU19:BU21,BU23:BU34)) -> TRUE
B37: BMP | P37: Feasibility | W37: Infeasibility Criteria
B39: Sheet Flow Dispersion | BS39: Sheet Flow Dispersion | BT39: =IF(BZ39,IF(CA39,"Infeasible","Feasibility"),"NoEval") -> Feasibility | BU39: =IF(OR(P39="",BX39),FALSE,OR(NOT(BZ39),BV39)) -> FALSE | BV39: =P39="Infeasible" -> FALSE | BW39: =AND(BV39,NOT(W39="")) -> FALSE | BX39: =P39="Use BMP" -> FALSE | BY39: =BX42 -> FALSE | BZ39: =INDEX(CB39:CG39,MATCH($BZ$2,$CB$2:$CG$2,0)) -> TRUE | CA39: =Dispersion -> FALSE | CB39: FALSE | CC39: FALSE | CD39: FALSE | CE39: TRUE | CF39: TRUE | CG39: TRUE
B42: Concentrated Dispersion | BS42: Concentrated Flow Dispersion | BT42: =IF(BZ42,IF(CA42,"Infeasible","Feasibility"),"NoEval") -> Feasibility | BU42: =IF(OR(P42="",BX42),FALSE,OR(NOT(BZ42),BV42)) -> FALSE | BV42: =P42="Infeasible" -> FALSE | BW42: =AND(BV42,NOT(W42="")) -> FALSE | BX42: =P42="Use BMP" -> FALSE | BY42: =BX39 -> FALSE | BZ42: =INDEX(CB42:CG42,MATCH($BZ$2,$CB$2:$CG$2,0)) -> TRUE | CA42: =Dispersion -> FALSE | CB42: FALSE | CC42: FALSE | CD42: FALSE | CE42: TRUE | CF42: TRUE | CG42: TRUE
C43: =IF($N$9="Roof","Evaluation not required for roof surfaces.","") -> 

Sheet Road (hidden)
A1: On-site Stormwater Management - List Approach Calculator | BZ1: Column to Use | CB1: Evaluation Required
A2: Surface Identification and BMP Evaluation for Roadway Projects | BS2: None Feasible | BX2: =AND(COUNTIFS(BT19:BT44,"Feasibility",BV19:BV44,TRUE)=COUNTIF(BT19:BT44,"Feasibility"),COUNTIF(BX19:BX44,TRUE)=0) -> FALSE | BZ2: =OFFSET(CA2,0,IF($N$9="Roof",0,3)+'Project Summary'!$AS$34) -> 4 | CB2: 1 | CC2: 2 | CD2: 3 | CE2: 4 | CF2: 5 | CG2: 6
B4: Project No. | N4: ='Project Summary'!$AG$6 -> 0 | CB4: Roof | CC4: Roof | CD4: Roof | CE4: Surface | CF4: Surface | CG4: Surface
B7: Hard Surface Number | BS7: BMP | BT7: Dropdown Lookup | BU7: Grey Out | BV7: Infeasible Selected | BW7: Infeasible Criteria Entered | BX7: BMP Selected | BY7: Other BMP in Group Selected | BZ7: Evaluation Required | CA7: Infiltration /Dispersion Infeasible | CB7: Not designated receiving water | CC7: Public combined sewer or capacity constrained | CD7: Designated Receiving Water | CE7: Not designated receiving water | CF7: Public combined sewer or capacity constrained | CG7: Designated Receiving Water
B9: Hard Surface Type | T9: ´ | W9: =IF(COUNTIF(BX19:BX79,TRUE)>1,"More than one Use BMP selected, please select only one. ","") & IF(SUMPRODUCT($BV$19:$BV$80*NOT(BW19:BW80)*NOT(BY19:BY80)) > 0,SUMPRODUCT($BV$19:$BV$80*NOT(BW19:BW80)*NOT(BY19:BY80))&" BMP(s) require infeasibility criteria.","") -> 
B11: Hard Surface Description
B13: Surface Area (sf)
A15: Category 1 (Select 1 BMP from Category 1, order does not matter, or move to Category 2) | BS15: Category 1
B17: BMP | P17: Feasibility | W17: Infeasibility Criteria
B19: Full Dispersion | BS19: Full Dispersion | BT19: =IF(BZ19,IF(CA19,"Infeasible","Feasibility"),"NoEval") -> Feasibility | BU19: =IF(OR(P19="",BX19),FALSE,OR(NOT(BZ19),BV19)) -> FALSE | BV19: =P19="Infeasible" -> FALSE | BW19: =AND(BV19,NOT(W19="")) -> FALSE | BX19: =P19="Use BMP" -> FALSE | BY19: FALSE | BZ19: =INDEX(CB19:CG19,MATCH($BZ$2,$CB$2:$CG$2,0)) -> TRUE | CA19: =Dispersion -> FALSE | CB19: FALSE | CC19: FALSE | CD19: FALSE | CE19: TRUE | CF19: TRUE | CG19: TRUE
A22: Category 2 | BS22: Category 2 | BU22: =NOT(AND(BU19:BU21,N9<>"")) -> TRUE
B24: BMP | P24: Feasibility | W24: Infeasibility Criteria
B26: Rain Garden | BS26: Rain Garden | BT26: =IF(BZ26,IF(CA26,"Infeasible","Feasibility"),"NoEval") -> Feasibility | BU26: =IF(OR(P26="",BX26),FALSE,OR(NOT(BZ26),BV26)) -> FALSE | BV26: =P26="Infeasible" -> FALSE | BW26: =AND(BV26,NOT(W26="")) -> FALSE | BX26: =P26="Use BMP" -> FALSE | BY26: =OR(BX29,BX32,BX35) -> FALSE | BZ26: =INDEX(CB26:CG26,MATCH($BZ$2,$CB$2:$CG$2,0)) -> TRUE | CA26: =AND(InfExploration,OR(InfiltrationInfeasible,MeasuredInfRate<0.3)) -> FALSE | CB26: FALSE | CC26: FALSE | CD26: FALSE | CE26: =AND(NOT('Project Summary'!$AS$44),NOT('Project Summary'!$AS$46),$N$13<5000) -> TRUE | CF26: =AND(NOT('Project Summary'!$AS$44),NOT('Project Summary'!$AS$46),$N$13<5000) -> TRUE | CG26: =AND(NOT('Project Summary'!$AS$44),NOT('Project Summary'!$AS$46),$N$13<5000) -> TRUE
C27: =IF($N$9="","",IF(MeasuredInfRate<0.3,"",IF(OR('Project Summary'!AS44,'Project Summary'!AS46),"Evaluation not allowed when project requires Flow Control or Water Quality Treatment",IF(N13>=5000,"Evaluation not allowed for sites with greater than 5,000 sf of hard surface infiltrating onsite","")))) -> 
B29: Infiltrating Bioretention | BS29: Infiltrating Bioretention | BT29: =IF(BZ29,IF(CA29,"Infeasible","Feasibility"),"NoEval") -> Feasibility | BU29: =IF(OR(P29="",BX29),FALSE,OR(NOT(BZ29),BV29)) -> FALSE | BV29: =P29="Infeasible" -> FALSE | BW29: =AND(BV29,NOT(W29="")) -> FALSE | BX29: =P29="Use BMP" -> FALSE | BY29: =OR(BX26,BX32,BX35) -> FALSE | BZ29: =INDEX(CB29:CG29,MATCH($BZ$2,$CB$2:$CG$2,0)) -> TRUE | CA29: =AND(InfExploration,OR(InfiltrationInfeasible,MeasuredInfRate<0.3)) -> FALSE | CB29: FALSE | CC29: FALSE | CD29: FALSE | CE29: TRUE | CF29: TRUE | CG29: TRUE
C30: =IF(N9<>"", IF(BZ2>=5, "Evaluation is only allowed when contributing area is sufficient to warrant minimum bioretention cell size in ROW.",""),"") -> 
B32: Permeable Pavement Facility | BS32: Permeable Pavement Facility | BT32: =IF(CA32,"Infeasible", IF(BZ2=4, IF(N11="Arterial Street or Collector","NoEval","NotRequired"), IF(BZ2=5, IF(AND(N11="ROW", N13<2000),"NoEval",IF(OR(N11="ROW",N11="Other"),"NotRequired","NoEval")), IF(BZ2=6, IF(AND(N13>=2000, OR(N11="ROW",N11="Other")),"NotRequired",IF(AND(N13<2000,N11="Other"),"NoEval",IF(AND(N13<2000,N11="ROW"),"NoEval","NoEval"))),"Feasibility")))) -> NotRequired | BU32: =IF(OR(P32="",BX32),FALSE,OR(NOT(BZ32),BV32)) -> FALSE | BV32: =P32="Infeasible" -> FALSE | BW32: =AND(BV32,NOT(W32="")) -> FALSE | BX32: =P32="Use BMP" -> FALSE | BY32: =OR(BX26,BX29,BX35) -> FALSE | BZ32: =INDEX(CB32:CG32,MATCH($BZ$2,$CB$2:$CG$2,0)) -> FALSE | CA32: =AND(InfExploration,OR(InfiltrationInfeasible,MeasuredInfRate<0.3)) -> FALSE | CB32: FALSE | CC32: FALSE | CD32: FALSE | CE32: FALSE | CF32: FALSE | CG32: FALSE
C33: =IF(BX32,"Note the surface area ("&N13&" sf) should represent the area contributing to the permeable pavement facility. Facility area will be entered on the BMP Sizing tab.","") -> 
B35: Permeable Pavement Surface | BS35: Permeable Pavement Surface | BT35: =IF(BZ2=4,IF(N11="Arterial Street or Collector","NoEval",IF(CA35,"Infeasible","Feasibility")), IF(BZ2=5,IF(AND(N11="ROW",N13<2000),"NoEval",IF(OR(N11="ROW",N11="Other"),IF(CA35,"Infeasible","Feasibility"),"NoEval")), IF(BZ2=6,IF(AND(N11="Other",N13<2000),"NoEval",IF(AND(N11="ROW",N13<2000),"NoEval",IF(OR(N11="Other",N11="ROW"),IF(CA35,"Infeasible","Feasibility"),"NoEval")))))) -> Feasibility | BU35: =IF(OR(P35="",BX35),FALSE,OR(NOT(BZ35),BV35)) -> FALSE | BV35: =P35="Infeasible" -> FALSE | BW35: =AND(BV35,NOT(W35="")) -> FALSE | BX35: =P35="Use BMP" -> FALSE | BY35: =OR(BX26,BX29,BX32) -> FALSE | BZ35: =INDEX(CB35:CG35,MATCH($BZ$2,$CB$2:$CG$2,0)) -> TRUE | CB35: FALSE | CC35: FALSE | CD35: FALSE | CE35: =IF(N11="Arterial Street or Collector",FALSE,TRUE) -> TRUE | CF35: =IF(AND(N11="ROW",N13<2000),FALSE,IF(OR(N11="ROW",N11="Other"),TRUE,FALSE)) -> FALSE | CG35: =AND(N13>=2000,OR(N11="Other",N11="ROW")) -> FALSE
C36: =IF(N9="","", IF(MeasuredInfRate<0.3, "", IF(BZ2=4,IF(N11="Arterial Street or Collector","Evaluation is not allowed if roadway is an arterial street or collector.",""), IF(BZ2=5,IF(AND(N11="ROW",N13<2000),"Minimum permeable pavement area allowed in the ROW is 2,000 sf.",IF(OR(N11="ROW",N11="Other"),"","Evaluation of roadway surfaces, including alleys, is not allowed.")), IF(BZ2=6,IF(AND(N11="Other",N13<2000),"Evaluation is not allowed if new plus replaced PGHS is less than 2,000 sf.",IF(AND(N11="ROW",N13<2000),"Minimum permeable pavement area allowed in the ROW is 2,000 sf.",IF(OR(N11="Other",N11="ROW"),"","Evaluation of roadway surfaces, including alleys, is not allowed.")))))))) -> 
A38: Category 3 | BS38: Category 3 | BU38: =NOT(AND(BU19:BU21,BU23:BU37,N9<>"")) -> TRUE
B40: BMP | P40: Feasibility | W40: Infeasibility Criteria
B42: Sheet Flow Dispersion | BS42: Sheet Flow Dispersion | BT42: =IF(BZ42,IF(CA42,"Infeasible","Feasibility"),"NoEval") -> Feasibility | BU42: =IF(OR(P42="",BX42),FALSE,OR(NOT(BZ42),BV42)) -> FALSE | BV42: =P42="Infeasible" -> FALSE | BW42: =AND(BV42,NOT(W42="")) -> FALSE | BX42: =P42="Use BMP" -> FALSE | BY42: =BX44 -> FALSE | BZ42: =INDEX(CB42:CG42,MATCH($BZ$2,$CB$2:$CG$2,0)) -> TRUE | CA42: =Dispersion -> FALSE | CB42: FALSE | CC42: FALSE | CD42: FALSE | CE42: TRUE | CF42: TRUE | CG42: TRUE
B44: Concentrated Flow Dispersion | BS44: Concentrated Flow Dispersion | BT44: =IF(BZ44,IF(CA44,"Infeasible","Feasibility"),"NoEval") -> Feasibility | BU44: =IF(OR(P44="",BX44),FALSE,OR(NOT(BZ44),BV44)) -> FALSE | BV44: =P44="Infeasible" -> FALSE | BW44: =AND(BV44,NOT(W44="")) -> FALSE | BX44: =P44="Use BMP" -> FALSE | BY44: =BX42 -> FALSE | BZ44: =INDEX(CB44:CG44,MATCH($BZ$2,$CB$2:$CG$2,0)) -> TRUE | CA44: =Dispersion -> FALSE | CB44: FALSE | CC44: FALSE | CD44: FALSE | CE44: TRUE | CF44: TRUE | CG44: TRUE

Sheet Lookup (hidden)
A1: Project Type | B1: Surface Type | C1: BMP Feasibility | D1: Ponding Depths | E1: Side slopes | F1: YesNo | G1: Check | H1: No Eval | I1: Drainage Basin | J1: Basin + Capacity Constrained | K1: On-Site List Lookup Column | L1: Sheet Name | M1: Infeasible Infiltration | N1: Flow Control Std | O1: Empty List | P1: Environmentally Critical Areas | Q1: Dispersion Infeasible | R1: Infiltration Investigation No | S1: Infiltration Investigation Yes | T1: Infiltration Infeasible | U1: ROW Surface List | V1: Approved Point of Stormwater Discharge | W1: Approved Point of Sub Discharge | X1: Approved Point of Wastewater Discharge | Y1: Does Not Apply
A2: Single-Family Residential | B2: Roof | C2: - | D2: 6 | E2: Vertical | F2: Yes | H2: Not Evaluated | I2: Listed Creek Basin | J2: Listed Creek BasinYes | K2: 1 | L2: SFR | M2: Infeasible | N2: Pre-Developed Pasture Standard | O2: ="" ->  | P2: No | Q2: Site cannot meet required horizontal setbacks | R2: Site is mapped as "infltr. investigation not required" | S2: Simple infiltration test | T2: Site cannot meet required horizontal setbacks | U2: ROW | V2: Public Storm Drain Main | W2: Public Storm Drain Main | X2: Public Sanitary Sewer Main | Y2: Does Not Apply for Roadway or Trail and Sidewalk projects
A3: Trail and Sidewalk | B3: Non-Roof | C3: Infeasible | D3: 12 | E3: 3H:1V | F3: No | G3: ✓ | H3: Evaluation not required for roof. | I3: Non-listed Creek Basin | J3: Non-listed Creek BasinYes | K3: 1 | L3: Trail | M3: Infiltration is infeasible on site. | N3: Peak Control Standard | P3: Geologic Hazard/ Steep Slope Area | Q3: Site constraints make dispersion infeasible | R3: Other | S3: Small PIT test | T3: Site cannot meet required vertical separation requirements | U3: Alley | V3: Drainage Ditch | W3: Drainage Ditch | X3: Public Combined Sewer Main
A4: Parcel-Based | C4: Use BMP | H4: Evaluation not required for other surfaces. | I4: Designated Receiving Water | J4: Designated Receiving WaterYes | K4: 2 | L4: Parcel | M4: Dispersion is infeasible | N4: Pre-Developed Pasture and Peak Control Standard | P4: Flood-prone Area | Q4: Site cannot meet flow path requirements | S4: Large PIT test | T4: Site constraints make infiltration infeasible | U4: Arterial Street or Collector | V4: Drainage Culvert | W4: Drainage Culvert | X4: Existing Septic System (King County Public Health Department Approval Required)
A5: Roadway | C5: Not Evaluated | I5: Combined Sewer Service Area | J5: Combined Sewer Service AreaYes | K5: 2 | L5: Road | N5: Pre-Developed Forest Standard | P5: Wetland | Q5: One or more of the infeasibility criteria for “All Dispersion BMPs” (Appendix C, Table C.1) apply. | S5: Deep infiltration test | T5: Measured infl rate is less than 0.3 inch/hour | U5: Roadway | V5: Curb Weep Hole | W5: Direct to Receiving Water
C6: None Feasible | I6: Small Lake Basins | J6: Small Lake BasinsYes | K6: 1 | N6: Pre-Developed Forest and Peak Control Standard | P6: Fish and Wildlife Conservation Area | T6: Infeasibility criteria for “All Infiltration BMPs” applies | U6: Other | V6: Alley Surface Drain | W6: Wetland
I7: Wetland | J7: WetlandYes | K7: 1 | P7: Abandoned Landfill | T7: Site is mapped as "infltr. investigation not required" | V7: Direct to Receiving Water | W7: Public Combined Sewer Main
I8: N/A for Single Family Projects | J8: Listed Creek BasinNo | K8: 1 | V8: Wetland | W8: “Formerly Combined” Public Sanitary Sewer or Infiltration on the Site
J9: Non-listed Creek BasinNo | K9: 1 | V9: Public Combined Sewer Main | W9: On Site Infiltration
J10: Designated Receiving WaterNo | K10: 3 | V10: “Formerly Combined” Public Sanitary Sewer
J11: Combined Sewer Service AreaNo | K11: 2 | V11: On Site Infiltration (For Small Projects Only)
J12: Small Lake BasinsNo | K12: 1 | V12: Other
J13: WetlandNo | K13: 1
J14: Listed Creek Basin | K14: 1
J15: Non-listed Creek Basin | K15: 1
J16: Designated Receiving Water | K16: 3
J17: Combined Sewer Service Area | K17: 2
J18: Small Lake Basins | K18: 1
J19: Wetland | K19: 1
A20: Full Dispersion | B20: Infiltration Trench | C20: Dry Well | D20: Rain Garden | E20: Infiltrating Bioretention | F20: Rainwater Harvesting | G20: Permeable Pavement Facility | H20: Permeable Pavement Surface | I20: Sheet Flow Dispersion | J20: Concentrated Dispersion | K20: Splashblock Downspout Dispersion | L20: Trench Downspout Dispersion | M20: Non-Infiltrating Bioretention | N20: Vegetated Roof | O20: Single-family Residential Cisterns | P20: Perforated Stub-out Connection | Q20: New or Retained Trees
A21: Full Dispersion | B21: Infiltration Trench #1 | C21: Dry Well #1 | D21: Rain Garden #1 | E21: Infiltrating Bioretention #1 | F21: Rainwater Harvesting | G21: Permeable Pavement Facility #1 | H21: Permeable Pavement Surface #1 | I21: Sheet Flow Dispersion | J21: Concentrated Flow Dispersion | K21: Splashblock Downspout Dispersion | L21: Trench Downspout Dispersion | M21: Non-Infiltrating Bioretention #1 | N21: Vegetated Roof System #1 | O21: Single-family Residential Cisterns #1 | P21: Perforated Stub-out Connection | Q21: New or Retained Trees #1
B22: Infiltration Trench #2 | C22: Dry Well #2 | D22: Rain Garden #2 | E22: Infiltrating Bioretention #2 | G22: Permeable Pavement Facility #2 | H22: Permeable Pavement Surface #2 | M22: Non-Infiltrating Bioretention #2 | N22: Vegetated Roof System #2 | O22: Single-family Residential Cisterns #2 | Q22: New or Retained Trees #2
B23: Infiltration Trench #3 | C23: Dry Well #3 | D23: Rain Garden #3 | E23: Infiltrating Bioretention #3 | G23: Permeable Pavement Facility #3 | H23: Permeable Pavement Surface #3 | M23: Non-Infiltrating Bioretention #3 | N23: Vegetated Roof System #3 | O23: Single-family Residential Cisterns #3 | Q23: New or Retained Trees #3
B24: Infiltration Trench #4 | C24: Dry Well #4 | D24: Rain Garden #4 | E24: Infiltrating Bioretention #4 | G24: Permeable Pavement Facility #4 | H24: Permeable Pavement Surface #4 | M24: Non-Infiltrating Bioretention #4 | N24: Vegetated Roof System #4 | O24: Single-family Residential Cisterns #4 | Q24: New or Retained Trees #4
B25: Infiltration Trench #5 | C25: Dry Well #5 | D25: Rain Garden #5 | E25: Infiltrating Bioretention #5 | G25: Permeable Pavement Facility #5 | H25: Permeable Pavement Surface #5 | M25: Non-Infiltrating Bioretention #5 | N25: Vegetated Roof System #5 | O25: Single-family Residential Cisterns #5 | Q25: New or Retained Trees #5
B26: Infiltration Trench #6 | C26: Dry Well #6 | D26: Rain Garden #6 | E26: Infiltrating Bioretention #6 | G26: Permeable Pavement Facility #6 | H26: Permeable Pavement Surface #6 | M26: Non-Infiltrating Bioretention #6 | N26: Vegetated Roof System #6 | O26: Single-family Residential Cisterns #6 | Q26: New or Retained Trees #6
B27: Infiltration Trench #7 | C27: Dry Well #7 | D27: Rain Garden #7 | E27: Infiltrating Bioretention #7 | G27: Permeable Pavement Facility #7 | H27: Permeable Pavement Surface #7 | M27: Non-Infiltrating Bioretention #7 | N27: Vegetated Roof System #7 | O27: Single-family Residential Cisterns #7 | Q27: New or Retained Trees #7
B28: Infiltration Trench #8 | C28: Dry Well #8 | D28: Rain Garden #8 | E28: Infiltrating Bioretention #8 | G28: Permeable Pavement Facility #8 | H28: Permeable Pavement Surface #8 | M28: Non-Infiltrating Bioretention #8 | N28: Vegetated Roof System #8 | O28: Single-family Residential Cisterns #8 | Q28: New or Retained Trees #8
B29: Infiltration Trench #9 | C29: Dry Well #9 | D29: Rain Garden #9 | E29: Infiltrating Bioretention #9 | G29: Permeable Pavement Facility #9 | H29: Permeable Pavement Surface #9 | M29: Non-Infiltrating Bioretention #9 | N29: Vegetated Roof System #9 | O29: Single-family Residential Cisterns #9 | Q29: New or Retained Trees #9
B30: Infiltration Trench #10 | C30: Dry Well #10 | D30: Rain Garden #10 | E30: Infiltrating Bioretention #10 | G30: Permeable Pavement Facility #10 | H30: Permeable Pavement Surface #10 | M30: Non-Infiltrating Bioretention #10 | N30: Vegetated Roof System #10 | O30: Single-family Residential Cisterns #10 | Q30: New or Retained Trees #10
B31: Infiltration Trench #11 | C31: Dry Well #11 | D31: Rain Garden #11 | E31: Infiltrating Bioretention #11 | G31: Permeable Pavement Facility #11 | H31: Permeable Pavement Surface #11 | M31: Non-Infiltrating Bioretention #11 | N31: Vegetated Roof System #11 | O31: Single-family Residential Cisterns #11 | Q31: New or Retained Trees #11
B32: Infiltration Trench #12 | C32: Dry Well #12 | D32: Rain Garden #12 | E32: Infiltrating Bioretention #12 | G32: Permeable Pavement Facility #12 | H32: Permeable Pavement Surface #12 | M32: Non-Infiltrating Bioretention #12 | N32: Vegetated Roof System #12 | O32: Single-family Residential Cisterns #12 | Q32: New or Retained Trees #12
B33: Infiltration Trench #13 | C33: Dry Well #13 | D33: Rain Garden #13 | E33: Infiltrating Bioretention #13 | G33: Permeable Pavement Facility #13 | H33: Permeable Pavement Surface #13 | M33: Non-Infiltrating Bioretention #13 | N33: Vegetated Roof System #13 | O33: Single-family Residential Cisterns #13 | Q33: New or Retained Trees #13
B34: Infiltration Trench #14 | C34: Dry Well #14 | D34: Rain Garden #14 | E34: Infiltrating Bioretention #14 | G34: Permeable Pavement Facility #14 | H34: Permeable Pavement Surface #14 | M34: Non-Infiltrating Bioretention #14 | N34: Vegetated Roof System #14 | O34: Single-family Residential Cisterns #14 | Q34: New or Retained Trees #14
B35: Infiltration Trench #15 | C35: Dry Well #15 | D35: Rain Garden #15 | E35: Infiltrating Bioretention #15 | G35: Permeable Pavement Facility #15 | H35: Permeable Pavement Surface #15 | M35: Non-Infiltrating Bioretention #15 | N35: Vegetated Roof System #15 | O35: Single-family Residential Cisterns #15 | Q35: New or Retained Trees #15
B36: Infiltration Trench #16 | C36: Dry Well #16 | D36: Rain Garden #16 | E36: Infiltrating Bioretention #16 | G36: Permeable Pavement Facility #16 | H36: Permeable Pavement Surface #16 | M36: Non-Infiltrating Bioretention #16 | N36: Vegetated Roof System #16 | O36: Single-family Residential Cisterns #16 | Q36: New or Retained Trees #16
B37: Infiltration Trench #17 | C37: Dry Well #17 | D37: Rain Garden #17 | E37: Infiltrating Bioretention #17 | G37: Permeable Pavement Facility #17 | H37: Permeable Pavement Surface #17 | M37: Non-Infiltrating Bioretention #17 | N37: Vegetated Roof System #17 | O37: Single-family Residential Cisterns #17 | Q37: New or Retained Trees #17
B38: Infiltration Trench #18 | C38: Dry Well #18 | D38: Rain Garden #18 | E38: Infiltrating Bioretention #18 | G38: Permeable Pavement Facility #18 | H38: Permeable Pavement Surface #18 | M38: Non-Infiltrating Bioretention #18 | N38: Vegetated Roof System #18 | O38: Single-family Residential Cisterns #18 | Q38: New or Retained Trees #18
B39: Infiltration Trench #19 | C39: Dry Well #19 | D39: Rain Garden #19 | E39: Infiltrating Bioretention #19 | G39: Permeable Pavement Facility #19 | H39: Permeable Pavement Surface #19 | M39: Non-Infiltrating Bioretention #19 | N39: Vegetated Roof System #19 | O39: Single-family Residential Cisterns #19 | Q39: New or Retained Trees #19
B40: Infiltration Trench #20 | C40: Dry Well #20 | D40: Rain Garden #20 | E40: Infiltrating Bioretention #20 | G40: Permeable Pavement Facility #20 | H40: Permeable Pavement Surface #20 | M40: Non-Infiltrating Bioretention #20 | N40: Vegetated Roof System #20 | O40: Single-family Residential Cisterns #20 | Q40: New or Retained Trees #20
B42: List 1 | C42: List 1 | D42: List 1 | E42: List 1 | G42: List 1 | M42: List 1 | N42: List 1 | Q42: List 1
B43: 18 | C43: 4 | D43: 2 | E43: 2 | G43: 6 | M43: 2 | N43: Single-Course | Q43: New Deciduous
B44: 36 | D44: 6 | E44: 6 | G44: 12 | M44: 6 | N44: Multi-Course | Q44: New Evergreen
E45: 12 | M45: 12 | Q45: Retain Deciduous
D46: List 2 | E46: List 2 | G46: List 2 | M46: List 2 | N46: List 2 | Q46: Retain Evergreen
D47: Sloped sides | E47: Sloped sides | G47: 0% | M47: Sloped sides | N47: 4
D48: Vertical sides | E48: Vertical sides | G48: 5% | M48: Vertical sides | N48: 8 | Q48: List 2
G49: 10% | Q49: 1
E50: List 3 | G50: 15% | N50: List 3 | Q50: 2
E51: Underdrain | G51: 20% | Q51: 3
E52: No Underdrain | G52: 25% | Q52: 4
G53: 30% | Q53: 5
G54: 35% | Q54: 6
G55: 40% | Q55: 7
G56: 45% | Q56: 8
G57: 50% | Q57: 9
G58: 55% | Q58: 10
G59: 60% | Q59: 11
G60: 65% | Q60: 12
G61: 70% | Q61: 13
G62: 75% | Q62: 14
G63: 80% | Q63: 15
G64: 85% | Q64: 16
G65: 90% | Q65: 17
G66: 95% | Q66: 18
G67: 100% | Q67: 19
Q68: 20
A69: BMPs | B69: List More than One BMP option | C69: Sizing Input 1 | D69: Sizing Input 2 | E69: Sizing Input 3 | F69: Units 1 | G69: Units 2 | H69: Infiltrating BMP | Q69: 21
A70: Full Dispersion | B70: FALSE | C70: =NA() ->  | D70: =NA() ->  | E70: =NA() ->  | F70: =NA() ->  | G70: =NA() ->  | H70: FALSE | Q70: 22
A71: Infiltration Trench | B71: TRUE | C71: =NA() ->  | D71: =NA() ->  | E71: =NA() ->  | F71: =NA() ->  | G71: =NA() ->  | H71: TRUE | Q71: 23
A72: Dry Well | B72: TRUE | C72: Aggregate Depth (ft) | D72: =NA() ->  | E72: =NA() ->  | F72: ft | G72: =NA() ->  | H72: TRUE | Q72: 24
A73: Rain Garden | B73: TRUE | C73: Ponding Depth (inch) | D73: Sideslopes | E73: =NA() ->  | F73: inch | G73: =NA() ->  | H73: TRUE | Q73: 25
A74: Infiltrating Bioretention | B74: TRUE | C74: Ponding Depth (inch) | D74: Sideslopes | E74: Underdrain | F74: inch | G74: =NA() ->  | H74: TRUE | Q74: 26
A75: Rainwater Harvesting | B75: FALSE | C75: =NA() ->  | D75: =NA() ->  | E75: =NA() ->  | F75: =NA() ->  | G75: =NA() ->  | H75: FALSE | Q75: 27
A76: Permeable Pavement Facility | B76: TRUE | C76: Avg. Storage Depth (inch) | D76: % Pollution Generating | E76: =NA() ->  | F76: inch | G76: PGHS | H76: TRUE | Q76: 28
A77: Permeable Pavement Surface | B77: TRUE | C77: =NA() ->  | D77: =NA() ->  | E77: =NA() ->  | F77: =NA() ->  | G77: =NA() ->  | H77: FALSE | Q77: 29
A78: Sheet Flow Dispersion | B78: FALSE | C78: =NA() ->  | D78: =NA() ->  | E78: =NA() ->  | F78: =NA() ->  | G78: =NA() ->  | H78: FALSE | Q78: 30
A79: Concentrated Flow Dispersion | B79: FALSE | C79: =NA() ->  | D79: =NA() ->  | E79: =NA() ->  | F79: =NA() ->  | G79: =NA() ->  | H79: FALSE | Q79: 31
A80: Splashblock Downspout Dispersion | B80: FALSE | C80: =NA() ->  | D80: =NA() ->  | E80: =NA() ->  | F80: =NA() ->  | G80: =NA() ->  | H80: FALSE | Q80: 32 | AS80: =INDEX(Lookup!$L$2:$L$5,MATCH(L219,Project&" - "&#REF!)) -> 
A81: Trench Downspout Dispersion | B81: FALSE | C81: =NA() ->  | D81: =NA() ->  | E81: =NA() ->  | F81: =NA() ->  | G81: =NA() ->  | H81: FALSE | Q81: 33
A82: Non-Infiltrating Bioretention | B82: TRUE | C82: Ponding Depth (inch) | D82: Sideslopes | E82: =NA() ->  | F82: inch | G82: =NA() ->  | H82: FALSE | Q82: 34
A83: Vegetated Roof System | B83: TRUE | C83: Course | D83: Media Depth (inch) | E83: =NA() ->  | F83: =NA() ->  | G83: inch | H83: FALSE | Q83: 35
A84: Perforated Stub-out Connection | B84: FALSE | C84: =NA() ->  | D84: =NA() ->  | E84: =NA() ->  | F84: =NA() ->  | G84: =NA() ->  | H84: TRUE | Q84: 36
A85: Single-family Residential Cisterns | B85: TRUE | C85: =NA() ->  | D85: =NA() ->  | E85: =NA() ->  | F85: =NA() ->  | G85: =NA() ->  | H85: FALSE | Q85: 37
A86: New or Retained Trees | B86: TRUE | C86: Type | D86: Number | E86: =NA() ->  | F86: =NA() ->  | G86: =NA() ->  | H86: FALSE | Q86: 38
A87: None Feasible | B87: FALSE | H87: FALSE | Q87: 39
Q88: 40
A89: BMP | B89: List 1 | C89: List 2 | D89: List 3 | E89: Combined Lookup | F89: Sizing Factor | G89: Volume Managed CF/SF | H89: Facility Units | I89: Notes | Q89: 41
A90: Full Dispersion | E90: =TRIM(CONCATENATE(A90,B90,C90,D90)) -> Full Dispersion | F90: =NA() ->  | G90: =2.1*0.768 -> 1.6128 | Q90: 42
A91: Infiltration Trench | E91: =TRIM(CONCATENATE(A91,B91,C91,D91)) -> Infiltration Trench | F91: =IF(InfRate<1,0,IF(InfRate<2.5,0.15,IF(InfRate<5,0.105,IF(InfRate<7.5,0.057,IF(InfRate<10,0.048,0.04))))) -> 0 | G91: =IF(F91=0,NA(),2.3*0.8108811) ->  | H91: sf | I91: Volume Managed modeling done specifically for tool. See Volume Managed.xlsx. 1.5' Trench, 0.25 in/hr. | Q91: 43
A92: Dry Well | B92: 4 | E92: Dry Well4 | F92: =IF(InfRate<2.5,0,IF(InfRate<5,0.024,IF(InfRate<7.5,0.024,IF(InfRate<10,0.023,0.021)))) -> 0 | G92: =IF(F92=0,NA(),2.1*0.8149233) ->  | H92: sf | I92: Modeling done specifically for tool. See Volume Managed.xlsx. 4' Drywell, 0.25 in/hr. | Q92: 44
A93: Rain Garden | B93: 2 | C93: Sloped sides | E93: Rain Garden2Sloped sides | F93: =IF(InfRate<0.15,0,IF(InfRate<0.3,0.08, IF(InfRate<0.6,0.047,0.045))) -> 0 | G93: =IF(F93=0,NA(),2.1*0.864) ->  | H93: sf | Q93: 45
A94: Rain Garden | B94: 6 | C94: Sloped sides | E94: Rain Garden6Sloped sides | F94: =IF(InfRate<0.3,0,0.035) -> 0 | G94: =IF(F94=0,NA(),2.1*0.864) ->  | H94: sf
A95: Rain Garden | B95: 2 | C95: Vertical sides | E95: Rain Garden2Vertical sides | F95: -999 | G95: =NA() ->  | H95: sf
A96: Rain Garden | B96: 6 | C96: Vertical sides | E96: Rain Garden6Vertical sides | F96: =IF(InfRate<0.3,0,IF(InfRate<0.6,0.053,0.05)) -> 0 | G96: =IF(F96=0,NA(),2.1*0.844) ->  | H96: sf
A97: Infiltrating Bioretention | B97: 2 | C97: Sloped sides | D97: No Underdrain | E97: Infiltrating Bioretention2Sloped sidesNo Underdrain | F97: =IF(InfRate<0.3,0,IF(InfRate<0.6,0.047,0.045)) -> 0 | G97: =IF(F97=0,NA(),2.1*0.864) ->  | H97: sf
A98: Infiltrating Bioretention | B98: 6 | C98: Sloped sides | D98: No Underdrain | E98: Infiltrating Bioretention6Sloped sidesNo Underdrain | F98: =IF(InfRate<0.3,0,0.035) -> 0 | G98: =IF(F98=0,NA(),2.1*0.864) ->  | H98: sf
A99: Infiltrating Bioretention | B99: 12 | C99: Sloped sides | D99: No Underdrain | E99: Infiltrating Bioretention12Sloped sidesNo Underdrain | F99: =IF(InfRate<0.6,0,0.023) -> 0 | G99: =IF(F99=0,NA(),2.1*0.864) ->  | H99: sf
A100: Infiltrating Bioretention | B100: 2 | C100: Vertical sides | D100: No Underdrain | E100: Infiltrating Bioretention2Vertical sidesNo Underdrain | F100: -999 | G100: =NA() ->  | H100: sf
A101: Infiltrating Bioretention | B101: 6 | C101: Vertical sides | D101: No Underdrain | E101: Infiltrating Bioretention6Vertical sidesNo Underdrain | F101: =IF(InfRate<0.3,0,IF(InfRate<0.6,0.053,0.05)) -> 0 | G101: =IF(OR(F101=0,F101=-999),NA(),2.1*0.844) ->  | H101: sf
A102: Infiltrating Bioretention | B102: 12 | C102: Vertical sides | D102: No Underdrain | E102: Infiltrating Bioretention12Vertical sidesNo Underdrain | F102: =IF(InfRate<0.6,0,0.05) -> 0 | G102: =IF(F102=0,NA(),2.1*0.844) ->  | H102: sf
A103: Infiltrating Bioretention | B103: 2 | C103: Sloped sides | D103: Underdrain | E103: Infiltrating Bioretention2Sloped sidesUnderdrain | F103: =IF(InfRate<0.15,0,IF(InfRate<0.3,0.089,IF(InfRate<0.6,0.052,0.05))) -> 0 | G103: =IF(F103=0,NA(),2.1*0.864) ->  | H103: sf
A104: Infiltrating Bioretention | B104: 6 | C104: Sloped sides | D104: Underdrain | E104: Infiltrating Bioretention6Sloped sidesUnderdrain | F104: =IF(InfRate<0.3,0,0.039) -> 0 | G104: =IF(F104=0,NA(),2.1*0.864) ->  | H104: sf
A105: Infiltrating Bioretention | B105: 12 | C105: Sloped sides | D105: Underdrain | E105: Infiltrating Bioretention12Sloped sidesUnderdrain | F105: =IF(InfRate<0.6,0,0.026) -> 0 | G105: =IF(F105=0,NA(),2.1*0.864) ->  | H105: sf
A106: Infiltrating Bioretention | B106: 2 | C106: Vertical sides | D106: Underdrain | E106: Infiltrating Bioretention2Vertical sidesUnderdrain | F106: -999 | G106: =NA() ->  | H106: sf
A107: Infiltrating Bioretention | B107: 6 | C107: Vertical sides | D107: Underdrain | E107: Infiltrating Bioretention6Vertical sidesUnderdrain | F107: =IF(InfRate<0.3,0,IF(InfRate<0.6,0.059,0.056)) -> 0 | G107: =IF(OR(F107=0,F107=-999),NA(),2.1*0.844) ->  | H107: sf
A108: Infiltrating Bioretention | B108: 12 | C108: Vertical sides | D108: Underdrain | E108: Infiltrating Bioretention12Vertical sidesUnderdrain | F108: =IF(InfRate<0.6,0,0.056) -> 0 | G108: =IF(F108=0,NA(),2.1*0.844) ->  | H108: sf
A109: Rainwater Harvesting | E109: Rainwater Harvesting | F109: =NA() ->  | G109: =NA() -> 
A110: Permeable Pavement Facility | B110: 6 | C110: 0% | E110: Permeable Pavement Facility60% | F110: =0.3*C110+0.2 -> 0.2 | G110: =2.1 -> 2.1 | H110: sf | I110: Area weighted sizing factor. 50% for PGHS, 20% for Non-PGHS
A111: Permeable Pavement Facility | B111: 6 | C111: 5% | E111: Permeable Pavement Facility65% | F111: =0.3*C111+0.2 -> 0.215 | G111: =2.1 -> 2.1 | H111: sf
A112: Permeable Pavement Facility | B112: 6 | C112: 10% | E112: Permeable Pavement Facility610% | F112: 0.23 | G112: =2.1 -> 2.1 | H112: sf
A113: Permeable Pavement Facility | B113: 6 | C113: 15% | E113: Permeable Pavement Facility615% | F113: 0.245 | G113: 2.1 | H113: sf
A114: Permeable Pavement Facility | B114: 6 | C114: 20% | E114: Permeable Pavement Facility620% | F114: 0.26 | G114: 2.1 | H114: sf
A115: Permeable Pavement Facility | B115: 6 | C115: 25% | E115: Permeable Pavement Facility625% | F115: 0.275 | G115: 2.1 | H115: sf
A116: Permeable Pavement Facility | B116: 6 | C116: 30% | E116: Permeable Pavement Facility630% | F116: 0.29 | G116: 2.1 | H116: sf
A117: Permeable Pavement Facility | B117: 6 | C117: 35% | E117: Permeable Pavement Facility635% | F117: 0.305 | G117: 2.1 | H117: sf
A118: Permeable Pavement Facility | B118: 6 | C118: 40% | E118: Permeable Pavement Facility640% | F118: 0.32 | G118: 2.1 | H118: sf
A119: Permeable Pavement Facility | B119: 6 | C119: 45% | E119: Permeable Pavement Facility645% | F119: 0.335 | G119: 2.1 | H119: sf
A120: Permeable Pavement Facility | B120: 6 | C120: 50% | E120: Permeable Pavement Facility650% | F120: 0.35 | G120: 2.1 | H120: sf
A121: Permeable Pavement Facility | B121: 6 | C121: 55% | E121: Permeable Pavement Facility655% | F121: 0.365 | G121: 2.1 | H121: sf
A122: Permeable Pavement Facility | B122: 6 | C122: 60% | E122: Permeable Pavement Facility660% | F122: 0.38 | G122: 2.1 | H122: sf
A123: Permeable Pavement Facility | B123: 6 | C123: 65% | E123: Permeable Pavement Facility665% | F123: 0.395 | G123: 2.1 | H123: sf
A124: Permeable Pavement Facility | B124: 6 | C124: 70% | E124: Permeable Pavement Facility670% | F124: 0.41 | G124: 2.1 | H124: sf
A125: Permeable Pavement Facility | B125: 6 | C125: 75% | E125: Permeable Pavement Facility675% | F125: 0.425 | G125: 2.1 | H125: sf
A126: Permeable Pavement Facility | B126: 6 | C126: 80% | E126: Permeable Pavement Facility680% | F126: 0.44 | G126: 2.1 | H126: sf
A127: Permeable Pavement Facility | B127: 6 | C127: 85% | E127: Permeable Pavement Facility685% | F127: 0.455 | G127: 2.1 | H127: sf
A128: Permeable Pavement Facility | B128: 6 | C128: 90% | E128: Permeable Pavement Facility690% | F128: 0.47 | G128: 2.1 | H128: sf
A129: Permeable Pavement Facility | B129: 6 | C129: 95% | E129: Permeable Pavement Facility695% | F129: 0.485 | G129: 2.1 | H129: sf
A130: Permeable Pavement Facility | B130: 6 | C130: 100% | E130: Permeable Pavement Facility6100% | F130: 0.5 | G130: 2.1 | H130: sf
A131: Permeable Pavement Facility | B131: 12 | C131: 0% | E131: Permeable Pavement Facility120% | F131: =0.3*C131+0.2 -> 0.2 | G131: =2.1 -> 2.1 | H131: sf
A132: Permeable Pavement Facility | B132: 12 | C132: 5% | E132: Permeable Pavement Facility125% | F132: =0.3*C132+0.2 -> 0.215 | G132: =2.1 -> 2.1 | H132: sf
A133: Permeable Pavement Facility | B133: 12 | C133: 10% | E133: Permeable Pavement Facility1210% | F133: 0.23 | G133: =2.1 -> 2.1 | H133: sf
A134: Permeable Pavement Facility | B134: 12 | C134: 15% | E134: Permeable Pavement Facility1215% | F134: 0.245 | G134: 2.1 | H134: sf
A135: Permeable Pavement Facility | B135: 12 | C135: 20% | E135: Permeable Pavement Facility1220% | F135: 0.26 | G135: 2.1 | H135: sf
A136: Permeable Pavement Facility | B136: 12 | C136: 25% | E136: Permeable Pavement Facility1225% | F136: 0.275 | G136: 2.1 | H136: sf
A137: Permeable Pavement Facility | B137: 12 | C137: 30% | E137: Permeable Pavement Facility1230% | F137: 0.29 | G137: 2.1 | H137: sf
A138: Permeable Pavement Facility | B138: 12 | C138: 35% | E138: Permeable Pavement Facility1235% | F138: 0.305 | G138: 2.1 | H138: sf
A139: Permeable Pavement Facility | B139: 12 | C139: 40% | E139: Permeable Pavement Facility1240% | F139: 0.32 | G139: 2.1 | H139: sf
A140: Permeable Pavement Facility | B140: 12 | C140: 45% | E140: Permeable Pavement Facility1245% | F140: 0.335 | G140: 2.1 | H140: sf
A141: Permeable Pavement Facility | B141: 12 | C141: 50% | E141: Permeable Pavement Facility1250% | F141: 0.35 | G141: 2.1 | H141: sf
A142: Permeable Pavement Facility | B142: 12 | C142: 55% | E142: Permeable Pavement Facility1255% | F142: 0.365 | G142: 2.1 | H142: sf
A143: Permeable Pavement Facility | B143: 12 | C143: 60% | E143: Permeable Pavement Facility1260% | F143: 0.38 | G143: 2.1 | H143: sf
A144: Permeable Pavement Facility | B144: 12 | C144: 65% | E144: Permeable Pavement Facility1265% | F144: 0.395 | G144: 2.1 | H144: sf
A145: Permeable Pavement Facility | B145: 12 | C145: 70% | E145: Permeable Pavement Facility1270% | F145: 0.41 | G145: 2.1 | H145: sf
A146: Permeable Pavement Facility | B146: 12 | C146: 75% | E146: Permeable Pavement Facility1275% | F146: 0.425 | G146: 2.1 | H146: sf
A147: Permeable Pavement Facility | B147: 12 | C147: 80% | E147: Permeable Pavement Facility1280% | F147: 0.44 | G147: 2.1 | H147: sf
A148: Permeable Pavement Facility | B148: 12 | C148: 85% | E148: Permeable Pavement Facility1285% | F148: 0.455 | G148: 2.1 | H148: sf
A149: Permeable Pavement Facility | B149: 12 | C149: 90% | E149: Permeable Pavement Facility1290% | F149: 0.47 | G149: 2.1 | H149: sf
A150: Permeable Pavement Facility | B150: 12 | C150: 95% | E150: Permeable Pavement Facility1295% | F150: 0.485 | G150: 2.1 | H150: sf
A151: Permeable Pavement Facility | B151: 12 | C151: 100% | E151: Permeable Pavement Facility12100% | F151: 0.5 | G151: 2.1 | H151: sf
A152: Permeable Pavement Surface | E152: Permeable Pavement Surface | F152: 1 | G152: =2.1*(1+0.85)/2 -> 1.9425 | H152: sf
A153: Sheet Flow Dispersion | E153: Sheet Flow Dispersion | F153: =NA() ->  | G153: =2.1*0.768 -> 1.6128
A154: Concentrated Dispersion | E154: Concentrated Dispersion | F154: =NA() ->  | G154: =2.1*0.768 -> 1.6128
A155: Splashblock Downspout Dispersion | E155: =TRIM(CONCATENATE(A155,B155,C155,D155)) -> Splashblock Downspout Dispersion | F155: =NA() ->  | G155: =2.1*0.768 -> 1.6128
A156: Trench Downspout Dispersion | E156: Trench Downspout Dispersion | F156: =NA() ->  | G156: =2.1*0.768 -> 1.6128
A157: Non-Infiltrating Bioretention | B157: 2 | C157: Sloped sides | E157: Non-Infiltrating Bioretention2Sloped sides | F157: 0.05 | G157: =0.46*2.1 -> 0.966 | H157: sf
A158: Non-Infiltrating Bioretention | B158: 2 | C158: Vertical sides | E158: Non-Infiltrating Bioretention2Vertical sides | F158: -999 | G158: =NA() ->  | H158: sf
A159: Non-Infiltrating Bioretention | B159: 6 | C159: Sloped sides | E159: Non-Infiltrating Bioretention6Sloped sides | F159: 0.039 | G159: =0.46*2.1 -> 0.966 | H159: sf
A160: Non-Infiltrating Bioretention | B160: 6 | C160: Vertical sides | E160: Non-Infiltrating Bioretention6Vertical sides | F160: 0.056 | G160: 0.966 | H160: sf
A161: Non-Infiltrating Bioretention | B161: 12 | C161: Sloped sides | E161: Non-Infiltrating Bioretention12Sloped sides | F161: 0.026 | G161: 0.966 | H161: sf
A162: Non-Infiltrating Bioretention | B162: 12 | C162: Vertical sides | E162: Non-Infiltrating Bioretention12Vertical sides | F162: 0.056 | G162: 0.966 | H162: sf
A163: Vegetated Roof System | B163: Single-Course | C163: 4 | E163: Vegetated Roof SystemSingle-Course4 | F163: 0.8 | G163: =2.1*0.458 -> 0.9618 | H163: sf
A164: Vegetated Roof System | B164: Multi-Course | C164: 4 | E164: Vegetated Roof SystemMulti-Course4 | F164: 0.8 | G164: =2.1*0.458 -> 0.9618 | H164: sf
A165: Vegetated Roof System | B165: Single-Course | C165: 8 | E165: Vegetated Roof SystemSingle-Course8 | F165: 0.8 | G165: =2.1*0.458 -> 0.9618 | H165: sf
A166: Vegetated Roof System | B166: Multi-Course | C166: 8 | E166: Vegetated Roof SystemMulti-Course8 | F166: 0.8 | G166: =2.1*0.458 -> 0.9618 | H166: sf
A167: Perforated Stub-out Connection | E167: Perforated Stub-out Connection | F167: =NA() ->  | G167: =2.1*IF(InfRate<0.05,0.07,IF(InfRate<0.15,0.13,0.18)) -> 0.147 | I167: From meghan modeling for perf stub outs 09/28/2015
A168: Single-family Residential Cisterns | B168: 0 | E168: Single-family Residential Cisterns0 | F168: 0 | G168: 0 | H168: sf
A169: Single-family Residential Cisterns | B169: 400 | E169: Single-family Residential Cisterns400 | F169: 0.036 | G169: =2.1*0.95 -> 1.995 | H169: min. 3 ft depth | I169: =RIGHT(H169,15) -> min. 3 ft depth
A170: Single-family Residential Cisterns | B170: 500 | E170: Single-family Residential Cisterns500 | F170: 0.036 | G170: 1.995 | H170: min. 3 ft depth
A171: Single-family Residential Cisterns | B171: 600 | E171: Single-family Residential Cisterns600 | F171: 0.036 | G171: 1.995 | H171: min. 3 ft depth
A172: Single-family Residential Cisterns | B172: 700 | E172: Single-family Residential Cisterns700 | F172: 0.036 | G172: 1.995 | H172: min. 3 ft depth
A173: Single-family Residential Cisterns | B173: 800 | E173: Single-family Residential Cisterns800 | F173: 0.028 | G173: 1.995 | H173: min. 4 ft depth
A174: Single-family Residential Cisterns | B174: 900 | E174: Single-family Residential Cisterns900 | F174: 0.024 | G174: 1.995 | H174: min. 4 ft depth
A175: Single-family Residential Cisterns | B175: 1000 | E175: Single-family Residential Cisterns1000 | F175: 0.02 | G175: 1.995 | H175: min. 4 ft depth
A176: Single-family Residential Cisterns | B176: 1100 | E176: Single-family Residential Cisterns1100 | F176: 0.017 | G176: 1.995 | H176: in.. 4 ft depth
A177: Single-family Residential Cisterns | B177: 1200 | E177: Single-family Residential Cisterns1200 | F177: 0.014 | G177: 1.995 | H177: min. 4 ft depth
A178: Single-family Residential Cisterns | B178: 1300 | E178: Single-family Residential Cisterns1300 | F178: 0.014 | G178: 1.995 | H178: min. 5 ft depth
A179: Single-family Residential Cisterns | B179: 1400 | E179: Single-family Residential Cisterns1400 | F179: 0.013 | G179: 1.995 | H179: min. 5 ft depth
A180: Single-family Residential Cisterns | B180: 1500 | E180: Single-family Residential Cisterns1500 | F180: 0.013 | G180: 1.995 | H180: min. 5 ft depth
A181: Single-family Residential Cisterns | B181: 1600 | E181: Single-family Residential Cisterns1600 | F181: 0.013 | G181: 1.995 | H181: min. 5 ft depth
A182: Single-family Residential Cisterns | B182: 1700 | E182: Single-family Residential Cisterns1700 | F182: 0.013 | G182: 1.995 | H182: min. 5 ft depth
A183: Single-family Residential Cisterns | B183: 1800 | E183: Single-family Residential Cisterns1800 | F183: 0.013 | G183: 1.995 | H183: min. 5 ft depth
A184: Single-family Residential Cisterns | B184: 1900 | E184: Single-family Residential Cisterns1900 | F184: 0.012 | G184: 1.995 | H184: min. 5 ft depth
A185: Single-family Residential Cisterns | B185: 2000 | E185: Single-family Residential Cisterns2000 | F185: 0.016 | G185: 1.995 | H185: min. 5 ft depth
A186: Single-family Residential Cisterns | B186: 2100 | E186: Single-family Residential Cisterns2100 | F186: 0.016 | G186: 1.995 | H186: min. 5 ft depth
A187: Single-family Residential Cisterns | B187: 2200 | E187: Single-family Residential Cisterns2200 | F187: 0.016 | G187: 1.995 | H187: min. 5 ft depth
A188: Single-family Residential Cisterns | B188: 2300 | E188: Single-family Residential Cisterns2300 | F188: 0.016 | G188: 1.995 | H188: min. 5 ft depth
A189: Single-family Residential Cisterns | B189: 2400 | E189: Single-family Residential Cisterns2400 | F189: 0.016 | G189: 1.995 | H189: min. 5 ft depth
A190: Single-family Residential Cisterns | B190: 2500 | E190: Single-family Residential Cisterns2500 | F190: 0.016 | G190: 1.995 | H190: min. 5 ft depth
A191: Single-family Residential Cisterns | B191: 2600 | E191: Single-family Residential Cisterns2600 | F191: 0.016 | G191: 1.995 | H191: min. 5 ft depth
A192: Single-family Residential Cisterns | B192: 2700 | E192: Single-family Residential Cisterns2700 | F192: 0.016 | G192: 1.995 | H192: min. 5 ft depth
A193: Single-family Residential Cisterns | B193: 2800 | E193: Single-family Residential Cisterns2800 | F193: 0.016 | G193: 1.995 | H193: min. 5 ft depth
A194: Single-family Residential Cisterns | B194: 2900 | E194: Single-family Residential Cisterns2900 | F194: 0.016 | G194: 1.995 | H194: min. 5 ft depth
A195: Single-family Residential Cisterns | B195: 3000 | E195: Single-family Residential Cisterns3000 | F195: 0.019 | G195: 1.995 | H195: min. 5 ft depth
A196: Single-family Residential Cisterns | B196: 3100 | E196: Single-family Residential Cisterns3100 | F196: 0.019 | G196: 1.995 | H196: min. 5 ft depth
A197: Single-family Residential Cisterns | B197: 3200 | E197: Single-family Residential Cisterns3200 | F197: 0.019 | G197: 1.995 | H197: min. 5 ft depth
A198: Single-family Residential Cisterns | B198: 3300 | E198: Single-family Residential Cisterns3300 | F198: 0.019 | G198: 1.995 | H198: min. 5 ft depth
A199: Single-family Residential Cisterns | B199: 3400 | E199: Single-family Residential Cisterns3400 | F199: 0.019 | G199: 1.995 | H199: min. 5 ft depth
A200: Single-family Residential Cisterns | B200: 3500 | E200: Single-family Residential Cisterns3500 | F200: 0.019 | G200: 1.995 | H200: min. 5 ft depth
A201: Single-family Residential Cisterns | B201: 3600 | E201: Single-family Residential Cisterns3600 | F201: 0.019 | G201: 1.995 | H201: min. 5 ft depth
... 46 more rows

Sheet log (hidden)

Sheet BMP Modeling (hidden)
A1: On-site Stormwater Management - List Approach Calculator
A2: BMP Modeling
A3: =Version -> Version 07-28-2017
B5: For the On-Site Performance Standard the modeling approach for each BMP design shall be applied. Refer to Section 4.1.3 and Appendix F in the Seattle Stormwater Manual for modeling requirements and guidelines.
A8: Surface | D8: Contributing Area (sf) | H8: BMP | O8: Facility Size | V8: Total Volume Infiltrated* | AC8: Describe BMP configuration and modeling assumptions
B10: 1 | D10: =IFERROR(INDEX('Project Summary'!$W$83:$W$84,MATCH(B10,'Project Summary'!$AS$83:$AS$84,0)),"") ->  | H10: =IFERROR(INDEX('Project Summary'!$AT$83:$AT$84,MATCH(B10,'Project Summary'!$AS$83:$AS$84,0)),"") ->  | T10: =IFERROR(IF(INDEX(Lookup!$H$90:$H$212,MATCH(H10,Lookup!$A$90:$A$212,0))=0,"",INDEX(Lookup!$H$90:$H$212,MATCH(H10,Lookup!$A$90:$A$212,0))),"") ->  | AA10: =IF(D10="","","cf") -> 
B12: 2 | D12: =IFERROR(INDEX('Project Summary'!$W$83:$W$84,MATCH(B12,'Project Summary'!$AS$83:$AS$84,0)),"") ->  | H12: =IFERROR(INDEX('Project Summary'!$AT$83:$AT$84,MATCH(B12,'Project Summary'!$AS$83:$AS$84,0)),"") ->  | T12: =IFERROR(IF(INDEX(Lookup!$H$90:$H$212,MATCH(H12,Lookup!$A$90:$A$212,0))=0,"",INDEX(Lookup!$H$90:$H$212,MATCH(H12,Lookup!$A$90:$A$212,0))),"") ->  | AA12: =IF(D12="","","cf") -> 
B14: 3 | D14: =IFERROR(INDEX('Project Summary'!$W$83:$W$84,MATCH(B14,'Project Summary'!$AS$83:$AS$84,0)),"") ->  | H14: =IFERROR(INDEX('Project Summary'!$AT$83:$AT$84,MATCH(B14,'Project Summary'!$AS$83:$AS$84,0)),"") ->  | T14: =IFERROR(IF(INDEX(Lookup!$H$90:$H$212,MATCH(H14,Lookup!$A$90:$A$212,0))=0,"",INDEX(Lookup!$H$90:$H$212,MATCH(H14,Lookup!$A$90:$A$212,0))),"") ->  | AA14: =IF(D14="","","cf") -> 
B16: 4 | D16: =IFERROR(INDEX('Project Summary'!$W$83:$W$84,MATCH(B16,'Project Summary'!$AS$83:$AS$84,0)),"") ->  | H16: =IFERROR(INDEX('Project Summary'!$AT$83:$AT$84,MATCH(B16,'Project Summary'!$AS$83:$AS$84,0)),"") ->  | T16: =IFERROR(IF(INDEX(Lookup!$H$90:$H$212,MATCH(H16,Lookup!$A$90:$A$212,0))=0,"",INDEX(Lookup!$H$90:$H$212,MATCH(H16,Lookup!$A$90:$A$212,0))),"") ->  | AA16: =IF(D16="","","cf") -> 
B18: 5 | D18: =IFERROR(INDEX('Project Summary'!$W$83:$W$84,MATCH(B18,'Project Summary'!$AS$83:$AS$84,0)),"") ->  | H18: =IFERROR(INDEX('Project Summary'!$AT$83:$AT$84,MATCH(B18,'Project Summary'!$AS$83:$AS$84,0)),"") ->  | T18: =IFERROR(IF(INDEX(Lookup!$H$90:$H$212,MATCH(H18,Lookup!$A$90:$A$212,0))=0,"",INDEX(Lookup!$H$90:$H$212,MATCH(H18,Lookup!$A$90:$A$212,0))),"") ->  | AA18: =IF(D18="","","cf") -> 
B20: 6 | D20: =IFERROR(INDEX('Project Summary'!$W$83:$W$84,MATCH(B20,'Project Summary'!$AS$83:$AS$84,0)),"") ->  | H20: =IFERROR(INDEX('Project Summary'!$AT$83:$AT$84,MATCH(B20,'Project Summary'!$AS$83:$AS$84,0)),"") ->  | T20: =IFERROR(IF(INDEX(Lookup!$H$90:$H$212,MATCH(H20,Lookup!$A$90:$A$212,0))=0,"",INDEX(Lookup!$H$90:$H$212,MATCH(H20,Lookup!$A$90:$A$212,0))),"") ->  | AA20: =IF(D20="","","cf") -> 
B22: 7 | D22: =IFERROR(INDEX('Project Summary'!$W$83:$W$84,MATCH(B22,'Project Summary'!$AS$83:$AS$84,0)),"") ->  | H22: =IFERROR(INDEX('Project Summary'!$AT$83:$AT$84,MATCH(B22,'Project Summary'!$AS$83:$AS$84,0)),"") ->  | T22: =IFERROR(IF(INDEX(Lookup!$H$90:$H$212,MATCH(H22,Lookup!$A$90:$A$212,0))=0,"",INDEX(Lookup!$H$90:$H$212,MATCH(H22,Lookup!$A$90:$A$212,0))),"") ->  | AA22: =IF(D22="","","cf") -> 
B24: 8 | D24: =IFERROR(INDEX('Project Summary'!$W$83:$W$84,MATCH(B24,'Project Summary'!$AS$83:$AS$84,0)),"") ->  | H24: =IFERROR(INDEX('Project Summary'!$AT$83:$AT$84,MATCH(B24,'Project Summary'!$AS$83:$AS$84,0)),"") ->  | T24: =IFERROR(IF(INDEX(Lookup!$H$90:$H$212,MATCH(H24,Lookup!$A$90:$A$212,0))=0,"",INDEX(Lookup!$H$90:$H$212,MATCH(H24,Lookup!$A$90:$A$212,0))),"") ->  | AA24: =IF(D24="","","cf") -> 
B26: 9 | D26: =IFERROR(INDEX('Project Summary'!$W$83:$W$84,MATCH(B26,'Project Summary'!$AS$83:$AS$84,0)),"") ->  | H26: =IFERROR(INDEX('Project Summary'!$AT$83:$AT$84,MATCH(B26,'Project Summary'!$AS$83:$AS$84,0)),"") ->  | T26: =IFERROR(IF(INDEX(Lookup!$H$90:$H$212,MATCH(H26,Lookup!$A$90:$A$212,0))=0,"",INDEX(Lookup!$H$90:$H$212,MATCH(H26,Lookup!$A$90:$A$212,0))),"") ->  | AA26: =IF(D26="","","cf") -> 
B28: 10 | D28: =IFERROR(INDEX('Project Summary'!$W$83:$W$84,MATCH(B28,'Project Summary'!$AS$83:$AS$84,0)),"") ->  | H28: =IFERROR(INDEX('Project Summary'!$AT$83:$AT$84,MATCH(B28,'Project Summary'!$AS$83:$AS$84,0)),"") ->  | T28: =IFERROR(IF(INDEX(Lookup!$H$90:$H$212,MATCH(H28,Lookup!$A$90:$A$212,0))=0,"",INDEX(Lookup!$H$90:$H$212,MATCH(H28,Lookup!$A$90:$A$212,0))),"") ->  | AA28: =IF(D28="","","cf") -> 
B30: 11 | D30: =IFERROR(INDEX('Project Summary'!$W$83:$W$84,MATCH(B30,'Project Summary'!$AS$83:$AS$84,0)),"") ->  | H30: =IFERROR(INDEX('Project Summary'!$AT$83:$AT$84,MATCH(B30,'Project Summary'!$AS$83:$AS$84,0)),"") ->  | T30: =IFERROR(IF(INDEX(Lookup!$H$90:$H$212,MATCH(H30,Lookup!$A$90:$A$212,0))=0,"",INDEX(Lookup!$H$90:$H$212,MATCH(H30,Lookup!$A$90:$A$212,0))),"") ->  | AA30: =IF(D30="","","cf") -> 
B32: 12 | D32: =IFERROR(INDEX('Project Summary'!$W$83:$W$84,MATCH(B32,'Project Summary'!$AS$83:$AS$84,0)),"") ->  | H32: =IFERROR(INDEX('Project Summary'!$AT$83:$AT$84,MATCH(B32,'Project Summary'!$AS$83:$AS$84,0)),"") ->  | T32: =IFERROR(IF(INDEX(Lookup!$H$90:$H$212,MATCH(H32,Lookup!$A$90:$A$212,0))=0,"",INDEX(Lookup!$H$90:$H$212,MATCH(H32,Lookup!$A$90:$A$212,0))),"") ->  | AA32: =IF(D32="","","cf") -> 
B34: 13 | D34: =IFERROR(INDEX('Project Summary'!$W$83:$W$84,MATCH(B34,'Project Summary'!$AS$83:$AS$84,0)),"") ->  | H34: =IFERROR(INDEX('Project Summary'!$AT$83:$AT$84,MATCH(B34,'Project Summary'!$AS$83:$AS$84,0)),"") ->  | T34: =IFERROR(IF(INDEX(Lookup!$H$90:$H$212,MATCH(H34,Lookup!$A$90:$A$212,0))=0,"",INDEX(Lookup!$H$90:$H$212,MATCH(H34,Lookup!$A$90:$A$212,0))),"") ->  | AA34: =IF(D34="","","cf") -> 
B36: 14 | D36: =IFERROR(INDEX('Project Summary'!$W$83:$W$84,MATCH(B36,'Project Summary'!$AS$83:$AS$84,0)),"") ->  | H36: =IFERROR(INDEX('Project Summary'!$AT$83:$AT$84,MATCH(B36,'Project Summary'!$AS$83:$AS$84,0)),"") ->  | T36: =IFERROR(IF(INDEX(Lookup!$H$90:$H$212,MATCH(H36,Lookup!$A$90:$A$212,0))=0,"",INDEX(Lookup!$H$90:$H$212,MATCH(H36,Lookup!$A$90:$A$212,0))),"") ->  | AA36: =IF(D36="","","cf") -> 
B38: 15 | D38: =IFERROR(INDEX('Project Summary'!$W$83:$W$84,MATCH(B38,'Project Summary'!$AS$83:$AS$84,0)),"") ->  | H38: =IFERROR(INDEX('Project Summary'!$AT$83:$AT$84,MATCH(B38,'Project Summary'!$AS$83:$AS$84,0)),"") ->  | T38: =IFERROR(IF(INDEX(Lookup!$H$90:$H$212,MATCH(H38,Lookup!$A$90:$A$212,0))=0,"",INDEX(Lookup!$H$90:$H$212,MATCH(H38,Lookup!$A$90:$A$212,0))),"") ->  | AA38: =IF(D38="","","cf") -> 
B40: 16 | D40: =IFERROR(INDEX('Project Summary'!$W$83:$W$84,MATCH(B40,'Project Summary'!$AS$83:$AS$84,0)),"") ->  | H40: =IFERROR(INDEX('Project Summary'!$AT$83:$AT$84,MATCH(B40,'Project Summary'!$AS$83:$AS$84,0)),"") ->  | T40: =IFERROR(IF(INDEX(Lookup!$H$90:$H$212,MATCH(H40,Lookup!$A$90:$A$212,0))=0,"",INDEX(Lookup!$H$90:$H$212,MATCH(H40,Lookup!$A$90:$A$212,0))),"") ->  | AA40: =IF(D40="","","cf") -> 
B42: 17 | D42: =IFERROR(INDEX('Project Summary'!$W$83:$W$84,MATCH(B42,'Project Summary'!$AS$83:$AS$84,0)),"") ->  | H42: =IFERROR(INDEX('Project Summary'!$AT$83:$AT$84,MATCH(B42,'Project Summary'!$AS$83:$AS$84,0)),"") ->  | T42: =IFERROR(IF(INDEX(Lookup!$H$90:$H$212,MATCH(H42,Lookup!$A$90:$A$212,0))=0,"",INDEX(Lookup!$H$90:$H$212,MATCH(H42,Lookup!$A$90:$A$212,0))),"") ->  | AA42: =IF(D42="","","cf") -> 
B44: 18 | D44: =IFERROR(INDEX('Project Summary'!$W$83:$W$84,MATCH(B44,'Project Summary'!$AS$83:$AS$84,0)),"") ->  | H44: =IFERROR(INDEX('Project Summary'!$AT$83:$AT$84,MATCH(B44,'Project Summary'!$AS$83:$AS$84,0)),"") ->  | T44: =IFERROR(IF(INDEX(Lookup!$H$90:$H$212,MATCH(H44,Lookup!$A$90:$A$212,0))=0,"",INDEX(Lookup!$H$90:$H$212,MATCH(H44,Lookup!$A$90:$A$212,0))),"") ->  | AA44: =IF(D44="","","cf") -> 
B46: 19 | D46: =IFERROR(INDEX('Project Summary'!$W$83:$W$84,MATCH(B46,'Project Summary'!$AS$83:$AS$84,0)),"") ->  | H46: =IFERROR(INDEX('Project Summary'!$AT$83:$AT$84,MATCH(B46,'Project Summary'!$AS$83:$AS$84,0)),"") ->  | T46: =IFERROR(IF(INDEX(Lookup!$H$90:$H$212,MATCH(H46,Lookup!$A$90:$A$212,0))=0,"",INDEX(Lookup!$H$90:$H$212,MATCH(H46,Lookup!$A$90:$A$212,0))),"") ->  | AA46: =IF(D46="","","cf") -> 
B48: 20 | D48: =IFERROR(INDEX('Project Summary'!$W$83:$W$84,MATCH(B48,'Project Summary'!$AS$83:$AS$84,0)),"") ->  | H48: =IFERROR(INDEX('Project Summary'!$AT$83:$AT$84,MATCH(B48,'Project Summary'!$AS$83:$AS$84,0)),"") ->  | T48: =IFERROR(IF(INDEX(Lookup!$H$90:$H$212,MATCH(H48,Lookup!$A$90:$A$212,0))=0,"",INDEX(Lookup!$H$90:$H$212,MATCH(H48,Lookup!$A$90:$A$212,0))),"") ->  | AA48: =IF(D48="","","cf") -> 
B50: * Total volume infiltrated over a 158-year continuous runoff model simulation in cubic feet. The calculator will conver this to gallons per year on the Project Summary tab.

Sheet Infeasibility Criteria
A1: On-site Stormwater Management - List Approach Calculator
C2: Infeasibility Criteria
A3: =Version -> Version 07-28-2017
A5: Infeasibility Criteria
B6: Full Dispersion
B7: 1 | C7: The site has less than a 65 to 10 ratio of the native vegetation area to the impervious area.
B8: 2 | C8: Installation requires removal of an existing tree.
B9: 3 | C9: Where BMP installation is prohibited per Regulations for Environmentally Critical Areas (SMC Chapter 25.09).
B10: 4 | C10: A licensed professional recommends dispersion not be used anywhere within project site due to reasonable concerns of erosion, slope failure, or flooding.
B11: 5 | C11: The dispersion flow path area does not provide positive drainage.
B12: 6 | C12: The dispersion flowpath area is within a landslide-prone area (SMC, Section 25.09.080).
B13: 7 | C13: The dispersion flowpath area is within 100 feet of a contaminated site or landfill (active or closed).
B14: 8 | C14: The dispersion flowpath area is in a steep slope area (SMC, Section 25.09.020) or within a setback to a steep slope area (calculated as 10 times the height of the steep slope to a 500 foot maximum setback).
B15: 9 | C15: The dispersion flowpath area is within 10 feet of a proposed or existing septic system or drainfield.
B16: 10 | C16: The minimum native vegetation flowpath length is less than 100 feet.
B17: Infiltration Trench
B18: 1 | C18: Field testing indicates potential infiltration trench site(s) have a measured underlying soil infiltration rate less than 5 inches per hour (Volume 3, Section 5.4.2).
B19: 2 | C19: Infiltration is not recommended due to reasonable concerns about erosion, slope failure, or flooding.
B20: 3 | C20: Installation requires removal of an existing tree.
B21: 4 | C21: Where BMP installation is prohibited per Regulations for Environmentally Critical Areas (SMC Chapter 25.09).
B22: 5 | C22: The area available for siting would threaten the safety or reliability of pre-existing underground utilities, pre-existing underground storage tanks, pre-existing structures, or pre-existing road or parking lot surfaces or subgrades.
B23: 6 | C23: The area available for siting would threaten shoreline structures such as bulkheads.
B24: 7 | C24: Evaluation of infiltration is not required per the “Infiltration Investigation Map”.
B25: 8 | C25: The area available for siting does not allow for overflow conveyance to an approved point of discharge per Section 4.3.2.
B26: 9 | C26: The area available for siting is within a steep slope area or land-slide prone area (or setback) (refer to Volume 3, Section 3.2).
B27: 10 | C27: The area available for siting does not meet the minimum horizontal setback requirements (refer to Volume 3, Section 3.2).
B28: 11 | C28: The area available for siting does not meet the minimum vertical setback requirements (refer to Volume 3, Section 3.2, and Appendix D).
B29: 12 | C29: Infiltration is restricted due to contaminated soil or groundwater (refer to Volume 3, Section 3.2).
B30: 13 | C30: Where the site cannot be reasonably designed to locate a catch basin between the infiltration trench and point of connection to the public system.
B31: 14 | C31: Runoff from this surface cannot be routed via a gravity system to the BMP.
B32: Drywell
B33: 1 | C33: Field testing indicates potential drywell site(s) have a measured underlying soil infiltration rate less than 5 inches per hour (Volume 3, Section 5.4.3).
B34: 2 | C34: Installation requires removal of an existing tree.
B35: 3 | C35: Where BMP installation is prohibited per Regulations for Environmentally Critical Areas (SMC Chapter 25.09).
B36: 4 | C36: Infiltration is not recommended due to reasonable concerns about erosion, slope failure, or flooding.
B37: 5 | C37: The area available for siting would threaten the safety or reliability of pre-existing underground utilities, pre-existing underground storage tanks, pre-existing structures, or pre-existing road or parking lot surfaces or subgrades.
B38: 6 | C38: The area available for siting would threaten shoreline structures such as bulkheads.
B39: 7 | C39: Evaluation of infiltration is not required per the “Infiltration Investigation Map”.
B40: 8 | C40: The area available for siting does not allow for overflow conveyance to an approved point of discharge per Section 4.3.2.
B41: 9 | C41: The area available for siting is within a steep slope area or land-slide prone area (or setback) (refer to Volume 3, Section 3.2).
B42: 10 | C42: The area available for siting does not meet the minimum horizontal setback requirements (refer to Volume 3, Section 3.2).
B43: 11 | C43: The area available for siting does not meet the minimum vertical setback requirements (refer to Volume 3, Section 3.2, and Appendix D).
B44: 12 | C44: Infiltration is restricted due to contaminated soil or groundwater (refer to Volume 3, Section 3.2).
B45: 13 | C45: Where the site cannot be reasonably designed to locate a catch basin between the drywell and point of connection to the public system.
B46: 14 | C46: Runoff from this surface cannot be routed via a gravity system to the BMP.
B47: Rain Garden
B48: 1 | C48: Field testing indicates soils have a measured underlying soil infiltration rate less than 0.3 inches per hour.
B49: 2 | C49: Installation requires removal of an existing tree.
B50: 3 | C50: Where BMP installation is prohibited per Regulations for Environmentally Critical Areas (SMC Chapter 25.09).
B51: 4 | C51: Infiltration is not recommended due to reasonable concerns about erosion, slope failure, or flooding.
B52: 5 | C52: The area available for siting would threaten the safety or reliability of pre-existing underground utilities, pre-existing underground storage tanks, pre-existing structures, or pre-existing road or parking lot surfaces or subgrades.
B53: 6 | C53: The area available for siting would threaten shoreline structures such as bulkheads.
B54: 7 | C54: Evaluation of infiltration is not required per the “Infiltration Investigation Map”.
B55: 8 | C55: The area available for siting does not allow for overflow conveyance to an approved point of discharge per Section 4.3.2.
B56: 9 | C56: The area available for siting is within a steep slope area or land-slide prone area (or setback) (refer to Volume 3, Section 3.2).
B57: 10 | C57: The area available for siting does not meet the minimum horizontal setback requirements (refer to Volume 3, Section 3.2).
B58: 11 | C58: The area available for siting does not meet the minimum vertical setback requirements (refer to Volume 3, Section 3.2, and Appendix D).
B59: 12 | C59: Infiltration is restricted due to contaminated soil or groundwater (refer to Volume 3, Section 3.2).
B60: 13 | C60: For projects in the right-of-way, the total rain garden top area would be less than 500 square feet and the project discharges to: A designated receiving water body or, A combined system, or A capacity constrained system which does not drain to a creek wetland or small lake.
B61: 14 | C61: In the right-of-way, the longitudinal road slope exceeds 4 percent.
B62: 15 | C62: The rain garden would have a linear geometry with a longitudinal slope greater than 8 percent.
B63: 16 | C63: The minimum bottom width of the rain garden (12 inch average) cannot be met due to, but not limited to: encroachment within the critical root zone of an existing tree(s) or minimum setbacks to structures, utilities, or property lines.
B64: 17 | C64: The infiltration area is within the minimum vertical or horizontal clearance from utilities, according to clearances required by the utility owner.
B65: 18 | C65: In the right-of-way, the planting strip width available for rain garden siting is less than 5 feet in width.
B66: 19 | C66: Runoff from this surface cannot be routed via a gravity system to the BMP.
B67: Infiltrating Bioretention
B68: 1 | C68: Field testing indicates soils have a measured underlying soil infiltration rate less than 0.3 inches per hour.
B69: 2 | C69: Installation requires removal of an existing tree.
B70: 3 | C70: Where BMP installation is prohibited per Regulations for Environmentally Critical Areas (SMC Chapter 25.09).
B71: 4 | C71: Infiltration is not recommended due to reasonable concerns about erosion, slope failure, or flooding.
B72: 5 | C72: The area available for siting would threaten the safety or reliability of pre-existing underground utilities, pre-existing underground storage tanks, pre-existing structures, or pre-existing road or parking lot surfaces or subgrades.
B73: 6 | C73: The area available for siting would threaten shoreline structures such as bulkheads.
B74: 7 | C74: Evaluation of infiltration is not required per the “Infiltration Investigation Map”.
B75: 8 | C75: The area available for siting does not allow for overflow conveyance to an approved point of discharge per Section 4.3.2.
B76: 9 | C76: The area available for siting is within a steep slope area or land-slide prone area (or setback) (refer to Volume 3, Section 3.2).
B77: 10 | C77: The area available for siting does not meet the minimum horizontal setback requirements (refer to Volume 3, Section 3.2).
B78: 11 | C78: The area available for siting does not meet the minimum vertical setback requirements (refer to Volume 3, Section 3.2, and Appendix D).
B79: 12 | C79: Infiltration is restricted due to contaminated soil or groundwater (refer to Volume 3, Section 3.2).
B80: 13 | C80: For projects in the right-of-way, the total bioretention top area (including the presettling zone) would be less than 500 square feet and the project discharges to: A designated receiving water body, or A combined system, or A capacity constrained system which does not drain to a creek wetland or small lake.
B81: 14 | C81: The infiltrating bioretention facility would have a linear geometry with a longitudinal slope greater than 8 percent.
B82: 15 | C82: The minimum bottom width of the infiltrating bioretention facility (2 feet for facilities with vertical sides and 18 inch average for facilities with sloped sides) cannot be met due to, but not limited to: encroachment within the critical root zone of an existing tree(s) or minimum setbacks to structures, utilities, or property lines.
B83: 16 | C83: The infiltration area is within the minimum vertical and horizontal clearance from utilities, according to clearances required by the utility owner.
B84: 17 | C84: For soils with measured infiltration rates less than 0.6 inches per hour, but greater than or equal to 0.3 inches per hour, infiltrating bioretention with an underdrain is considered feasible, unless other infeasibility restrictions apply.
B85: 18 | C85: The facility with an underdrain would route underdrained water to a nutrient-critical receiving water.
B86: 19 | C86: In the right-of-way, installation requires a vertical walled facility.
B87: 20 | C87: Runoff from this surface cannot be routed via a gravity system to the BMP.
B88: Rainwater Harvesting
B89: 1 | C89: Project lacks non-pollution-generating roof from which to harvest rainwater.
B90: 2 | C90: Non-potable water demand is insufficient to meet the On-site Performance Standard per modeling conducted in accordance with Volume 3, Section 5.5.1.6.
B91: 3 | C91: Installation is not economically feasible based on reasonable consideration of financial cost (e.g., roof area is less than 20,000 sf or the ratio of roof area to average daily rainwater demand is less than 10,000 square feet/gpm) (refer to Appendix H). Documentation is required.
B92: Permeable Pavement Facility
B93: 1 | C93: Field testing indicates soils have a measured underlying soil infiltration rate less than 0.3 inches per hour.
B94: 2 | C94: Installation requires removal of an existing tree.
B95: 3 | C95: Where BMP installation is prohibited per Regulations for Environmentally Critical Areas (SMC Chapter 25.09).
B96: 4 | C96: Infiltration is not recommended due to reasonable concerns about erosion, slope failure, or flooding.
B97: 5 | C97: The area available for siting would threaten the safety or reliability of pre-existing underground utilities, pre-existing underground storage tanks, pre-existing structures, or pre-existing road or parking lot surfaces or subgrades.
B98: 6 | C98: The area available for siting would threaten shoreline structures such as bulkheads.
B99: 7 | C99: Evaluation of infiltration is not required per the “Infiltration Investigation Map”.
B100: 8 | C100: The area available for siting does not allow for overflow conveyance to an approved point of discharge per Section 4.3.2.
B101: 9 | C101: The area available for siting is within a steep slope area or land-slide prone area (or setback) (refer to Volume 3, Section 3.2).
B102: 10 | C102: The area available for siting does not meet the minimum horizontal setback requirements (refer to Volume 3, Section 3.2).
B103: 11 | C103: The area available for siting does not meet the minimum vertical setback requirements (refer to Volume 3, Section 3.2, and Appendix D).
B104: 12 | C104: Infiltration is restricted due to contaminated soil or groundwater (refer to Volume 3, Section 3.2).
B105: 13 | C105: Infiltrating or ponding water below pavement area would compromise adjacent pavements.
B106: 14 | C106: Fill soils are used that can become unstable when saturated.
B107: 15 | C107: The permeable pavement design does not provide sufficient strength to support heavy loads in areas with “industrial activity” as identified in 40 CFR 122.26(b)(14).
B108: 16 | C108: The subgrade slope exceeds 6 percent after reasonable efforts to grade.
B109: 17 | C109: The permeable pavement wearing course slope exceeds 6 percent after reasonable efforts to grade.
B110: 18 | C110: For projects in the right-of-way, the permeable pavement surface area would be less than 2,000 square feet of contiguous pavement and the project discharges to: A designated receiving water body, or A combined system, or A capacity constrained system which does not drain to a creek wetland or small lake.
B111: 19 | C111: The anticipated mature tree spread (based on tree species) would overhang more than 50 percent of permeable pavement area.
B112: 20 | C112: The pavement is over a structure, such as, but not limited to: parking garages, box culverts, and bridges.
B113: 21 | C113: The pavement is subject to long-term excessive sediment deposition (e.g., construction and landscaping material yards).
B114: 22 | C114: Underlying soils are unsuitable for supporting traffic loads when saturated (e.g., a residential access road has a California Bearing Ratio of 5 percent or less).
B115: 23 | C115: Pavement is replacing an existing pollution-generating hard surface in the right-of-way.
B116: 24 | C116: The street type is classified as arterial or collector rather than local access. Refer to RCW 35.78.010, RCW 36.86.070, and RCW 47.05.021. Note: This infeasibility criterion does not extend to sidewalks and other non-traffic bearing surfaces associated with the collector or arterial.
B117: 25 | C117: Streets that receive more than very low traffic volumes, and areas having more than very low truck traffic. Streets with a projected average daily traffic volume of 400 vehicles or less are very low volume roads (AASHTO, 2001)(U.S. Dept. of Transportation, 2013). Areas with very low truck traffic volumes are streets and other areas not subject to through truck traffic but may receive up to weekly use by utility trucks (e.g., garbage, recycling), daily school bus use, and multiple daily use by pick-up trucks, mail/parcel delivery trucks, and maintenance vehicles. Note: This infeasibility criterion does not extend to sidewalks and other non-traffic bearing surfaces.
B118: 26 | C118: The pavement area is defined as a “high use site” in SMC, Section 22.801.090.
B119: 27 | C119: In areas with “industrial activity” as identified in 40 CFR 122.26(b)(14).
B120: 28 | C120: Where the risk of concentrated pollutant spills is more likely, including, but not limited to, gas stations, truck stops, and industrial chemical storage sites.
B121: 29 | C121: In areas where routine, heavy roadway applications of sand occur in frequent snow zones to maintain traction during weeks of snow and ice accumulation, including sidewalks within 7 feet of roadways with sand application.
B122: 30 | C122: Where runon from unstabilized erodible areas would occur without presettling.
B123: 31 | C123: The areas contributing runoff to the permeable pavement facilities exceed the maximum run-on limits: Pollution-generating impervious surfaces (e.g., roadways, parking lots) exceed the maximum run-on area ratio of 2:1, Non-pollution generating impervious surfaces (e.g., roofs, sidewalks) and stabilized pervious surfaces exceed the maximum run-on area ratio of 5:1
B124: 32 | C124: Site is mapped as "infltration investigation not required"
B125: Permeable Pavement Surface
B126: 1 | C126: Field testing indicates soils have a measured underlying soil infiltration rate less than 0.3 inches per hour (Note: field infiltration tests are not required for permeable pavement surfaces, but must be used to demonstrate infeasibility).
B127: 2 | C127: Installation requires removal of an existing tree.
B128: 3 | C128: Where BMP installation is prohibited per Regulations for Environmentally Critical Areas (SMC Chapter 25.09).
B129: 4 | C129: Infiltrating or ponding water below pavement area would compromise adjacent pavements.
B130: 5 | C130: Fill soils are used that can become unstable when saturated.
B131: 6 | C131: The permeable pavement design does not provide sufficient strength to support heavy loads in areas with “industrial activity” as identified in 40 CFR 122.26(b)(14).
B132: 7 | C132: The subgrade slope exceeds 6 percent after reasonable efforts to grade.
B133: 8 | C133: The permeable pavement wearing course slope exceeds 6 percent after reasonable efforts to grade.
B134: 9 | C134: For projects in the right-of-way, the permeable pavement surface area would be less than 2,000 square feet of contiguous pavement and the project discharges to: A designated receiving water body, or A combined system, or A capacity constrained system which does not drain to a creek wetland or small lake.
B135: 10 | C135: The anticipated mature tree spread (based on tree species) would overhang more than 50 percent of permeable pavement area.
B136: 11 | C136: The pavement is over a structure, such as, but not limited to: parking garages, box culverts, and bridges.
B137: 12 | C137: The pavement is subject to long-term excessive sediment deposition (e.g., construction and landscaping material yards).
B138: 13 | C138: Underlying soils are unsuitable for supporting traffic loads when saturated (e.g., a residential access road has a California Bearing Ratio of 5 percent or less).
B139: 14 | C139: Field testing indicates soils have a measured underlying soil infiltration rate less than 0.3 inches per hour.
B140: 15 | C140: Pavement is replacing an existing pollution-generating hard surface in the right-of-way.
B141: 16 | C141: The street type is classified as arterial or collector rather than local access. Refer to RCW 35.78.010, RCW 36.86.070, and RCW 47.05.021. Note: This infeasibility criterion does not extend to sidewalks and other non-traffic bearing surfaces associated with the collector or arterial.
B142: 17 | C142: Streets that receive more than very low traffic volumes, and areas having more than very low truck traffic. Streets with a projected average daily traffic volume of 400 vehicles or less are very low volume roads (AASHTO, 2001)(U.S. Dept. of Transportation, 2013). Areas with very low truck traffic volumes are streets and other areas not subject to through truck traffic but may receive up to weekly use by utility trucks (e.g., garbage, recycling), daily school bus use, and multiple daily use by pick-up trucks, mail/parcel delivery trucks, and maintenance vehicles. Note: This infeasibility criterion does not extend to sidewalks and other non-traffic bearing surfaces.
B143: 18 | C143: The pavement area is defined as a “high use site” in SMC, Section 22.801.090.
B144: 19 | C144: In areas with “industrial activity” as identified in 40 CFR 122.26(b)(14).
B145: 20 | C145: Where the risk of concentrated pollutant spills is more likely, including, but not limited to, gas stations, truck stops, and industrial chemical storage sites.
B146: 21 | C146: In areas where routine, heavy roadway applications of sand occur in frequent snow zones to maintain traction during weeks of snow and ice accumulation, including sidewalks within 7 feet of roadways with sand application.
B147: 22 | C147: Where runon from unstabilized erodible areas would occur without presettling.
B148: 23 | C148: The areas contributing runoff to the permeable pavement facilities exceed the maximum run-on limits: Pollution-generating impervious surfaces (e.g., roadways, parking lots) exceed the maximum run-on area ratio of 2:1, Non-pollution generating impervious surfaces (e.g., roofs, sidewalks) and stabilized pervious surfaces exceed the maximum run-on area ratio of 5:1
B149: 24 | C149: The site is a contaminated site or abandoned landfill.
B150: 25 | C150: Installation is within 10 feet of an underground storage tank or connecting underground pipes. (Applicable to tanks used to store petroleum products, chemicals, or liquid hazardous wastes).
B151: 26 | C151: Run-on from an adjacent impervious area is greater than 10 percent of the permeable pavement surface area.
B152: 27 | C152: A licensed professional (as defined in Appendix D, Section D-1) recommends permeable pavement not be used anywhere within the project site due to reasonable concerns of erosion, slope failure, or flooding (requires a signed and stamped written determination based on site-specific conditions from a licensed professional).
B153: Sheet Flow Dispersion
B154: 1 | C154: Installation requires removal of an existing tree.
B155: 2 | C155: Where BMP installation is prohibited per Regulations for Environmentally Critical Areas (SMC Chapter 25.09).
B156: 3 | C156: A licensed professional recommends dispersion not be used anywhere within project site due to reasonable concerns of erosion, slope failure, or flooding.
B157: 4 | C157: The dispersion flow path area does not provide positive drainage.
B158: 5 | C158: The dispersion flowpath area is within a landslide-prone area (SMC, Section 25.09.080).
B159: 6 | C159: The dispersion flowpath area is within 100 feet of a contaminated site or landfill (active or closed).
B160: 7 | C160: The dispersion flowpath area is in a steep slope area (SMC, Section 25.09.020) or within a setback to a steep slope area (calculated as 10 times the height of the steep slope to a 500 foot maximum setback).
B161: 8 | C161: The dispersion flowpath area is within 10 feet of a proposed or existing septic system or drainfield.
B162: 9 | C162: The area to be dispersed (e.g., driveway, patio) exceeds a slope of 15 percent.
B163: 10 | C163: The minimum vegetated flow path for sheet flow dispersion cannot be met. Note: A 10 foot flowpath is required to disperse runoff from a contributing flow length of up to 20 feet. An additional 10 feet of flow path is required for each additional 20 feet of contributing flow path or fraction thereof. Refer to Volume 3, Figure 5.5.
B164: 11 | C164: The flowpath does not meet the minimum horizontal setback requirements to property lines, structures and other flowpaths (refer to Volume 3, Section 5.3.5).
B165: Concentrated Dispersion
B166: 1 | C166: Installation requires removal of an existing tree.
B167: 2 | C167: Where BMP installation is prohibited per Regulations for Environmentally Critical Areas (SMC Chapter 25.09).
B168: 3 | C168: A licensed professional recommends dispersion not be used anywhere within project site due to reasonable concerns of erosion, slope failure, or flooding.
B169: 4 | C169: The dispersion flow path area does not provide positive drainage.
B170: 5 | C170: The dispersion flowpath area is within a landslide-prone area (SMC, Section 25.09.080).
B171: 6 | C171: The dispersion flowpath area is within 100 feet of a contaminated site or landfill (active or closed).
B172: 7 | C172: The dispersion flowpath area is in a steep slope area (SMC, Section 25.09.020) or within a setback to a steep slope area (calculated as 10 times the height of the steep slope to a 500 foot maximum setback).
B173: 8 | C173: The dispersion flowpath area is within 10 feet of a proposed or existing septic system or drainfield.
B174: 9 | C174: There are no concentrated flows to disperse.
B175: 10 | C175: The minimum dispersion trench length of 10 feet cannot be met.
B176: 11 | C176: The vegetated flow path for the dispersion trench is less than 25 feet
B177: 12 | C177: The vegetated flow path for a rock pad is less than 50 feet.
B178: 13 | C178: Greater than 700 square feet of surface area drains to the BMP.
B179: 14 | C179: The flowpath does not meet the minimum horizontal setback requirements to property lines, structures and other flowpaths (refer to Volume 3, Section 5.3.6).
B180: Splashblock Downspout Dispersion
B181: 1 | C181: Installation requires removal of an existing tree.
B182: 2 | C182: Where BMP installation is prohibited per Regulations for Environmentally Critical Areas (SMC Chapter 25.09).
B183: 3 | C183: A licensed professional recommends dispersion not be used anywhere within project site due to reasonable concerns of erosion, slope failure, or flooding.
B184: 4 | C184: The dispersion flow path area does not provide positive drainage.
B185: 5 | C185: The dispersion flowpath area is within a landslide-prone area (SMC, Section 25.09.080).
B186: 6 | C186: The dispersion flowpath area is within 100 feet of a contaminated site or landfill (active or closed).
B187: 7 | C187: The dispersion flowpath area is in a steep slope area (SMC, Section 25.09.020) or within a setback to a steep slope area (calculated as 10 times the height of the steep slope to a 500 foot maximum setback).
B188: 8 | C188: The dispersion flowpath area is within 10 feet of a proposed or existing septic system or drainfield.
B189: 9 | C189: There are no downspouts.
B190: 10 | C190: The vegetated flowpath is less than 50 feet.
B191: 11 | C191: Greater than 700 square feet of surface area drains to the BMP.
B192: 12 | C192: The flowpath does not meet the minimum horizontal setback requirements to property lines, structures and other flowpaths (refer to Volume 3, Section 5.3.3).
B193: Trench Downspout Dispersion
B194: 1 | C194: Installation requires removal of an existing tree.
B195: 2 | C195: Where BMP installation is prohibited per Regulations for Environmentally Critical Areas (SMC Chapter 25.09).
B196: 3 | C196: A licensed professional recommends dispersion not be used anywhere within project site due to reasonable concerns of erosion, slope failure, or flooding.
B197: 4 | C197: The dispersion flow path area does not provide positive drainage.
B198: 5 | C198: The dispersion flowpath area is within a landslide-prone area (SMC, Section 25.09.080).
B199: 6 | C199: The dispersion flowpath area is within 100 feet of a contaminated site or landfill (active or closed).
B200: 7 | C200: The dispersion flowpath area is in a steep slope area (SMC, Section 25.09.020) or within a setback to a steep slope area (calculated as 10 times the height of the steep slope to a 500 foot maximum setback).
B201: 8 | C201: The dispersion flowpath area is within 10 feet of a proposed or existing septic system or drainfield.
... 45 more rows

Sheet MDC
A1: Memorandum of Drainage Control
A2: Exhibit A: On-site Stormwater Management Summary Sheet
A3: This information is taken from the Drainage Control Plan approved as part of a building, site work or master use plan.
A5: Project Information
B6: Site Address | O6: ='Project Summary'!H6 -> 0
B7: SDCI Project Number | O7: ='Project Summary'!AG6 -> 0
B8: Project Type | O8: ='Project Summary'!H10 -> 0
B10: Total Site Area | R10: ='Project Summary'!W12 -> 0 | W10: sf
B11: Total New plus Replaced Hard Surface Area | R11: ='Project Summary'!W14 -> 0 | W11: sf
B12: Existing Hard Surface Area to Remain | R12: ='Project Summary'!W16 -> 0 | W12: sf
B13: Total New and/or Replaced Lawn and Landscaping | R13: ='Project Summary'!W18 -> 0 | W13: sf
B14: Undisturbed and protected site area | R14: ='Project Summary'!W20 -> 0 | W14: sf
A15: Site Information
B16: Approved Point of Stormwater Discharge | O16: ='Project Summary'!Q32 -> 0
B17: Drainage Basin | O17: ='Project Summary'!Q34 -> 0
B18: Approved Point of Wastewater Discharge | O18: =SUBSTITUTE('Project Summary'!Q38,"(King County Public Health Department Approval Required)","") -> 
B19: Approved Point of Sub-Surface Discharge | O19: =SUBSTITUTE(SUBSTITUTE(SUBSTITUTE(SUBSTITUTE('Project Summary'!Q40,"“",""),"”",""),"Public Sanitary","Sanitary"),"on the Site","Onsite") -> 
B20: Flow Control is required (See Exhibit B if required) | O20: ='Project Summary'!Q42 -> 0
D21: Flow Control Standard | O21: ='Project Summary'!Q44 -> 0
B22: Water Quality Treatment is required (See Exhibit C if required) | O22: ='Project Summary'!X46 -> 0
D23: Treatment Requirement(s) | O23: =SUBSTITUTE(IF('Project Summary'!AU44,"Oil control, ","")&IF('Project Summary'!AU46,"Phosphorus, ","")&IF('Project Summary'!AU48,"Enhanced"," ")&IF('Project Summary'!AU50,"Basic"," "),", ","") -> 
B24: Structural Source Control is required (See Exhibit D if required) | O24: ='Project Summary'!Q54 -> 0
A26: On-site Stormwater Management
B27: Surface | E27: Description | J27: On-site BMP | Q27: Contrib. Area (sf) | U27: Facility Size (sf) | Y27: Facility Configuration
B28: =IF(INDIRECT("'Project Summary'!B"&AI28)=AI28-83,INDIRECT("'Project Summary'!B"&AI28),"") ->  | E28: =IF($B28=$AH28,INDIRECT("'Project Summary'!E"&$AI28),"") ->  | J28: =IF($B28=$AH28,INDIRECT("'Project Summary'!k"&$AI28),"") ->  | Q28: =IF($B28=$AH28,INDIRECT("'Project Summary'!w"&$AI28) & " sf","") ->  | U28: =IF($B28=$AH28,INDIRECT("'Project Summary'!aa"&$AI28),"") ->  | Y28: =IF($B28=$AH28,INDIRECT("'Project Summary'!ag"&$AI28),"") ->  | AH28: 1 | AI28: 84
AH29: 2 | AI29: 85
AH30: 3 | AI30: 86
AH31: 4 | AI31: 87
AH32: 5 | AI32: 88
AH33: 6 | AI33: 89
AH34: 7 | AI34: 90
AH35: 8 | AI35: 91
AH36: 9 | AI36: 92
AH37: 10 | AI37: 93
AH38: 11 | AI38: 94
AH39: 12 | AI39: 95
P40: Memorandum of Drainage Control – Page No.

Sheet BMP Sizing (hidden)
A1: On-site Stormwater Management - List Approach Calculator
A2: BMP Sizing
A3: =Version -> Version 07-28-2017
B4: More than one surface can drain to the same BMP. For example, a garage roof and driveway may be managed by a single infiltration trench. Please indicate which surfaces are draining to which BMPs in the dropdown menus.
B5: Surface | F5: Area (sf) | K5: Select BMP | AN5: Dropdown List | AO5: Unique Count | AP5: BMP Type | AQ5: Can there be more than one BMP | AR5: Match
B7: 1 | F7: =IFERROR(INDEX('Project Summary'!$W$83:$W$84,MATCH(B7,'Project Summary'!$AS$83:$AS$84,0)),"") ->  | AA7: =IFERROR(IF(AND(K7<>"",NOT(AR7)),IF(AN7="","Select BMP on Surface Tab.","Selected BMP doesn't match Surface Tab."),""),"") ->  | AN7: =IFERROR(INDEX('Project Summary'!$AX$83:$AX$84,MATCH(B7,'Project Summary'!$AS$83:$AS$84,0)),"NoLIst") -> NoLIst | AO7: =IF(LEFT(K7,3)=LEFT(AN7,3),IF(K7<>"",1,""),"") ->  | AP7: =IFERROR(INDEX('Project Summary'!$AT$83:$AT$84,MATCH(B7,'Project Summary'!$AS$83:$AS$84,0)),"") ->  | AQ7: =INDEX(Lookup!$B$70:$B$87,MATCH(AP7,Lookup!$A$70:$A$87,0)) ->  | AR7: =OR(LEFT(K7,LEN(K7)-LEN(AO7)-2)=AP7,K7=AP7,LEFT(K7,LEN(K7)-LEN(AO7)-1)=AP7) -> 
B9: 2 | C9: 2 | F9: =IFERROR(INDEX('Project Summary'!$W$83:$W$84,MATCH(B9,'Project Summary'!$AS$83:$AS$84,0)),"") ->  | AA9: =IFERROR(IF(AND(K9<>"",NOT(AR9)),IF(AN9="","Select BMP on Surface Tab.","Selected BMP doesn't match Surface Tab."),""),"") ->  | AN9: =IFERROR(INDEX('Project Summary'!$AX$83:$AX$84,MATCH(B9,'Project Summary'!$AS$83:$AS$84,0)),"NoLIst") -> NoLIst | AO9: =IF(OR(K9="",LEFT(K9,3)<>LEFT(AN9,3)),"",IF(AQ9,IFERROR(INDEX($AO$7:AO8,MATCH(K9,$K$7:K9,0)),MAX($AO$7:AO8)+1),MAX($AO$7:AO8)+1)) ->  | AP9: =IFERROR(INDEX('Project Summary'!$AT$83:$AT$84,MATCH(B9,'Project Summary'!$AS$83:$AS$84,0)),"") ->  | AQ9: =INDEX(Lookup!$B$70:$B$87,MATCH(AP9,Lookup!$A$70:$A$87,0)) ->  | AR9: =OR(LEFT(K9,LEN(K9)-LEN(AO9)-2)=AP9,K9=AP9,LEFT(K9,LEN(K9)-LEN(AO9)-1)=AP9) -> 
B11: 3 | C11: 3 | F11: =IFERROR(INDEX('Project Summary'!$W$83:$W$84,MATCH(B11,'Project Summary'!$AS$83:$AS$84,0)),"") ->  | AA11: =IFERROR(IF(AND(K11<>"",NOT(AR11)),IF(AN11="","Select BMP on Surface Tab.","Selected BMP doesn't match Surface Tab."),""),"") ->  | AN11: =IFERROR(INDEX('Project Summary'!$AX$83:$AX$84,MATCH(B11,'Project Summary'!$AS$83:$AS$84,0)),"NoLIst") -> NoLIst | AO11: =IF(OR(K11="",LEFT(K11,3)<>LEFT(AN11,3)),"",IF(AQ11,IFERROR(INDEX($AO$7:AO10,MATCH(K11,$K$7:K11,0)),MAX($AO$7:AO10)+1),MAX($AO$7:AO10)+1)) ->  | AP11: =IFERROR(INDEX('Project Summary'!$AT$83:$AT$84,MATCH(B11,'Project Summary'!$AS$83:$AS$84,0)),"") ->  | AQ11: =INDEX(Lookup!$B$70:$B$87,MATCH(AP11,Lookup!$A$70:$A$87,0)) ->  | AR11: =OR(LEFT(K11,LEN(K11)-LEN(AO11)-2)=AP11,K11=AP11,LEFT(K11,LEN(K11)-LEN(AO11)-1)=AP11) -> 
B13: 4 | C13: 4 | F13: =IFERROR(INDEX('Project Summary'!$W$83:$W$84,MATCH(B13,'Project Summary'!$AS$83:$AS$84,0)),"") ->  | AA13: =IFERROR(IF(AND(K13<>"",NOT(AR13)),IF(AN13="","Select BMP on Surface Tab.","Selected BMP doesn't match Surface Tab."),""),"") ->  | AN13: =IFERROR(INDEX('Project Summary'!$AX$83:$AX$84,MATCH(B13,'Project Summary'!$AS$83:$AS$84,0)),"NoLIst") -> NoLIst | AO13: =IF(OR(K13="",LEFT(K13,3)<>LEFT(AN13,3)),"",IF(AQ13,IFERROR(INDEX($AO$7:AO12,MATCH(K13,$K$7:K13,0)),MAX($AO$7:AO12)+1),MAX($AO$7:AO12)+1)) ->  | AP13: =IFERROR(INDEX('Project Summary'!$AT$83:$AT$84,MATCH(B13,'Project Summary'!$AS$83:$AS$84,0)),"") ->  | AQ13: =INDEX(Lookup!$B$70:$B$87,MATCH(AP13,Lookup!$A$70:$A$87,0)) ->  | AR13: =OR(LEFT(K13,LEN(K13)-LEN(AO13)-2)=AP13,K13=AP13,LEFT(K13,LEN(K13)-LEN(AO13)-1)=AP13) -> 
B15: 5 | C15: 5 | F15: =IFERROR(INDEX('Project Summary'!$W$83:$W$84,MATCH(B15,'Project Summary'!$AS$83:$AS$84,0)),"") ->  | AA15: =IFERROR(IF(AND(K15<>"",NOT(AR15)),IF(AN15="","Select BMP on Surface Tab.","Selected BMP doesn't match Surface Tab."),""),"") ->  | AN15: =IFERROR(INDEX('Project Summary'!$AX$83:$AX$84,MATCH(B15,'Project Summary'!$AS$83:$AS$84,0)),"NoLIst") -> NoLIst | AO15: =IF(OR(K15="",LEFT(K15,3)<>LEFT(AN15,3)),"",IF(AQ15,IFERROR(INDEX($AO$7:AO14,MATCH(K15,$K$7:K15,0)),MAX($AO$7:AO14)+1),MAX($AO$7:AO14)+1)) ->  | AP15: =IFERROR(INDEX('Project Summary'!$AT$83:$AT$84,MATCH(B15,'Project Summary'!$AS$83:$AS$84,0)),"") ->  | AQ15: =INDEX(Lookup!$B$70:$B$87,MATCH(AP15,Lookup!$A$70:$A$87,0)) ->  | AR15: =OR(LEFT(K15,LEN(K15)-LEN(AO15)-2)=AP15,K15=AP15,LEFT(K15,LEN(K15)-LEN(AO15)-1)=AP15) -> 
B17: 6 | C17: 6 | F17: =IFERROR(INDEX('Project Summary'!$W$83:$W$84,MATCH(B17,'Project Summary'!$AS$83:$AS$84,0)),"") ->  | AA17: =IFERROR(IF(AND(K17<>"",NOT(AR17)),IF(AN17="","Select BMP on Surface Tab.","Selected BMP doesn't match Surface Tab."),""),"") ->  | AN17: =IFERROR(INDEX('Project Summary'!$AX$83:$AX$84,MATCH(B17,'Project Summary'!$AS$83:$AS$84,0)),"NoLIst") -> NoLIst | AO17: =IF(OR(K17="",LEFT(K17,3)<>LEFT(AN17,3)),"",IF(AQ17,IFERROR(INDEX($AO$7:AO16,MATCH(K17,$K$7:K17,0)),MAX($AO$7:AO16)+1),MAX($AO$7:AO16)+1)) ->  | AP17: =IFERROR(INDEX('Project Summary'!$AT$83:$AT$84,MATCH(B17,'Project Summary'!$AS$83:$AS$84,0)),"") ->  | AQ17: =INDEX(Lookup!$B$70:$B$87,MATCH(AP17,Lookup!$A$70:$A$87,0)) ->  | AR17: =OR(LEFT(K17,LEN(K17)-LEN(AO17)-2)=AP17,K17=AP17,LEFT(K17,LEN(K17)-LEN(AO17)-1)=AP17) -> 
B19: 7 | C19: 7 | F19: =IFERROR(INDEX('Project Summary'!$W$83:$W$84,MATCH(B19,'Project Summary'!$AS$83:$AS$84,0)),"") ->  | AA19: =IFERROR(IF(AND(K19<>"",NOT(AR19)),IF(AN19="","Select BMP on Surface Tab.","Selected BMP doesn't match Surface Tab."),""),"") ->  | AN19: =IFERROR(INDEX('Project Summary'!$AX$83:$AX$84,MATCH(B19,'Project Summary'!$AS$83:$AS$84,0)),"NoLIst") -> NoLIst | AO19: =IF(OR(K19="",LEFT(K19,3)<>LEFT(AN19,3)),"",IF(AQ19,IFERROR(INDEX($AO$7:AO18,MATCH(K19,$K$7:K19,0)),MAX($AO$7:AO18)+1),MAX($AO$7:AO18)+1)) ->  | AP19: =IFERROR(INDEX('Project Summary'!$AT$83:$AT$84,MATCH(B19,'Project Summary'!$AS$83:$AS$84,0)),"") ->  | AQ19: =INDEX(Lookup!$B$70:$B$87,MATCH(AP19,Lookup!$A$70:$A$87,0)) ->  | AR19: =OR(LEFT(K19,LEN(K19)-LEN(AO19)-2)=AP19,K19=AP19,LEFT(K19,LEN(K19)-LEN(AO19)-1)=AP19) -> 
B21: 8 | C21: 8 | F21: =IFERROR(INDEX('Project Summary'!$W$83:$W$84,MATCH(B21,'Project Summary'!$AS$83:$AS$84,0)),"") ->  | AA21: =IFERROR(IF(AND(K21<>"",NOT(AR21)),IF(AN21="","Select BMP on Surface Tab.","Selected BMP doesn't match Surface Tab."),""),"") ->  | AN21: =IFERROR(INDEX('Project Summary'!$AX$83:$AX$84,MATCH(B21,'Project Summary'!$AS$83:$AS$84,0)),"NoLIst") -> NoLIst | AO21: =IF(OR(K21="",LEFT(K21,3)<>LEFT(AN21,3)),"",IF(AQ21,IFERROR(INDEX($AO$7:AO20,MATCH(K21,$K$7:K21,0)),MAX($AO$7:AO20)+1),MAX($AO$7:AO20)+1)) ->  | AP21: =IFERROR(INDEX('Project Summary'!$AT$83:$AT$84,MATCH(B21,'Project Summary'!$AS$83:$AS$84,0)),"") ->  | AQ21: =INDEX(Lookup!$B$70:$B$87,MATCH(AP21,Lookup!$A$70:$A$87,0)) ->  | AR21: =OR(LEFT(K21,LEN(K21)-LEN(AO21)-2)=AP21,K21=AP21,LEFT(K21,LEN(K21)-LEN(AO21)-1)=AP21) -> 
B23: 9 | C23: 9 | F23: =IFERROR(INDEX('Project Summary'!$W$83:$W$84,MATCH(B23,'Project Summary'!$AS$83:$AS$84,0)),"") ->  | AA23: =IFERROR(IF(AND(K23<>"",NOT(AR23)),IF(AN23="","Select BMP on Surface Tab.","Selected BMP doesn't match Surface Tab."),""),"") ->  | AN23: =IFERROR(INDEX('Project Summary'!$AX$83:$AX$84,MATCH(B23,'Project Summary'!$AS$83:$AS$84,0)),"NoLIst") -> NoLIst | AO23: =IF(OR(K23="",LEFT(K23,3)<>LEFT(AN23,3)),"",IF(AQ23,IFERROR(INDEX($AO$7:AO22,MATCH(K23,$K$7:K23,0)),MAX($AO$7:AO22)+1),MAX($AO$7:AO22)+1)) ->  | AP23: =IFERROR(INDEX('Project Summary'!$AT$83:$AT$84,MATCH(B23,'Project Summary'!$AS$83:$AS$84,0)),"") ->  | AQ23: =INDEX(Lookup!$B$70:$B$87,MATCH(AP23,Lookup!$A$70:$A$87,0)) ->  | AR23: =OR(LEFT(K23,LEN(K23)-LEN(AO23)-2)=AP23,K23=AP23,LEFT(K23,LEN(K23)-LEN(AO23)-1)=AP23) -> 
B25: 10 | C25: 10 | F25: =IFERROR(INDEX('Project Summary'!$W$83:$W$84,MATCH(B25,'Project Summary'!$AS$83:$AS$84,0)),"") ->  | AA25: =IFERROR(IF(AND(K25<>"",NOT(AR25)),IF(AN25="","Select BMP on Surface Tab.","Selected BMP doesn't match Surface Tab."),""),"") ->  | AN25: =IFERROR(INDEX('Project Summary'!$AX$83:$AX$84,MATCH(B25,'Project Summary'!$AS$83:$AS$84,0)),"NoLIst") -> NoLIst | AO25: =IF(OR(K25="",LEFT(K25,3)<>LEFT(AN25,3)),"",IF(AQ25,IFERROR(INDEX($AO$7:AO24,MATCH(K25,$K$7:K25,0)),MAX($AO$7:AO24)+1),MAX($AO$7:AO24)+1)) ->  | AP25: =IFERROR(INDEX('Project Summary'!$AT$83:$AT$84,MATCH(B25,'Project Summary'!$AS$83:$AS$84,0)),"") ->  | AQ25: =INDEX(Lookup!$B$70:$B$87,MATCH(AP25,Lookup!$A$70:$A$87,0)) ->  | AR25: =OR(LEFT(K25,LEN(K25)-LEN(AO25)-2)=AP25,K25=AP25,LEFT(K25,LEN(K25)-LEN(AO25)-1)=AP25) -> 
B27: 11 | C27: 10 | F27: =IFERROR(INDEX('Project Summary'!$W$83:$W$84,MATCH(B27,'Project Summary'!$AS$83:$AS$84,0)),"") ->  | AA27: =IFERROR(IF(AND(K27<>"",NOT(AR27)),IF(AN27="","Select BMP on Surface Tab.","Selected BMP doesn't match Surface Tab."),""),"") ->  | AN27: =IFERROR(INDEX('Project Summary'!$AX$83:$AX$84,MATCH(B27,'Project Summary'!$AS$83:$AS$84,0)),"NoLIst") -> NoLIst | AO27: =IF(OR(K27="",LEFT(K27,3)<>LEFT(AN27,3)),"",IF(AQ27,IFERROR(INDEX($AO$7:AO26,MATCH(K27,$K$7:K27,0)),MAX($AO$7:AO26)+1),MAX($AO$7:AO26)+1)) ->  | AP27: =IFERROR(INDEX('Project Summary'!$AT$83:$AT$84,MATCH(B27,'Project Summary'!$AS$83:$AS$84,0)),"") ->  | AQ27: =INDEX(Lookup!$B$70:$B$87,MATCH(AP27,Lookup!$A$70:$A$87,0)) ->  | AR27: =OR(LEFT(K27,LEN(K27)-LEN(AO27)-2)=AP27,K27=AP27,LEFT(K27,LEN(K27)-LEN(AO27)-1)=AP27) -> 
B29: 12 | C29: 10 | F29: =IFERROR(INDEX('Project Summary'!$W$83:$W$84,MATCH(B29,'Project Summary'!$AS$83:$AS$84,0)),"") ->  | AA29: =IFERROR(IF(AND(K29<>"",NOT(AR29)),IF(AN29="","Select BMP on Surface Tab.","Selected BMP doesn't match Surface Tab."),""),"") ->  | AN29: =IFERROR(INDEX('Project Summary'!$AX$83:$AX$84,MATCH(B29,'Project Summary'!$AS$83:$AS$84,0)),"NoLIst") -> NoLIst | AO29: =IF(OR(K29="",LEFT(K29,3)<>LEFT(AN29,3)),"",IF(AQ29,IFERROR(INDEX($AO$7:AO28,MATCH(K29,$K$7:K29,0)),MAX($AO$7:AO28)+1),MAX($AO$7:AO28)+1)) ->  | AP29: =IFERROR(INDEX('Project Summary'!$AT$83:$AT$84,MATCH(B29,'Project Summary'!$AS$83:$AS$84,0)),"") ->  | AQ29: =INDEX(Lookup!$B$70:$B$87,MATCH(AP29,Lookup!$A$70:$A$87,0)) ->  | AR29: =OR(LEFT(K29,LEN(K29)-LEN(AO29)-2)=AP29,K29=AP29,LEFT(K29,LEN(K29)-LEN(AO29)-1)=AP29) -> 
B31: 13 | C31: 10 | F31: =IFERROR(INDEX('Project Summary'!$W$83:$W$84,MATCH(B31,'Project Summary'!$AS$83:$AS$84,0)),"") ->  | AA31: =IFERROR(IF(AND(K31<>"",NOT(AR31)),IF(AN31="","Select BMP on Surface Tab.","Selected BMP doesn't match Surface Tab."),""),"") ->  | AN31: =IFERROR(INDEX('Project Summary'!$AX$83:$AX$84,MATCH(B31,'Project Summary'!$AS$83:$AS$84,0)),"NoLIst") -> NoLIst | AO31: =IF(OR(K31="",LEFT(K31,3)<>LEFT(AN31,3)),"",IF(AQ31,IFERROR(INDEX($AO$7:AO30,MATCH(K31,$K$7:K31,0)),MAX($AO$7:AO30)+1),MAX($AO$7:AO30)+1)) ->  | AP31: =IFERROR(INDEX('Project Summary'!$AT$83:$AT$84,MATCH(B31,'Project Summary'!$AS$83:$AS$84,0)),"") ->  | AQ31: =INDEX(Lookup!$B$70:$B$87,MATCH(AP31,Lookup!$A$70:$A$87,0)) ->  | AR31: =OR(LEFT(K31,LEN(K31)-LEN(AO31)-2)=AP31,K31=AP31,LEFT(K31,LEN(K31)-LEN(AO31)-1)=AP31) -> 
B33: 14 | C33: 10 | F33: =IFERROR(INDEX('Project Summary'!$W$83:$W$84,MATCH(B33,'Project Summary'!$AS$83:$AS$84,0)),"") ->  | AA33: =IFERROR(IF(AND(K33<>"",NOT(AR33)),IF(AN33="","Select BMP on Surface Tab.","Selected BMP doesn't match Surface Tab."),""),"") ->  | AN33: =IFERROR(INDEX('Project Summary'!$AX$83:$AX$84,MATCH(B33,'Project Summary'!$AS$83:$AS$84,0)),"NoLIst") -> NoLIst | AO33: =IF(OR(K33="",LEFT(K33,3)<>LEFT(AN33,3)),"",IF(AQ33,IFERROR(INDEX($AO$7:AO32,MATCH(K33,$K$7:K33,0)),MAX($AO$7:AO32)+1),MAX($AO$7:AO32)+1)) ->  | AP33: =IFERROR(INDEX('Project Summary'!$AT$83:$AT$84,MATCH(B33,'Project Summary'!$AS$83:$AS$84,0)),"") ->  | AQ33: =INDEX(Lookup!$B$70:$B$87,MATCH(AP33,Lookup!$A$70:$A$87,0)) ->  | AR33: =OR(LEFT(K33,LEN(K33)-LEN(AO33)-2)=AP33,K33=AP33,LEFT(K33,LEN(K33)-LEN(AO33)-1)=AP33) -> 
B35: 15 | C35: 10 | F35: =IFERROR(INDEX('Project Summary'!$W$83:$W$84,MATCH(B35,'Project Summary'!$AS$83:$AS$84,0)),"") ->  | AA35: =IFERROR(IF(AND(K35<>"",NOT(AR35)),IF(AN35="","Select BMP on Surface Tab.","Selected BMP doesn't match Surface Tab."),""),"") ->  | AN35: =IFERROR(INDEX('Project Summary'!$AX$83:$AX$84,MATCH(B35,'Project Summary'!$AS$83:$AS$84,0)),"NoLIst") -> NoLIst | AO35: =IF(OR(K35="",LEFT(K35,3)<>LEFT(AN35,3)),"",IF(AQ35,IFERROR(INDEX($AO$7:AO34,MATCH(K35,$K$7:K35,0)),MAX($AO$7:AO34)+1),MAX($AO$7:AO34)+1)) ->  | AP35: =IFERROR(INDEX('Project Summary'!$AT$83:$AT$84,MATCH(B35,'Project Summary'!$AS$83:$AS$84,0)),"") ->  | AQ35: =INDEX(Lookup!$B$70:$B$87,MATCH(AP35,Lookup!$A$70:$A$87,0)) ->  | AR35: =OR(LEFT(K35,LEN(K35)-LEN(AO35)-2)=AP35,K35=AP35,LEFT(K35,LEN(K35)-LEN(AO35)-1)=AP35) -> 
B37: 16 | C37: 10 | F37: =IFERROR(INDEX('Project Summary'!$W$83:$W$84,MATCH(B37,'Project Summary'!$AS$83:$AS$84,0)),"") ->  | AA37: =IFERROR(IF(AND(K37<>"",NOT(AR37)),IF(AN37="","Select BMP on Surface Tab.","Selected BMP doesn't match Surface Tab."),""),"") ->  | AN37: =IFERROR(INDEX('Project Summary'!$AX$83:$AX$84,MATCH(B37,'Project Summary'!$AS$83:$AS$84,0)),"NoLIst") -> NoLIst | AO37: =IF(OR(K37="",LEFT(K37,3)<>LEFT(AN37,3)),"",IF(AQ37,IFERROR(INDEX($AO$7:AO36,MATCH(K37,$K$7:K37,0)),MAX($AO$7:AO36)+1),MAX($AO$7:AO36)+1)) ->  | AP37: =IFERROR(INDEX('Project Summary'!$AT$83:$AT$84,MATCH(B37,'Project Summary'!$AS$83:$AS$84,0)),"") ->  | AQ37: =INDEX(Lookup!$B$70:$B$87,MATCH(AP37,Lookup!$A$70:$A$87,0)) ->  | AR37: =OR(LEFT(K37,LEN(K37)-LEN(AO37)-2)=AP37,K37=AP37,LEFT(K37,LEN(K37)-LEN(AO37)-1)=AP37) -> 
B39: 17 | C39: 10 | F39: =IFERROR(INDEX('Project Summary'!$W$83:$W$84,MATCH(B39,'Project Summary'!$AS$83:$AS$84,0)),"") ->  | AA39: =IFERROR(IF(AND(K39<>"",NOT(AR39)),IF(AN39="","Select BMP on Surface Tab.","Selected BMP doesn't match Surface Tab."),""),"") ->  | AN39: =IFERROR(INDEX('Project Summary'!$AX$83:$AX$84,MATCH(B39,'Project Summary'!$AS$83:$AS$84,0)),"NoLIst") -> NoLIst | AO39: =IF(OR(K39="",LEFT(K39,3)<>LEFT(AN39,3)),"",IF(AQ39,IFERROR(INDEX($AO$7:AO38,MATCH(K39,$K$7:K39,0)),MAX($AO$7:AO38)+1),MAX($AO$7:AO38)+1)) ->  | AP39: =IFERROR(INDEX('Project Summary'!$AT$83:$AT$84,MATCH(B39,'Project Summary'!$AS$83:$AS$84,0)),"") ->  | AQ39: =INDEX(Lookup!$B$70:$B$87,MATCH(AP39,Lookup!$A$70:$A$87,0)) ->  | AR39: =OR(LEFT(K39,LEN(K39)-LEN(AO39)-2)=AP39,K39=AP39,LEFT(K39,LEN(K39)-LEN(AO39)-1)=AP39) -> 
B41: 18 | C41: 10 | F41: =IFERROR(INDEX('Project Summary'!$W$83:$W$84,MATCH(B41,'Project Summary'!$AS$83:$AS$84,0)),"") ->  | AA41: =IFERROR(IF(AND(K41<>"",NOT(AR41)),IF(AN41="","Select BMP on Surface Tab.","Selected BMP doesn't match Surface Tab."),""),"") ->  | AN41: =IFERROR(INDEX('Project Summary'!$AX$83:$AX$84,MATCH(B41,'Project Summary'!$AS$83:$AS$84,0)),"NoLIst") -> NoLIst | AO41: =IF(OR(K41="",LEFT(K41,3)<>LEFT(AN41,3)),"",IF(AQ41,IFERROR(INDEX($AO$7:AO40,MATCH(K41,$K$7:K41,0)),MAX($AO$7:AO40)+1),MAX($AO$7:AO40)+1)) ->  | AP41: =IFERROR(INDEX('Project Summary'!$AT$83:$AT$84,MATCH(B41,'Project Summary'!$AS$83:$AS$84,0)),"") ->  | AQ41: =INDEX(Lookup!$B$70:$B$87,MATCH(AP41,Lookup!$A$70:$A$87,0)) ->  | AR41: =OR(LEFT(K41,LEN(K41)-LEN(AO41)-2)=AP41,K41=AP41,LEFT(K41,LEN(K41)-LEN(AO41)-1)=AP41) -> 
B43: 19 | C43: 10 | F43: =IFERROR(INDEX('Project Summary'!$W$83:$W$84,MATCH(B43,'Project Summary'!$AS$83:$AS$84,0)),"") ->  | AA43: =IFERROR(IF(AND(K43<>"",NOT(AR43)),IF(AN43="","Select BMP on Surface Tab.","Selected BMP doesn't match Surface Tab."),""),"") ->  | AN43: =IFERROR(INDEX('Project Summary'!$AX$83:$AX$84,MATCH(B43,'Project Summary'!$AS$83:$AS$84,0)),"NoLIst") -> NoLIst | AO43: =IF(OR(K43="",LEFT(K43,3)<>LEFT(AN43,3)),"",IF(AQ43,IFERROR(INDEX($AO$7:AO42,MATCH(K43,$K$7:K43,0)),MAX($AO$7:AO42)+1),MAX($AO$7:AO42)+1)) ->  | AP43: =IFERROR(INDEX('Project Summary'!$AT$83:$AT$84,MATCH(B43,'Project Summary'!$AS$83:$AS$84,0)),"") ->  | AQ43: =INDEX(Lookup!$B$70:$B$87,MATCH(AP43,Lookup!$A$70:$A$87,0)) ->  | AR43: =OR(LEFT(K43,LEN(K43)-LEN(AO43)-2)=AP43,K43=AP43,LEFT(K43,LEN(K43)-LEN(AO43)-1)=AP43) -> 
B45: 20 | C45: 10 | F45: =IFERROR(INDEX('Project Summary'!$W$83:$W$84,MATCH(B45,'Project Summary'!$AS$83:$AS$84,0)),"") ->  | AA45: =IFERROR(IF(AND(K45<>"",NOT(AR45)),IF(AN45="","Select BMP on Surface Tab.","Selected BMP doesn't match Surface Tab."),""),"") ->  | AN45: =IFERROR(INDEX('Project Summary'!$AX$83:$AX$84,MATCH(B45,'Project Summary'!$AS$83:$AS$84,0)),"NoLIst") -> NoLIst | AO45: =IF(OR(K45="",LEFT(K45,3)<>LEFT(AN45,3)),"",IF(AQ45,IFERROR(INDEX($AO$7:AO44,MATCH(K45,$K$7:K45,0)),MAX($AO$7:AO44)+1),MAX($AO$7:AO44)+1)) ->  | AP45: =IFERROR(INDEX('Project Summary'!$AT$83:$AT$84,MATCH(B45,'Project Summary'!$AS$83:$AS$84,0)),"") ->  | AQ45: =INDEX(Lookup!$B$70:$B$87,MATCH(AP45,Lookup!$A$70:$A$87,0)) ->  | AR45: =OR(LEFT(K45,LEN(K45)-LEN(AO45)-2)=AP45,K45=AP45,LEFT(K45,LEN(K45)-LEN(AO45)-1)=AP45) -> 
AN47: Unique count lookup | AO47: Dropdown lookup | AP47: Sizing Factor & Units | AQ47: Facility Size | AR47: Units | AS47: Volume Mangaed gal/yr | AT47: Data Entered when This was List
B48: BMP | N48: BMP Facility Inputs | AC48: BMP Size and Credit
B49: =IFERROR(IF(INDEX($K$7:$K$46,MATCH(AN49,$AO$7:$AO$46,0))="","",INDEX($K$7:$K$46,MATCH(AN49,$AO$7:$AO$46,0))),"") ->  | N49: =IF(B49="","",IF(AO49="Vegetated Roof System","Roof Area","Contributing Area (sf)")) ->  | V49: =IF(B49="","",SUMIF($AO$7:$AO$46,AN49,$F$7:$I$46)) ->  | AC49: =IFERROR(IF(AP49=-999,"Configuration not allowed.",IF(AP49=0,"Configuration not allowed.",IF(AO49="New or Retained Trees","As many as feasible.",TEXT(IF(OR(AO49="Permeable Pavement Facility",AO49="Vegetated Roof System"),H51,AP49*V49),"#,##0")&" "&AR49))),"") ->  | AN49: 1 | AO49: =INDEX($AP$7:$AP$46,MATCH(AN49,$AO$7:$AO$46,0)) ->  | AP49: =IF(AO49="New or Retained Trees", INDEX(Lookup!$F$90:$F$212,MATCH(TRIM(CONCATENATE(AO49,V51)),Lookup!$E$90:$E$212,0)), IF(AO49="Single-family Residential Cisterns", INDEX(Lookup!$F$90:$F$212,MATCH(TRIM(CONCATENATE(AO49,IF(V49<400,0,IF(V49>4200,4201,ROUNDDOWN(V49,-2))) )),Lookup!$E$90:$E$212,0)), INDEX(Lookup!$F$90:$F$212,MATCH(TRIM(CONCATENATE(AO49,V51,V53,V55)),Lookup!$E$90:$E$212,0)))) ->  | AQ49: =IF(AP49<=0,NA(),IF(OR(AO49="Permeable Pavement Facility",AO49="Vegetated Roof System"),H51,AP49*V49)) ->  | AR49: =IF(AO49="Single-family Residential Cisterns", "sf",INDEX(Lookup!$H$90:$H$212,MATCH(TRIM(CONCATENATE(AO49,V51,V53,V55)),Lookup!$E$90:$E$212,0))) ->  | AS49: =IF(AO49="New or Retained Trees", INDEX(Lookup!$G$90:$G$212,MATCH(TRIM(CONCATENATE(AO49,V51)),Lookup!$E$90:$E$212,0))*V53, IF(AO49="Single-family Residential Cisterns", INDEX(Lookup!$G$90:$G$212,MATCH(TRIM(CONCATENATE(AO49,IF(V49<400,0,IF(V49>4200,4201,ROUNDDOWN(V49,-2))) )),Lookup!$E$90:$E$212,0))*V49, INDEX(Lookup!$G$90:$G$212,MATCH(TRIM(CONCATENATE(AO49,V51,V53,V55)),Lookup!$E$90:$E$212,0))*V49))*7.48052 *IF(OR(AO49="Permeable Pavement Facility",AO49="Vegetated Roof System"),MIN(1,H51/(AP49*V49)),1) +IF(AO49="Permeable Pavement Facility",H51*2.1*7.48052,1) ->  | AT49: =IFERROR(IF(AO49="Single-family Residential Cisterns",INDEX(Lookup!$H$90:$H$212,MATCH(TRIM(CONCATENATE(AO49,IF(V49<400,0,IF(V49>4200,4201,ROUNDDOWN(V49,-2))))),Lookup!$E$90:$E$212,0)),IF(AND(V51="",V53="",V55=""),"",TRIM(V53&" "&AP53&" "&V51&" "&AP51&" "&V55&" "&AP55))),"") -> 
B51: =IFERROR(IF(AO49="Permeable Pavement Facility","Facility Area (sf)",IF(AO49="Vegetated Roof System","Vegetated Area (sf)","")),"") ->  | N51: =IFERROR(INDEX(Lookup!$C$70:$C$87,MATCH(AO49,Lookup!$A$70:$A$87,0)),"") ->  | AC51: =IFERROR(TEXT(AS49,"#,##0")&" gal managed/year",IFERROR(IF(AP49=0,"Infiltration rate too low.",""),"")) ->  | AO51: =TRIM(SUBSTITUTE(SUBSTITUTE(AO49," ",""),"-","")&"List1") ->  | AP51: =IFERROR(INDEX(Lookup!$F$70:$F$87,MATCH(AO49,Lookup!$A$70:$A$87,0)),"") ->  | AT51: NonInfiltratingBioretentionList1
B53: =IFERROR(IF(OR(AO49="Permeable Pavement Facility",AO49="Vegetated Roof System"),"Minimum Facility Area "&TEXT((AP49*V49),"#,###")&" sf",""),"") ->  | N53: =IFERROR(INDEX(Lookup!$D$70:$D$87,MATCH(AO49,Lookup!$A$70:$A$87,0)),"") ->  | AO53: =TRIM(SUBSTITUTE(SUBSTITUTE(AO49," ",""),"-","")&"List2") ->  | AP53: =IFERROR(INDEX(Lookup!$G$70:$G$87,MATCH(AO49,Lookup!$A$70:$A$87,0)),"") ->  | AT53: NonInfiltratingBioretentionList2
N55: =IFERROR(INDEX(Lookup!$E$70:$E$87,MATCH(AO49,Lookup!$A$70:$A$87,0)),"") ->  | AO55: =TRIM(SUBSTITUTE(SUBSTITUTE(AO49," ",""),"-","")&"List3") ->  | AT55: InfiltratingBioretentionList3
B57: =IFERROR(IF(INDEX($K$7:$K$46,MATCH(AN57,$AO$7:$AO$46,0))="","",INDEX($K$7:$K$46,MATCH(AN57,$AO$7:$AO$46,0))),"") ->  | N57: =IF(B57="","",IF(AO57="Vegetated Roof System","Roof Area","Contributing Area (sf)")) ->  | V57: =IF(B57="","",SUMIF($AO$7:$AO$46,AN57,$F$7:$I$46)) ->  | AC57: =IFERROR(IF(AP57=-999,"Configuration not allowed.",IF(AP57=0,"Configuration not allowed.",IF(AO57="New or Retained Trees","As many as feasible.",TEXT(IF(OR(AO57="Permeable Pavement Facility",AO57="Vegetated Roof System"),H59,AP57*V57),"#,##0")&" "&AR57))),"") ->  | AN57: 2 | AO57: =INDEX($AP$7:$AP$46,MATCH(AN57,$AO$7:$AO$46,0)) ->  | AP57: =IF(AO57="New or Retained Trees", INDEX(Lookup!$F$90:$F$212,MATCH(TRIM(CONCATENATE(AO57,V59)),Lookup!$E$90:$E$212,0)), IF(AO57="Single-family Residential Cisterns", INDEX(Lookup!$F$90:$F$212,MATCH(TRIM(CONCATENATE(AO57,IF(V57<400,0,IF(V57>4200,4201,ROUNDDOWN(V57,-2))) )),Lookup!$E$90:$E$212,0)), INDEX(Lookup!$F$90:$F$212,MATCH(TRIM(CONCATENATE(AO57,V59,V61,V63)),Lookup!$E$90:$E$212,0)))) ->  | AQ57: =IF(AP57<=0,NA(),IF(OR(AO57="Permeable Pavement Facility",AO57="Vegetated Roof System"),H59,AP57*V57)) ->  | AR57: =IF(AO57="Single-family Residential Cisterns", "sf",INDEX(Lookup!$H$90:$H$212,MATCH(TRIM(CONCATENATE(AO57,V59,V61,V63)),Lookup!$E$90:$E$212,0))) ->  | AS57: =IF(AO57="New or Retained Trees", INDEX(Lookup!$G$90:$G$212,MATCH(TRIM(CONCATENATE(AO57,V59)),Lookup!$E$90:$E$212,0))*V61, IF(AO57="Single-family Residential Cisterns", INDEX(Lookup!$G$90:$G$212,MATCH(TRIM(CONCATENATE(AO57,IF(V57<400,0,IF(V57>4200,4201,ROUNDDOWN(V57,-2))) )),Lookup!$E$90:$E$212,0))*V57, INDEX(Lookup!$G$90:$G$212,MATCH(TRIM(CONCATENATE(AO57,V59,V61,V63)),Lookup!$E$90:$E$212,0))*V57))*7.48052 *IF(OR(AO57="Permeable Pavement Facility",AO57="Vegetated Roof System"),MIN(1,H59/(AP57*V57)),1) +IF(AO57="Permeable Pavement Facility",H59*2.1*7.48052,1) ->  | AT57: =IFERROR(IF(AO57="Single-family Residential Cisterns",INDEX(Lookup!$H$90:$H$212,MATCH(TRIM(CONCATENATE(AO57,IF(V57<400,0,IF(V57>4200,4201,ROUNDDOWN(V57,-2))))),Lookup!$E$90:$E$212,0)),IF(AND(V59="",V61="",V63=""),"",TRIM(V61&" "&AP61&" "&V59&" "&AP59&" "&V63&" "&AP63))),"") -> 
B59: =IFERROR(IF(AO57="Permeable Pavement Facility","Facility Area (sf)",IF(AO57="Vegetated Roof System","Vegetated Area (sf)","")),"") ->  | N59: =IFERROR(INDEX(Lookup!$C$70:$C$87,MATCH(AO57,Lookup!$A$70:$A$87,0)),"") ->  | AC59: =IFERROR(TEXT(AS57,"#,##0")&" gal managed/year",IFERROR(IF(AP57=0,"Infiltration rate too low.",""),"")) ->  | AO59: =TRIM(SUBSTITUTE(SUBSTITUTE(AO57," ",""),"-","")&"List1") ->  | AP59: =IFERROR(INDEX(Lookup!$F$70:$F$87,MATCH(AO57,Lookup!$A$70:$A$87,0)),"") ->  | AT59: VegetatedRoofSystemList1
N60: =IFERROR(INDEX(Lookup!$D$70:$D$87,MATCH(AO53,Lookup!$A$70:$A$87,0)),"") -> 
B61: =IFERROR(IF(OR(AO57="Permeable Pavement Facility",AO57="Vegetated Roof System"),"Minimum Facility Area "&TEXT((AP57*V57),"#,###")&" sf",""),"") ->  | N61: =IFERROR(INDEX(Lookup!$D$70:$D$87,MATCH(AO57,Lookup!$A$70:$A$87,0)),"") ->  | AO61: =TRIM(SUBSTITUTE(SUBSTITUTE(AO57," ",""),"-","")&"List2") ->  | AP61: =IFERROR(INDEX(Lookup!$G$70:$G$87,MATCH(AO57,Lookup!$A$70:$A$87,0)),"") ->  | AT61: VegetatedRoofSystemList2
N63: =IFERROR(INDEX(Lookup!$E$70:$E$87,MATCH(AO57,Lookup!$A$70:$A$87,0)),"") ->  | AO63: =TRIM(SUBSTITUTE(SUBSTITUTE(AO57," ",""),"-","")&"List3") -> 
B65: =IFERROR(IF(INDEX($K$7:$K$46,MATCH(AN65,$AO$7:$AO$46,0))="","",INDEX($K$7:$K$46,MATCH(AN65,$AO$7:$AO$46,0))),"") ->  | N65: =IF(B65="","",IF(AO65="Vegetated Roof System","Roof Area","Contributing Area (sf)")) ->  | V65: =IF(B65="","",SUMIF($AO$7:$AO$46,AN65,$F$7:$I$46)) ->  | AC65: =IFERROR(IF(AP65=-999,"Configuration not allowed.",IF(AP65=0,"Configuration not allowed.",IF(AO65="New or Retained Trees","As many as feasible.",TEXT(IF(OR(AO65="Permeable Pavement Facility",AO65="Vegetated Roof System"),H67,AP65*V65),"#,##0")&" "&AR65))),"") ->  | AN65: 3 | AO65: =INDEX($AP$7:$AP$46,MATCH(AN65,$AO$7:$AO$46,0)) ->  | AP65: =IF(AO65="New or Retained Trees", INDEX(Lookup!$F$90:$F$212,MATCH(TRIM(CONCATENATE(AO65,V67)),Lookup!$E$90:$E$212,0)), IF(AO65="Single-family Residential Cisterns", INDEX(Lookup!$F$90:$F$212,MATCH(TRIM(CONCATENATE(AO65,IF(V65<400,0,IF(V65>4200,4201,ROUNDDOWN(V65,-2))) )),Lookup!$E$90:$E$212,0)), INDEX(Lookup!$F$90:$F$212,MATCH(TRIM(CONCATENATE(AO65,V67,V69,V71)),Lookup!$E$90:$E$212,0)))) ->  | AQ65: =IF(AP65<=0,NA(),IF(OR(AO65="Permeable Pavement Facility",AO65="Vegetated Roof System"),H67,AP65*V65)) ->  | AR65: =IF(AO65="Single-family Residential Cisterns", "sf",INDEX(Lookup!$H$90:$H$212,MATCH(TRIM(CONCATENATE(AO65,V67,V69,V71)),Lookup!$E$90:$E$212,0))) ->  | AS65: =IF(AO65="New or Retained Trees", INDEX(Lookup!$G$90:$G$212,MATCH(TRIM(CONCATENATE(AO65,V67)),Lookup!$E$90:$E$212,0))*V69, IF(AO65="Single-family Residential Cisterns", INDEX(Lookup!$G$90:$G$212,MATCH(TRIM(CONCATENATE(AO65,IF(V65<400,0,IF(V65>4200,4201,ROUNDDOWN(V65,-2))) )),Lookup!$E$90:$E$212,0))*V65, INDEX(Lookup!$G$90:$G$212,MATCH(TRIM(CONCATENATE(AO65,V67,V69,V71)),Lookup!$E$90:$E$212,0))*V65))*7.48052 *IF(OR(AO65="Permeable Pavement Facility",AO65="Vegetated Roof System"),MIN(1,H67/(AP65*V65)),1) +IF(AO65="Permeable Pavement Facility",H67*2.1*7.48052,1) ->  | AT65: =IFERROR(IF(AO65="Single-family Residential Cisterns",INDEX(Lookup!$H$90:$H$212,MATCH(TRIM(CONCATENATE(AO65,IF(V65<400,0,IF(V65>4200,4201,ROUNDDOWN(V65,-2))))),Lookup!$E$90:$E$212,0)),IF(AND(V67="",V69="",V71=""),"",TRIM(V69&" "&AP69&" "&V67&" "&AP67&" "&V71&" "&AP71))),"") -> 
B67: =IFERROR(IF(AO65="Permeable Pavement Facility","Facility Area (sf)",IF(AO65="Vegetated Roof System","Vegetated Area (sf)","")),"") ->  | N67: =IFERROR(INDEX(Lookup!$C$70:$C$87,MATCH(AO65,Lookup!$A$70:$A$87,0)),"") ->  | AC67: =IFERROR(TEXT(AS65,"#,##0")&" gal managed/year",IFERROR(IF(AP65=0,"Infiltration rate too low.",""),"")) ->  | AO67: =TRIM(SUBSTITUTE(SUBSTITUTE(AO65," ",""),"-","")&"List1") ->  | AP67: =IFERROR(INDEX(Lookup!$F$70:$F$87,MATCH(AO65,Lookup!$A$70:$A$87,0)),"") -> 
B69: =IFERROR(IF(OR(AO65="Permeable Pavement Facility",AO65="Vegetated Roof System"),"Minimum Facility Area "&TEXT((AP65*V65),"#,###")&" sf",""),"") ->  | N69: =IFERROR(INDEX(Lookup!$D$70:$D$87,MATCH(AO65,Lookup!$A$70:$A$87,0)),"") ->  | AO69: =TRIM(SUBSTITUTE(SUBSTITUTE(AO65," ",""),"-","")&"List2") ->  | AP69: =IFERROR(INDEX(Lookup!$G$70:$G$87,MATCH(AO65,Lookup!$A$70:$A$87,0)),"") -> 
N71: =IFERROR(INDEX(Lookup!$E$70:$E$87,MATCH(AO65,Lookup!$A$70:$A$87,0)),"") ->  | AO71: =TRIM(SUBSTITUTE(SUBSTITUTE(AO65," ",""),"-","")&"List3") -> 
B73: =IFERROR(IF(INDEX($K$7:$K$46,MATCH(AN73,$AO$7:$AO$46,0))="","",INDEX($K$7:$K$46,MATCH(AN73,$AO$7:$AO$46,0))),"") ->  | N73: =IF(B73="","",IF(AO73="Vegetated Roof System","Roof Area","Contributing Area (sf)")) ->  | V73: =IF(B73="","",SUMIF($AO$7:$AO$46,AN73,$F$7:$I$46)) ->  | AC73: =IFERROR(IF(AP73=-999,"Configuration not allowed.",IF(AP73=0,"Configuration not allowed.",IF(AO73="New or Retained Trees","As many as feasible.",TEXT(IF(OR(AO73="Permeable Pavement Facility",AO73="Vegetated Roof System"),H75,AP73*V73),"#,##0")&" "&AR73))),"") ->  | AN73: 4 | AO73: =INDEX($AP$7:$AP$46,MATCH(AN73,$AO$7:$AO$46,0)) ->  | AP73: =IF(AO73="New or Retained Trees", INDEX(Lookup!$F$90:$F$212,MATCH(TRIM(CONCATENATE(AO73,V75)),Lookup!$E$90:$E$212,0)), IF(AO73="Single-family Residential Cisterns", INDEX(Lookup!$F$90:$F$212,MATCH(TRIM(CONCATENATE(AO73,IF(V73<400,0,IF(V73>4200,4201,ROUNDDOWN(V73,-2))) )),Lookup!$E$90:$E$212,0)), INDEX(Lookup!$F$90:$F$212,MATCH(TRIM(CONCATENATE(AO73,V75,V77,V79)),Lookup!$E$90:$E$212,0)))) ->  | AQ73: =IF(AP73<=0,NA(),IF(OR(AO73="Permeable Pavement Facility",AO73="Vegetated Roof System"),H75,AP73*V73)) ->  | AR73: =IF(AO73="Single-family Residential Cisterns", "sf",INDEX(Lookup!$H$90:$H$212,MATCH(TRIM(CONCATENATE(AO73,V75,V77,V79)),Lookup!$E$90:$E$212,0))) ->  | AS73: =IF(AO73="New or Retained Trees", INDEX(Lookup!$G$90:$G$212,MATCH(TRIM(CONCATENATE(AO73,V75)),Lookup!$E$90:$E$212,0))*V77, IF(AO73="Single-family Residential Cisterns", INDEX(Lookup!$G$90:$G$212,MATCH(TRIM(CONCATENATE(AO73,IF(V73<400,0,IF(V73>4200,4201,ROUNDDOWN(V73,-2))) )),Lookup!$E$90:$E$212,0))*V73, INDEX(Lookup!$G$90:$G$212,MATCH(TRIM(CONCATENATE(AO73,V75,V77,V79)),Lookup!$E$90:$E$212,0))*V73))*7.48052 *IF(OR(AO73="Permeable Pavement Facility",AO73="Vegetated Roof System"),MIN(1,H75/(AP73*V73)),1) +IF(AO73="Permeable Pavement Facility",H75*2.1*7.48052,1) ->  | AT73: =IFERROR(IF(AO73="Single-family Residential Cisterns",INDEX(Lookup!$H$90:$H$212,MATCH(TRIM(CONCATENATE(AO73,IF(V73<400,0,IF(V73>4200,4201,ROUNDDOWN(V73,-2))))),Lookup!$E$90:$E$212,0)),IF(AND(V75="",V77="",V79=""),"",TRIM(V77&" "&AP77&" "&V75&" "&AP75&" "&V79&" "&AP79))),"") -> 
B75: =IFERROR(IF(AO73="Permeable Pavement Facility","Facility Area (sf)",IF(AO73="Vegetated Roof System","Vegetated Area (sf)","")),"") ->  | N75: =IFERROR(INDEX(Lookup!$C$70:$C$87,MATCH(AO73,Lookup!$A$70:$A$87,0)),"") ->  | AC75: =IFERROR(TEXT(AS73,"#,##0")&" gal managed/year",IFERROR(IF(AP73=0,"Infiltration rate too low.",""),"")) ->  | AO75: =TRIM(SUBSTITUTE(SUBSTITUTE(AO73," ",""),"-","")&"List1") ->  | AP75: =IFERROR(INDEX(Lookup!$F$70:$F$87,MATCH(AO73,Lookup!$A$70:$A$87,0)),"") -> 
B77: =IFERROR(IF(OR(AO73="Permeable Pavement Facility",AO73="Vegetated Roof System"),"Minimum Facility Area "&TEXT((AP73*V73),"#,###")&" sf",""),"") ->  | N77: =IFERROR(INDEX(Lookup!$D$70:$D$87,MATCH(AO73,Lookup!$A$70:$A$87,0)),"") ->  | AO77: =TRIM(SUBSTITUTE(SUBSTITUTE(AO73," ",""),"-","")&"List2") ->  | AP77: =IFERROR(INDEX(Lookup!$G$70:$G$87,MATCH(AO73,Lookup!$A$70:$A$87,0)),"") -> 
N79: =IFERROR(INDEX(Lookup!$E$70:$E$87,MATCH(AO73,Lookup!$A$70:$A$87,0)),"") ->  | AO79: =TRIM(SUBSTITUTE(SUBSTITUTE(AO73," ",""),"-","")&"List3") -> 
B81: =IFERROR(IF(INDEX($K$7:$K$46,MATCH(AN81,$AO$7:$AO$46,0))="","",INDEX($K$7:$K$46,MATCH(AN81,$AO$7:$AO$46,0))),"") ->  | N81: =IF(B81="","",IF(AO81="Vegetated Roof System","Roof Area","Contributing Area (sf)")) ->  | V81: =IF(B81="","",SUMIF($AO$7:$AO$46,AN81,$F$7:$I$46)) ->  | AC81: =IFERROR(IF(AP81=-999,"Configuration not allowed.",IF(AP81=0,"Configuration not allowed.",IF(AO81="New or Retained Trees","As many as feasible.",TEXT(IF(OR(AO81="Permeable Pavement Facility",AO81="Vegetated Roof System"),H83,AP81*V81),"#,##0")&" "&AR81))),"") ->  | AN81: 5 | AO81: =INDEX($AP$7:$AP$46,MATCH(AN81,$AO$7:$AO$46,0)) ->  | AP81: =IF(AO81="New or Retained Trees", INDEX(Lookup!$F$90:$F$212,MATCH(TRIM(CONCATENATE(AO81,V83)),Lookup!$E$90:$E$212,0)), IF(AO81="Single-family Residential Cisterns", INDEX(Lookup!$F$90:$F$212,MATCH(TRIM(CONCATENATE(AO81,IF(V81<400,0,IF(V81>4200,4201,ROUNDDOWN(V81,-2))) )),Lookup!$E$90:$E$212,0)), INDEX(Lookup!$F$90:$F$212,MATCH(TRIM(CONCATENATE(AO81,V83,V85,V87)),Lookup!$E$90:$E$212,0)))) ->  | AQ81: =IF(AP81<=0,NA(),IF(OR(AO81="Permeable Pavement Facility",AO81="Vegetated Roof System"),H83,AP81*V81)) ->  | AR81: =IF(AO81="Single-family Residential Cisterns", "sf",INDEX(Lookup!$H$90:$H$212,MATCH(TRIM(CONCATENATE(AO81,V83,V85,V87)),Lookup!$E$90:$E$212,0))) ->  | AS81: =IF(AO81="New or Retained Trees", INDEX(Lookup!$G$90:$G$212,MATCH(TRIM(CONCATENATE(AO81,V83)),Lookup!$E$90:$E$212,0))*V85, IF(AO81="Single-family Residential Cisterns", INDEX(Lookup!$G$90:$G$212,MATCH(TRIM(CONCATENATE(AO81,IF(V81<400,0,IF(V81>4200,4201,ROUNDDOWN(V81,-2))) )),Lookup!$E$90:$E$212,0))*V81, INDEX(Lookup!$G$90:$G$212,MATCH(TRIM(CONCATENATE(AO81,V83,V85,V87)),Lookup!$E$90:$E$212,0))*V81))*7.48052 *IF(OR(AO81="Permeable Pavement Facility",AO81="Vegetated Roof System"),MIN(1,H83/(AP81*V81)),1) +IF(AO81="Permeable Pavement Facility",H83*2.1*7.48052,1) ->  | AT81: =IFERROR(IF(AO81="Single-family Residential Cisterns",INDEX(Lookup!$H$90:$H$212,MATCH(TRIM(CONCATENATE(AO81,IF(V81<400,0,IF(V81>4200,4201,ROUNDDOWN(V81,-2))))),Lookup!$E$90:$E$212,0)),IF(AND(V83="",V85="",V87=""),"",TRIM(V85&" "&AP85&" "&V83&" "&AP83&" "&V87&" "&AP87))),"") -> 
B83: =IFERROR(IF(AO81="Permeable Pavement Facility","Facility Area (sf)",IF(AO81="Vegetated Roof System","Vegetated Area (sf)","")),"") ->  | N83: =IFERROR(INDEX(Lookup!$C$70:$C$87,MATCH(AO81,Lookup!$A$70:$A$87,0)),"") ->  | AC83: =IFERROR(TEXT(AS81,"#,##0")&" gal managed/year",IFERROR(IF(AP81=0,"Infiltration rate too low.",""),"")) ->  | AO83: =TRIM(SUBSTITUTE(SUBSTITUTE(AO81," ",""),"-","")&"List1") ->  | AP83: =IFERROR(INDEX(Lookup!$F$70:$F$87,MATCH(AO81,Lookup!$A$70:$A$87,0)),"") -> 
B85: =IFERROR(IF(OR(AO81="Permeable Pavement Facility",AO81="Vegetated Roof System"),"Minimum Facility Area "&TEXT((AP81*V81),"#,###")&" sf",""),"") ->  | N85: =IFERROR(INDEX(Lookup!$D$70:$D$87,MATCH(AO81,Lookup!$A$70:$A$87,0)),"") ->  | AO85: =TRIM(SUBSTITUTE(SUBSTITUTE(AO81," ",""),"-","")&"List2") ->  | AP85: =IFERROR(INDEX(Lookup!$G$70:$G$87,MATCH(AO81,Lookup!$A$70:$A$87,0)),"") -> 
N87: =IFERROR(INDEX(Lookup!$E$70:$E$87,MATCH(AO81,Lookup!$A$70:$A$87,0)),"") ->  | AO87: =TRIM(SUBSTITUTE(SUBSTITUTE(AO81," ",""),"-","")&"List3") -> 
B89: =IFERROR(IF(INDEX($K$7:$K$46,MATCH(AN89,$AO$7:$AO$46,0))="","",INDEX($K$7:$K$46,MATCH(AN89,$AO$7:$AO$46,0))),"") ->  | N89: =IF(B89="","",IF(AO89="Vegetated Roof System","Roof Area","Contributing Area (sf)")) ->  | V89: =IF(B89="","",SUMIF($AO$7:$AO$46,AN89,$F$7:$I$46)) ->  | AC89: =IFERROR(IF(AP89=-999,"Configuration not allowed.",IF(AP89=0,"Configuration not allowed.",IF(AO89="New or Retained Trees","As many as feasible.",TEXT(IF(OR(AO89="Permeable Pavement Facility",AO89="Vegetated Roof System"),H91,AP89*V89),"#,##0")&" "&AR89))),"") ->  | AN89: 6 | AO89: =INDEX($AP$7:$AP$46,MATCH(AN89,$AO$7:$AO$46,0)) ->  | AP89: =IF(AO89="New or Retained Trees", INDEX(Lookup!$F$90:$F$212,MATCH(TRIM(CONCATENATE(AO89,V91)),Lookup!$E$90:$E$212,0)), IF(AO89="Single-family Residential Cisterns", INDEX(Lookup!$F$90:$F$212,MATCH(TRIM(CONCATENATE(AO89,IF(V89<400,0,IF(V89>4200,4201,ROUNDDOWN(V89,-2))) )),Lookup!$E$90:$E$212,0)), INDEX(Lookup!$F$90:$F$212,MATCH(TRIM(CONCATENATE(AO89,V91,V93,V95)),Lookup!$E$90:$E$212,0)))) ->  | AQ89: =IF(AP89<=0,NA(),IF(OR(AO89="Permeable Pavement Facility",AO89="Vegetated Roof System"),H91,AP89*V89)) ->  | AR89: =IF(AO89="Single-family Residential Cisterns", "sf",INDEX(Lookup!$H$90:$H$212,MATCH(TRIM(CONCATENATE(AO89,V91,V93,V95)),Lookup!$E$90:$E$212,0))) ->  | AS89: =IF(AO89="New or Retained Trees", INDEX(Lookup!$G$90:$G$212,MATCH(TRIM(CONCATENATE(AO89,V91)),Lookup!$E$90:$E$212,0))*V93, IF(AO89="Single-family Residential Cisterns", INDEX(Lookup!$G$90:$G$212,MATCH(TRIM(CONCATENATE(AO89,IF(V89<400,0,IF(V89>4200,4201,ROUNDDOWN(V89,-2))) )),Lookup!$E$90:$E$212,0))*V89, INDEX(Lookup!$G$90:$G$212,MATCH(TRIM(CONCATENATE(AO89,V91,V93,V95)),Lookup!$E$90:$E$212,0))*V89))*7.48052 *IF(OR(AO89="Permeable Pavement Facility",AO89="Vegetated Roof System"),MIN(1,H91/(AP89*V89)),1) +IF(AO89="Permeable Pavement Facility",H91*2.1*7.48052,1) ->  | AT89: =IFERROR(IF(AO89="Single-family Residential Cisterns",INDEX(Lookup!$H$90:$H$212,MATCH(TRIM(CONCATENATE(AO89,IF(V89<400,0,IF(V89>4200,4201,ROUNDDOWN(V89,-2))))),Lookup!$E$90:$E$212,0)),IF(AND(V91="",V93="",V95=""),"",TRIM(V93&" "&AP93&" "&V91&" "&AP91&" "&V95&" "&AP95))),"") -> 
B91: =IFERROR(IF(AO89="Permeable Pavement Facility","Facility Area (sf)",IF(AO89="Vegetated Roof System","Vegetated Area (sf)","")),"") ->  | N91: =IFERROR(INDEX(Lookup!$C$70:$C$87,MATCH(AO89,Lookup!$A$70:$A$87,0)),"") ->  | AC91: =IFERROR(TEXT(AS89,"#,##0")&" gal managed/year",IFERROR(IF(AP89=0,"Infiltration rate too low.",""),"")) ->  | AO91: =TRIM(SUBSTITUTE(SUBSTITUTE(AO89," ",""),"-","")&"List1") ->  | AP91: =IFERROR(INDEX(Lookup!$F$70:$F$87,MATCH(AO89,Lookup!$A$70:$A$87,0)),"") -> 
B93: =IFERROR(IF(OR(AO89="Permeable Pavement Facility",AO89="Vegetated Roof System"),"Minimum Facility Area "&TEXT((AP89*V89),"#,###")&" sf",""),"") ->  | N93: =IFERROR(INDEX(Lookup!$D$70:$D$87,MATCH(AO89,Lookup!$A$70:$A$87,0)),"") ->  | AO93: =TRIM(SUBSTITUTE(SUBSTITUTE(AO89," ",""),"-","")&"List2") ->  | AP93: =IFERROR(INDEX(Lookup!$G$70:$G$87,MATCH(AO89,Lookup!$A$70:$A$87,0)),"") -> 
N95: =IFERROR(INDEX(Lookup!$E$70:$E$87,MATCH(AO89,Lookup!$A$70:$A$87,0)),"") ->  | AO95: =TRIM(SUBSTITUTE(SUBSTITUTE(AO89," ",""),"-","")&"List3") -> 
B97: =IFERROR(IF(INDEX($K$7:$K$46,MATCH(AN97,$AO$7:$AO$46,0))="","",INDEX($K$7:$K$46,MATCH(AN97,$AO$7:$AO$46,0))),"") ->  | N97: =IF(B97="","",IF(AO97="Vegetated Roof System","Roof Area","Contributing Area (sf)")) ->  | V97: =IF(B97="","",SUMIF($AO$7:$AO$46,AN97,$F$7:$I$46)) ->  | AC97: =IFERROR(IF(AP97=-999,"Configuration not allowed.",IF(AP97=0,"Configuration not allowed.",IF(AO97="New or Retained Trees","As many as feasible.",TEXT(IF(OR(AO97="Permeable Pavement Facility",AO97="Vegetated Roof System"),H99,AP97*V97),"#,##0")&" "&AR97))),"") ->  | AN97: 7 | AO97: =INDEX($AP$7:$AP$46,MATCH(AN97,$AO$7:$AO$46,0)) ->  | AP97: =IF(AO97="New or Retained Trees", INDEX(Lookup!$F$90:$F$212,MATCH(TRIM(CONCATENATE(AO97,V99)),Lookup!$E$90:$E$212,0)), IF(AO97="Single-family Residential Cisterns", INDEX(Lookup!$F$90:$F$212,MATCH(TRIM(CONCATENATE(AO97,IF(V97<400,0,IF(V97>4200,4201,ROUNDDOWN(V97,-2))) )),Lookup!$E$90:$E$212,0)), INDEX(Lookup!$F$90:$F$212,MATCH(TRIM(CONCATENATE(AO97,V99,V101,V103)),Lookup!$E$90:$E$212,0)))) ->  | AQ97: =IF(AP97<=0,NA(),IF(OR(AO97="Permeable Pavement Facility",AO97="Vegetated Roof System"),H99,AP97*V97)) ->  | AR97: =IF(AO97="Single-family Residential Cisterns", "sf",INDEX(Lookup!$H$90:$H$212,MATCH(TRIM(CONCATENATE(AO97,V99,V101,V103)),Lookup!$E$90:$E$212,0))) ->  | AS97: =IF(AO97="New or Retained Trees", INDEX(Lookup!$G$90:$G$212,MATCH(TRIM(CONCATENATE(AO97,V99)),Lookup!$E$90:$E$212,0))*V101, IF(AO97="Single-family Residential Cisterns", INDEX(Lookup!$G$90:$G$212,MATCH(TRIM(CONCATENATE(AO97,IF(V97<400,0,IF(V97>4200,4201,ROUNDDOWN(V97,-2))) )),Lookup!$E$90:$E$212,0))*V97, INDEX(Lookup!$G$90:$G$212,MATCH(TRIM(CONCATENATE(AO97,V99,V101,V103)),Lookup!$E$90:$E$212,0))*V97))*7.48052 *IF(OR(AO97="Permeable Pavement Facility",AO97="Vegetated Roof System"),MIN(1,H99/(AP97*V97)),1) +IF(AO97="Permeable Pavement Facility",H99*2.1*7.48052,1) ->  | AT97: =IFERROR(IF(AO97="Single-family Residential Cisterns",INDEX(Lookup!$H$90:$H$212,MATCH(TRIM(CONCATENATE(AO97,IF(V97<400,0,IF(V97>4200,4201,ROUNDDOWN(V97,-2))))),Lookup!$E$90:$E$212,0)),IF(AND(V99="",V101="",V103=""),"",TRIM(V101&" "&AP101&" "&V99&" "&AP99&" "&V103&" "&AP103))),"") -> 
B99: =IFERROR(IF(AO97="Permeable Pavement Facility","Facility Area (sf)",IF(AO97="Vegetated Roof System","Vegetated Area (sf)","")),"") ->  | N99: =IFERROR(INDEX(Lookup!$C$70:$C$87,MATCH(AO97,Lookup!$A$70:$A$87,0)),"") ->  | AC99: =IFERROR(TEXT(AS97,"#,##0")&" gal managed/year",IFERROR(IF(AP97=0,"Infiltration rate too low.",""),"")) ->  | AO99: =TRIM(SUBSTITUTE(SUBSTITUTE(AO97," ",""),"-","")&"List1") ->  | AP99: =IFERROR(INDEX(Lookup!$F$70:$F$87,MATCH(AO97,Lookup!$A$70:$A$87,0)),"") -> 
B101: =IFERROR(IF(OR(AO97="Permeable Pavement Facility",AO97="Vegetated Roof System"),"Minimum Facility Area "&TEXT((AP97*V97),"#,###")&" sf",""),"") ->  | N101: =IFERROR(INDEX(Lookup!$D$70:$D$87,MATCH(AO97,Lookup!$A$70:$A$87,0)),"") ->  | AO101: =TRIM(SUBSTITUTE(SUBSTITUTE(AO97," ",""),"-","")&"List2") ->  | AP101: =IFERROR(INDEX(Lookup!$G$70:$G$87,MATCH(AO97,Lookup!$A$70:$A$87,0)),"") -> 
N103: =IFERROR(INDEX(Lookup!$E$70:$E$87,MATCH(AO97,Lookup!$A$70:$A$87,0)),"") ->  | AO103: =TRIM(SUBSTITUTE(SUBSTITUTE(AO97," ",""),"-","")&"List3") -> 
B105: =IFERROR(IF(INDEX($K$7:$K$46,MATCH(AN105,$AO$7:$AO$46,0))="","",INDEX($K$7:$K$46,MATCH(AN105,$AO$7:$AO$46,0))),"") ->  | N105: =IF(B105="","",IF(AO105="Vegetated Roof System","Roof Area","Contributing Area (sf)")) ->  | V105: =IF(B105="","",SUMIF($AO$7:$AO$46,AN105,$F$7:$I$46)) ->  | AC105: =IFERROR(IF(AP105=-999,"Configuration not allowed.",IF(AP105=0,"Configuration not allowed.",IF(AO105="New or Retained Trees","As many as feasible.",TEXT(IF(OR(AO105="Permeable Pavement Facility",AO105="Vegetated Roof System"),H107,AP105*V105),"#,##0")&" "&AR105))),"") ->  | AN105: 8 | AO105: =INDEX($AP$7:$AP$46,MATCH(AN105,$AO$7:$AO$46,0)) ->  | AP105: =IF(AO105="New or Retained Trees", INDEX(Lookup!$F$90:$F$212,MATCH(TRIM(CONCATENATE(AO105,V107)),Lookup!$E$90:$E$212,0)), IF(AO105="Single-family Residential Cisterns", INDEX(Lookup!$F$90:$F$212,MATCH(TRIM(CONCATENATE(AO105,IF(V105<400,0,IF(V105>4200,4201,ROUNDDOWN(V105,-2))) )),Lookup!$E$90:$E$212,0)), INDEX(Lookup!$F$90:$F$212,MATCH(TRIM(CONCATENATE(AO105,V107,V109,V111)),Lookup!$E$90:$E$212,0)))) ->  | AQ105: =IF(AP105<=0,NA(),IF(OR(AO105="Permeable Pavement Facility",AO105="Vegetated Roof System"),H107,AP105*V105)) ->  | AR105: =IF(AO105="Single-family Residential Cisterns", "sf",INDEX(Lookup!$H$90:$H$212,MATCH(TRIM(CONCATENATE(AO105,V107,V109,V111)),Lookup!$E$90:$E$212,0))) ->  | AS105: =IF(AO105="New or Retained Trees", INDEX(Lookup!$G$90:$G$212,MATCH(TRIM(CONCATENATE(AO105,V107)),Lookup!$E$90:$E$212,0))*V109, IF(AO105="Single-family Residential Cisterns", INDEX(Lookup!$G$90:$G$212,MATCH(TRIM(CONCATENATE(AO105,IF(V105<400,0,IF(V105>4200,4201,ROUNDDOWN(V105,-2))) )),Lookup!$E$90:$E$212,0))*V105, INDEX(Lookup!$G$90:$G$212,MATCH(TRIM(CONCATENATE(AO105,V107,V109,V111)),Lookup!$E$90:$E$212,0))*V105))*7.48052 *IF(OR(AO105="Permeable Pavement Facility",AO105="Vegetated Roof System"),MIN(1,H107/(AP105*V105)),1) +IF(AO105="Permeable Pavement Facility",H107*2.1*7.48052,1) ->  | AT105: =IFERROR(IF(AO105="Single-family Residential Cisterns",INDEX(Lookup!$H$90:$H$212,MATCH(TRIM(CONCATENATE(AO105,IF(V105<400,0,IF(V105>4200,4201,ROUNDDOWN(V105,-2))))),Lookup!$E$90:$E$212,0)),IF(AND(V107="",V109="",V111=""),"",TRIM(V109&" "&AP109&" "&V107&" "&AP107&" "&V111&" "&AP111))),"") -> 
B107: =IFERROR(IF(AO105="Permeable Pavement Facility","Facility Area (sf)",IF(AO105="Vegetated Roof System","Vegetated Area (sf)","")),"") ->  | N107: =IFERROR(INDEX(Lookup!$C$70:$C$87,MATCH(AO105,Lookup!$A$70:$A$87,0)),"") ->  | AC107: =IFERROR(TEXT(AS105,"#,##0")&" gal managed/year",IFERROR(IF(AP105=0,"Infiltration rate too low.",""),"")) ->  | AO107: =TRIM(SUBSTITUTE(SUBSTITUTE(AO105," ",""),"-","")&"List1") ->  | AP107: =IFERROR(INDEX(Lookup!$F$70:$F$87,MATCH(AO105,Lookup!$A$70:$A$87,0)),"") -> 
B109: =IFERROR(IF(OR(AO105="Permeable Pavement Facility",AO105="Vegetated Roof System"),"Minimum Facility Area "&TEXT((AP105*V105),"#,###")&" sf",""),"") ->  | N109: =IFERROR(INDEX(Lookup!$D$70:$D$87,MATCH(AO105,Lookup!$A$70:$A$87,0)),"") ->  | AO109: =TRIM(SUBSTITUTE(SUBSTITUTE(AO105," ",""),"-","")&"List2") ->  | AP109: =IFERROR(INDEX(Lookup!$G$70:$G$87,MATCH(AO105,Lookup!$A$70:$A$87,0)),"") -> 
N111: =IFERROR(INDEX(Lookup!$E$70:$E$87,MATCH(AO105,Lookup!$A$70:$A$87,0)),"") ->  | AO111: =TRIM(SUBSTITUTE(SUBSTITUTE(AO105," ",""),"-","")&"List3") -> 
B113: =IFERROR(IF(INDEX($K$7:$K$46,MATCH(AN113,$AO$7:$AO$46,0))="","",INDEX($K$7:$K$46,MATCH(AN113,$AO$7:$AO$46,0))),"") ->  | N113: =IF(B113="","",IF(AO113="Vegetated Roof System","Roof Area","Contributing Area (sf)")) ->  | V113: =IF(B113="","",SUMIF($AO$7:$AO$46,AN113,$F$7:$I$46)) ->  | AC113: =IFERROR(IF(AP113=-999,"Configuration not allowed.",IF(AP113=0,"Configuration not allowed.",IF(AO113="New or Retained Trees","As many as feasible.",TEXT(IF(OR(AO113="Permeable Pavement Facility",AO113="Vegetated Roof System"),H115,AP113*V113),"#,##0")&" "&AR113))),"") ->  | AN113: 9 | AO113: =INDEX($AP$7:$AP$46,MATCH(AN113,$AO$7:$AO$46,0)) ->  | AP113: =IF(AO113="New or Retained Trees", INDEX(Lookup!$F$90:$F$212,MATCH(TRIM(CONCATENATE(AO113,V115)),Lookup!$E$90:$E$212,0)), IF(AO113="Single-family Residential Cisterns", INDEX(Lookup!$F$90:$F$212,MATCH(TRIM(CONCATENATE(AO113,IF(V113<400,0,IF(V113>4200,4201,ROUNDDOWN(V113,-2))) )),Lookup!$E$90:$E$212,0)), INDEX(Lookup!$F$90:$F$212,MATCH(TRIM(CONCATENATE(AO113,V115,V117,V119)),Lookup!$E$90:$E$212,0)))) ->  | AQ113: =IF(AP113<=0,NA(),IF(OR(AO113="Permeable Pavement Facility",AO113="Vegetated Roof System"),H115,AP113*V113)) ->  | AR113: =IF(AO113="Single-family Residential Cisterns", "sf",INDEX(Lookup!$H$90:$H$212,MATCH(TRIM(CONCATENATE(AO113,V115,V117,V119)),Lookup!$E$90:$E$212,0))) ->  | AS113: =IF(AO113="New or Retained Trees", INDEX(Lookup!$G$90:$G$212,MATCH(TRIM(CONCATENATE(AO113,V115)),Lookup!$E$90:$E$212,0))*V117, IF(AO113="Single-family Residential Cisterns", INDEX(Lookup!$G$90:$G$212,MATCH(TRIM(CONCATENATE(AO113,IF(V113<400,0,IF(V113>4200,4201,ROUNDDOWN(V113,-2))) )),Lookup!$E$90:$E$212,0))*V113, INDEX(Lookup!$G$90:$G$212,MATCH(TRIM(CONCATENATE(AO113,V115,V117,V119)),Lookup!$E$90:$E$212,0))*V113))*7.48052 *IF(OR(AO113="Permeable Pavement Facility",AO113="Vegetated Roof System"),MIN(1,H115/(AP113*V113)),1) +IF(AO113="Permeable Pavement Facility",H115*2.1*7.48052,1) ->  | AT113: =IFERROR(IF(AO113="Single-family Residential Cisterns",INDEX(Lookup!$H$90:$H$212,MATCH(TRIM(CONCATENATE(AO113,IF(V113<400,0,IF(V113>4200,4201,ROUNDDOWN(V113,-2))))),Lookup!$E$90:$E$212,0)),IF(AND(V115="",V117="",V119=""),"",TRIM(V117&" "&AP117&" "&V115&" "&AP115&" "&V119&" "&AP119))),"") -> 
B115: =IFERROR(IF(AO113="Permeable Pavement Facility","Facility Area (sf)",IF(AO113="Vegetated Roof System","Vegetated Area (sf)","")),"") ->  | N115: =IFERROR(INDEX(Lookup!$C$70:$C$87,MATCH(AO113,Lookup!$A$70:$A$87,0)),"") ->  | AC115: =IFERROR(TEXT(AS113,"#,##0")&" gal managed/year",IFERROR(IF(AP113=0,"Infiltration rate too low.",""),"")) ->  | AO115: =TRIM(SUBSTITUTE(SUBSTITUTE(AO113," ",""),"-","")&"List1") ->  | AP115: =IFERROR(INDEX(Lookup!$F$70:$F$87,MATCH(AO113,Lookup!$A$70:$A$87,0)),"") -> 
B117: =IFERROR(IF(OR(AO113="Permeable Pavement Facility",AO113="Vegetated Roof System"),"Minimum Facility Area "&TEXT((AP113*V113),"#,###")&" sf",""),"") ->  | N117: =IFERROR(INDEX(Lookup!$D$70:$D$87,MATCH(AO113,Lookup!$A$70:$A$87,0)),"") ->  | AO117: =TRIM(SUBSTITUTE(SUBSTITUTE(AO113," ",""),"-","")&"List2") ->  | AP117: =IFERROR(INDEX(Lookup!$G$70:$G$87,MATCH(AO113,Lookup!$A$70:$A$87,0)),"") -> 
N119: =IFERROR(INDEX(Lookup!$E$70:$E$87,MATCH(AO113,Lookup!$A$70:$A$87,0)),"") ->  | AO119: =TRIM(SUBSTITUTE(SUBSTITUTE(AO113," ",""),"-","")&"List3") -> 
B121: =IFERROR(IF(INDEX($K$7:$K$46,MATCH(AN121,$AO$7:$AO$46,0))="","",INDEX($K$7:$K$46,MATCH(AN121,$AO$7:$AO$46,0))),"") ->  | N121: =IF(B121="","",IF(AO121="Vegetated Roof System","Roof Area","Contributing Area (sf)")) ->  | V121: =IF(B121="","",SUMIF($AO$7:$AO$46,AN121,$F$7:$I$46)) ->  | AC121: =IFERROR(IF(AP121=-999,"Configuration not allowed.",IF(AP121=0,"Configuration not allowed.",IF(AO121="New or Retained Trees","As many as feasible.",TEXT(IF(OR(AO121="Permeable Pavement Facility",AO121="Vegetated Roof System"),H123,AP121*V121),"#,##0")&" "&AR121))),"") ->  | AN121: 10 | AO121: =INDEX($AP$7:$AP$46,MATCH(AN121,$AO$7:$AO$46,0)) ->  | AP121: =IF(AO121="New or Retained Trees", INDEX(Lookup!$F$90:$F$212,MATCH(TRIM(CONCATENATE(AO121,V123)),Lookup!$E$90:$E$212,0)), IF(AO121="Single-family Residential Cisterns", INDEX(Lookup!$F$90:$F$212,MATCH(TRIM(CONCATENATE(AO121,IF(V121<400,0,IF(V121>4200,4201,ROUNDDOWN(V121,-2))) )),Lookup!$E$90:$E$212,0)), INDEX(Lookup!$F$90:$F$212,MATCH(TRIM(CONCATENATE(AO121,V123,V125,V127)),Lookup!$E$90:$E$212,0)))) ->  | AQ121: =IF(AP121<=0,NA(),IF(OR(AO121="Permeable Pavement Facility",AO121="Vegetated Roof System"),H123,AP121*V121)) ->  | AR121: =IF(AO121="Single-family Residential Cisterns", "sf",INDEX(Lookup!$H$90:$H$212,MATCH(TRIM(CONCATENATE(AO121,V123,V125,V127)),Lookup!$E$90:$E$212,0))) ->  | AS121: =IF(AO121="New or Retained Trees", INDEX(Lookup!$G$90:$G$212,MATCH(TRIM(CONCATENATE(AO121,V123)),Lookup!$E$90:$E$212,0))*V125, IF(AO121="Single-family Residential Cisterns", INDEX(Lookup!$G$90:$G$212,MATCH(TRIM(CONCATENATE(AO121,IF(V121<400,0,IF(V121>4200,4201,ROUNDDOWN(V121,-2))) )),Lookup!$E$90:$E$212,0))*V121, INDEX(Lookup!$G$90:$G$212,MATCH(TRIM(CONCATENATE(AO121,V123,V125,V127)),Lookup!$E$90:$E$212,0))*V121))*7.48052 *IF(OR(AO121="Permeable Pavement Facility",AO121="Vegetated Roof System"),MIN(1,H123/(AP121*V121)),1) +IF(AO121="Permeable Pavement Facility",H123*2.1*7.48052,1) ->  | AT121: =IFERROR(IF(AO121="Single-family Residential Cisterns",INDEX(Lookup!$H$90:$H$212,MATCH(TRIM(CONCATENATE(AO121,IF(V121<400,0,IF(V121>4200,4201,ROUNDDOWN(V121,-2))))),Lookup!$E$90:$E$212,0)),IF(AND(V123="",V125="",V127=""),"",TRIM(V125&" "&AP125&" "&V123&" "&AP123&" "&V127&" "&AP127))),"") -> 
B123: =IFERROR(IF(AO121="Permeable Pavement Facility","Facility Area (sf)",IF(AO121="Vegetated Roof System","Vegetated Area (sf)","")),"") ->  | N123: =IFERROR(INDEX(Lookup!$C$70:$C$87,MATCH(AO121,Lookup!$A$70:$A$87,0)),"") ->  | AC123: =IFERROR(TEXT(AS121,"#,##0")&" gal managed/year",IFERROR(IF(AP121=0,"Infiltration rate too low.",""),"")) ->  | AO123: =TRIM(SUBSTITUTE(SUBSTITUTE(AO121," ",""),"-","")&"List1") ->  | AP123: =IFERROR(INDEX(Lookup!$F$70:$F$87,MATCH(AO121,Lookup!$A$70:$A$87,0)),"") -> 
B125: =IFERROR(IF(OR(AO121="Permeable Pavement Facility",AO121="Vegetated Roof System"),"Minimum Facility Area "&TEXT((AP121*V121),"#,###")&" sf",""),"") ->  | N125: =IFERROR(INDEX(Lookup!$D$70:$D$87,MATCH(AO121,Lookup!$A$70:$A$87,0)),"") ->  | AO125: =TRIM(SUBSTITUTE(SUBSTITUTE(AO121," ",""),"-","")&"List2") ->  | AP125: =IFERROR(INDEX(Lookup!$G$70:$G$87,MATCH(AO121,Lookup!$A$70:$A$87,0)),"") -> 
N127: =IFERROR(INDEX(Lookup!$E$70:$E$87,MATCH(AO121,Lookup!$A$70:$A$87,0)),"") ->  | AO127: =TRIM(SUBSTITUTE(SUBSTITUTE(AO121," ",""),"-","")&"List3") -> 
B129: =IFERROR(IF(INDEX($K$7:$K$46,MATCH(AN129,$AO$7:$AO$46,0))="","",INDEX($K$7:$K$46,MATCH(AN129,$AO$7:$AO$46,0))),"") ->  | N129: =IF(B129="","",IF(AO129="Vegetated Roof System","Roof Area","Contributing Area (sf)")) ->  | V129: =IF(B129="","",SUMIF($AO$7:$AO$46,AN129,$F$7:$I$46)) ->  | AC129: =IFERROR(IF(AP129=-999,"Configuration not allowed.",IF(AP129=0,"Configuration not allowed.",IF(AO129="New or Retained Trees","As many as feasible.",TEXT(IF(OR(AO129="Permeable Pavement Facility",AO129="Vegetated Roof System"),H131,AP129*V129),"#,##0")&" "&AR129))),"") ->  | AN129: 11 | AO129: =INDEX($AP$7:$AP$46,MATCH(AN129,$AO$7:$AO$46,0)) ->  | AP129: =IF(AO129="New or Retained Trees", INDEX(Lookup!$F$90:$F$212,MATCH(TRIM(CONCATENATE(AO129,V131)),Lookup!$E$90:$E$212,0)), IF(AO129="Single-family Residential Cisterns", INDEX(Lookup!$F$90:$F$212,MATCH(TRIM(CONCATENATE(AO129,IF(V129<400,0,IF(V129>4200,4201,ROUNDDOWN(V129,-2))) )),Lookup!$E$90:$E$212,0)), INDEX(Lookup!$F$90:$F$212,MATCH(TRIM(CONCATENATE(AO129,V131,V133,V135)),Lookup!$E$90:$E$212,0)))) ->  | AQ129: =IF(AP129<=0,NA(),IF(OR(AO129="Permeable Pavement Facility",AO129="Vegetated Roof System"),H131,AP129*V129)) ->  | AR129: =IF(AO129="Single-family Residential Cisterns", "sf",INDEX(Lookup!$H$90:$H$212,MATCH(TRIM(CONCATENATE(AO129,V131,V133,V135)),Lookup!$E$90:$E$212,0))) ->  | AS129: =IF(AO129="New or Retained Trees", INDEX(Lookup!$G$90:$G$212,MATCH(TRIM(CONCATENATE(AO129,V131)),Lookup!$E$90:$E$212,0))*V133, IF(AO129="Single-family Residential Cisterns", INDEX(Lookup!$G$90:$G$212,MATCH(TRIM(CONCATENATE(AO129,IF(V129<400,0,IF(V129>4200,4201,ROUNDDOWN(V129,-2))) )),Lookup!$E$90:$E$212,0))*V129, INDEX(Lookup!$G$90:$G$212,MATCH(TRIM(CONCATENATE(AO129,V131,V133,V135)),Lookup!$E$90:$E$212,0))*V129))*7.48052 *IF(OR(AO129="Permeable Pavement Facility",AO129="Vegetated Roof System"),MIN(1,H131/(AP129*V129)),1) +IF(AO129="Permeable Pavement Facility",H131*2.1*7.48052,1) ->  | AT129: =IFERROR(IF(AO129="Single-family Residential Cisterns",INDEX(Lookup!$H$90:$H$212,MATCH(TRIM(CONCATENATE(AO129,IF(V129<400,0,IF(V129>4200,4201,ROUNDDOWN(V129,-2))))),Lookup!$E$90:$E$212,0)),IF(AND(V131="",V133="",V135=""),"",TRIM(V133&" "&AP133&" "&V131&" "&AP131&" "&V135&" "&AP135))),"") -> 
B131: =IFERROR(IF(AO129="Permeable Pavement Facility","Facility Area (sf)",IF(AO129="Vegetated Roof System","Vegetated Area (sf)","")),"") ->  | N131: =IFERROR(INDEX(Lookup!$C$70:$C$87,MATCH(AO129,Lookup!$A$70:$A$87,0)),"") ->  | AC131: =IFERROR(TEXT(AS129,"#,##0")&" gal managed/year",IFERROR(IF(AP129=0,"Infiltration rate too low.",""),"")) ->  | AO131: =TRIM(SUBSTITUTE(SUBSTITUTE(AO129," ",""),"-","")&"List1") ->  | AP131: =IFERROR(INDEX(Lookup!$F$70:$F$87,MATCH(AO129,Lookup!$A$70:$A$87,0)),"") -> 
B133: =IFERROR(IF(OR(AO129="Permeable Pavement Facility",AO129="Vegetated Roof System"),"Minimum Facility Area "&TEXT((AP129*V129),"#,###")&" sf",""),"") ->  | N133: =IFERROR(INDEX(Lookup!$D$70:$D$87,MATCH(AO129,Lookup!$A$70:$A$87,0)),"") ->  | AO133: =TRIM(SUBSTITUTE(SUBSTITUTE(AO129," ",""),"-","")&"List2") ->  | AP133: =IFERROR(INDEX(Lookup!$G$70:$G$87,MATCH(AO129,Lookup!$A$70:$A$87,0)),"") -> 
N135: =IFERROR(INDEX(Lookup!$E$70:$E$87,MATCH(AO129,Lookup!$A$70:$A$87,0)),"") ->  | AO135: =TRIM(SUBSTITUTE(SUBSTITUTE(AO129," ",""),"-","")&"List3") -> 
B137: =IFERROR(IF(INDEX($K$7:$K$46,MATCH(AN137,$AO$7:$AO$46,0))="","",INDEX($K$7:$K$46,MATCH(AN137,$AO$7:$AO$46,0))),"") ->  | N137: =IF(B137="","",IF(AO137="Vegetated Roof System","Roof Area","Contributing Area (sf)")) ->  | V137: =IF(B137="","",SUMIF($AO$7:$AO$46,AN137,$F$7:$I$46)) ->  | AC137: =IFERROR(IF(AP137=-999,"Configuration not allowed.",IF(AP137=0,"Configuration not allowed.",IF(AO137="New or Retained Trees","As many as feasible.",TEXT(IF(OR(AO137="Permeable Pavement Facility",AO137="Vegetated Roof System"),H139,AP137*V137),"#,##0")&" "&AR137))),"") ->  | AN137: 12 | AO137: =INDEX($AP$7:$AP$46,MATCH(AN137,$AO$7:$AO$46,0)) ->  | AP137: =IF(AO137="New or Retained Trees", INDEX(Lookup!$F$90:$F$212,MATCH(TRIM(CONCATENATE(AO137,V139)),Lookup!$E$90:$E$212,0)), IF(AO137="Single-family Residential Cisterns", INDEX(Lookup!$F$90:$F$212,MATCH(TRIM(CONCATENATE(AO137,IF(V137<400,0,IF(V137>4200,4201,ROUNDDOWN(V137,-2))) )),Lookup!$E$90:$E$212,0)), INDEX(Lookup!$F$90:$F$212,MATCH(TRIM(CONCATENATE(AO137,V139,V141,V143)),Lookup!$E$90:$E$212,0)))) ->  | AQ137: =IF(AP137<=0,NA(),IF(OR(AO137="Permeable Pavement Facility",AO137="Vegetated Roof System"),H139,AP137*V137)) ->  | AR137: =IF(AO137="Single-family Residential Cisterns", "sf",INDEX(Lookup!$H$90:$H$212,MATCH(TRIM(CONCATENATE(AO137,V139,V141,V143)),Lookup!$E$90:$E$212,0))) ->  | AS137: =IF(AO137="New or Retained Trees", INDEX(Lookup!$G$90:$G$212,MATCH(TRIM(CONCATENATE(AO137,V139)),Lookup!$E$90:$E$212,0))*V141, IF(AO137="Single-family Residential Cisterns", INDEX(Lookup!$G$90:$G$212,MATCH(TRIM(CONCATENATE(AO137,IF(V137<400,0,IF(V137>4200,4201,ROUNDDOWN(V137,-2))) )),Lookup!$E$90:$E$212,0))*V137, INDEX(Lookup!$G$90:$G$212,MATCH(TRIM(CONCATENATE(AO137,V139,V141,V143)),Lookup!$E$90:$E$212,0))*V137))*7.48052 *IF(OR(AO137="Permeable Pavement Facility",AO137="Vegetated Roof System"),MIN(1,H139/(AP137*V137)),1) +IF(AO137="Permeable Pavement Facility",H139*2.1*7.48052,1) ->  | AT137: =IFERROR(IF(AO137="Single-family Residential Cisterns",INDEX(Lookup!$H$90:$H$212,MATCH(TRIM(CONCATENATE(AO137,IF(V137<400,0,IF(V137>4200,4201,ROUNDDOWN(V137,-2))))),Lookup!$E$90:$E$212,0)),IF(AND(V139="",V141="",V143=""),"",TRIM(V141&" "&AP141&" "&V139&" "&AP139&" "&V143&" "&AP143))),"") -> 
B139: =IFERROR(IF(AO137="Permeable Pavement Facility","Facility Area (sf)",IF(AO137="Vegetated Roof System","Vegetated Area (sf)","")),"") ->  | N139: =IFERROR(INDEX(Lookup!$C$70:$C$87,MATCH(AO137,Lookup!$A$70:$A$87,0)),"") ->  | AC139: =IFERROR(TEXT(AS137,"#,##0")&" gal managed/year",IFERROR(IF(AP137=0,"Infiltration rate too low.",""),"")) ->  | AO139: =TRIM(SUBSTITUTE(SUBSTITUTE(AO137," ",""),"-","")&"List1") ->  | AP139: =IFERROR(INDEX(Lookup!$F$70:$F$87,MATCH(AO137,Lookup!$A$70:$A$87,0)),"") -> 
B141: =IFERROR(IF(OR(AO137="Permeable Pavement Facility",AO137="Vegetated Roof System"),"Minimum Facility Area "&TEXT((AP137*V137),"#,###")&" sf",""),"") ->  | N141: =IFERROR(INDEX(Lookup!$D$70:$D$87,MATCH(AO137,Lookup!$A$70:$A$87,0)),"") ->  | AO141: =TRIM(SUBSTITUTE(SUBSTITUTE(AO137," ",""),"-","")&"List2") ->  | AP141: =IFERROR(INDEX(Lookup!$G$70:$G$87,MATCH(AO137,Lookup!$A$70:$A$87,0)),"") -> 
N143: =IFERROR(INDEX(Lookup!$E$70:$E$87,MATCH(AO137,Lookup!$A$70:$A$87,0)),"") ->  | AO143: =TRIM(SUBSTITUTE(SUBSTITUTE(AO137," ",""),"-","")&"List3") -> 
B145: =IFERROR(IF(INDEX($K$7:$K$46,MATCH(AN145,$AO$7:$AO$46,0))="","",INDEX($K$7:$K$46,MATCH(AN145,$AO$7:$AO$46,0))),"") ->  | N145: =IF(B145="","",IF(AO145="Vegetated Roof System","Roof Area","Contributing Area (sf)")) ->  | V145: =IF(B145="","",SUMIF($AO$7:$AO$46,AN145,$F$7:$I$46)) ->  | AC145: =IFERROR(IF(AP145=-999,"Configuration not allowed.",IF(AP145=0,"Configuration not allowed.",IF(AO145="New or Retained Trees","As many as feasible.",TEXT(IF(OR(AO145="Permeable Pavement Facility",AO145="Vegetated Roof System"),H147,AP145*V145),"#,##0")&" "&AR145))),"") ->  | AN145: 13 | AO145: =INDEX($AP$7:$AP$46,MATCH(AN145,$AO$7:$AO$46,0)) ->  | AP145: =IF(AO145="New or Retained Trees", INDEX(Lookup!$F$90:$F$212,MATCH(TRIM(CONCATENATE(AO145,V147)),Lookup!$E$90:$E$212,0)), IF(AO145="Single-family Residential Cisterns", INDEX(Lookup!$F$90:$F$212,MATCH(TRIM(CONCATENATE(AO145,IF(V145<400,0,IF(V145>4200,4201,ROUNDDOWN(V145,-2))) )),Lookup!$E$90:$E$212,0)), INDEX(Lookup!$F$90:$F$212,MATCH(TRIM(CONCATENATE(AO145,V147,V149,V151)),Lookup!$E$90:$E$212,0)))) ->  | AQ145: =IF(AP145<=0,NA(),IF(OR(AO145="Permeable Pavement Facility",AO145="Vegetated Roof System"),H147,AP145*V145)) ->  | AR145: =IF(AO145="Single-family Residential Cisterns", "sf",INDEX(Lookup!$H$90:$H$212,MATCH(TRIM(CONCATENATE(AO145,V147,V149,V151)),Lookup!$E$90:$E$212,0))) ->  | AS145: =IF(AO145="New or Retained Trees", INDEX(Lookup!$G$90:$G$212,MATCH(TRIM(CONCATENATE(AO145,V147)),Lookup!$E$90:$E$212,0))*V149, IF(AO145="Single-family Residential Cisterns", INDEX(Lookup!$G$90:$G$212,MATCH(TRIM(CONCATENATE(AO145,IF(V145<400,0,IF(V145>4200,4201,ROUNDDOWN(V145,-2))) )),Lookup!$E$90:$E$212,0))*V145, INDEX(Lookup!$G$90:$G$212,MATCH(TRIM(CONCATENATE(AO145,V147,V149,V151)),Lookup!$E$90:$E$212,0))*V145))*7.48052 *IF(OR(AO145="Permeable Pavement Facility",AO145="Vegetated Roof System"),MIN(1,H147/(AP145*V145)),1) +IF(AO145="Permeable Pavement Facility",H147*2.1*7.48052,1) ->  | AT145: =IFERROR(IF(AO145="Single-family Residential Cisterns",INDEX(Lookup!$H$90:$H$212,MATCH(TRIM(CONCATENATE(AO145,IF(V145<400,0,IF(V145>4200,4201,ROUNDDOWN(V145,-2))))),Lookup!$E$90:$E$212,0)),IF(AND(V147="",V149="",V151=""),"",TRIM(V149&" "&AP149&" "&V147&" "&AP147&" "&V151&" "&AP151))),"") -> 
B147: =IFERROR(IF(AO145="Permeable Pavement Facility","Facility Area (sf)",IF(AO145="Vegetated Roof System","Vegetated Area (sf)","")),"") ->  | N147: =IFERROR(INDEX(Lookup!$C$70:$C$87,MATCH(AO145,Lookup!$A$70:$A$87,0)),"") ->  | AC147: =IFERROR(TEXT(AS145,"#,##0")&" gal managed/year",IFERROR(IF(AP145=0,"Infiltration rate too low.",""),"")) ->  | AO147: =TRIM(SUBSTITUTE(SUBSTITUTE(AO145," ",""),"-","")&"List1") ->  | AP147: =IFERROR(INDEX(Lookup!$F$70:$F$87,MATCH(AO145,Lookup!$A$70:$A$87,0)),"") -> 
B149: =IFERROR(IF(OR(AO145="Permeable Pavement Facility",AO145="Vegetated Roof System"),"Minimum Facility Area "&TEXT((AP145*V145),"#,###")&" sf",""),"") ->  | N149: =IFERROR(INDEX(Lookup!$D$70:$D$87,MATCH(AO145,Lookup!$A$70:$A$87,0)),"") ->  | AO149: =TRIM(SUBSTITUTE(SUBSTITUTE(AO145," ",""),"-","")&"List2") ->  | AP149: =IFERROR(INDEX(Lookup!$G$70:$G$87,MATCH(AO145,Lookup!$A$70:$A$87,0)),"") -> 
N151: =IFERROR(INDEX(Lookup!$E$70:$E$87,MATCH(AO145,Lookup!$A$70:$A$87,0)),"") ->  | AO151: =TRIM(SUBSTITUTE(SUBSTITUTE(AO145," ",""),"-","")&"List3") -> 
B153: =IFERROR(IF(INDEX($K$7:$K$46,MATCH(AN153,$AO$7:$AO$46,0))="","",INDEX($K$7:$K$46,MATCH(AN153,$AO$7:$AO$46,0))),"") ->  | N153: =IF(B153="","",IF(AO153="Vegetated Roof System","Roof Area","Contributing Area (sf)")) ->  | V153: =IF(B153="","",SUMIF($AO$7:$AO$46,AN153,$F$7:$I$46)) ->  | AC153: =IFERROR(IF(AP153=-999,"Configuration not allowed.",IF(AP153=0,"Configuration not allowed.",IF(AO153="New or Retained Trees","As many as feasible.",TEXT(IF(OR(AO153="Permeable Pavement Facility",AO153="Vegetated Roof System"),H155,AP153*V153),"#,##0")&" "&AR153))),"") ->  | AN153: 14 | AO153: =INDEX($AP$7:$AP$46,MATCH(AN153,$AO$7:$AO$46,0)) ->  | AP153: =IF(AO153="New or Retained Trees", INDEX(Lookup!$F$90:$F$212,MATCH(TRIM(CONCATENATE(AO153,V155)),Lookup!$E$90:$E$212,0)), IF(AO153="Single-family Residential Cisterns", INDEX(Lookup!$F$90:$F$212,MATCH(TRIM(CONCATENATE(AO153,IF(V153<400,0,IF(V153>4200,4201,ROUNDDOWN(V153,-2))) )),Lookup!$E$90:$E$212,0)), INDEX(Lookup!$F$90:$F$212,MATCH(TRIM(CONCATENATE(AO153,V155,V157,V159)),Lookup!$E$90:$E$212,0)))) ->  | AQ153: =IF(AP153<=0,NA(),IF(OR(AO153="Permeable Pavement Facility",AO153="Vegetated Roof System"),H155,AP153*V153)) ->  | AR153: =IF(AO153="Single-family Residential Cisterns", "sf",INDEX(Lookup!$H$90:$H$212,MATCH(TRIM(CONCATENATE(AO153,V155,V157,V159)),Lookup!$E$90:$E$212,0))) ->  | AS153: =IF(AO153="New or Retained Trees", INDEX(Lookup!$G$90:$G$212,MATCH(TRIM(CONCATENATE(AO153,V155)),Lookup!$E$90:$E$212,0))*V157, IF(AO153="Single-family Residential Cisterns", INDEX(Lookup!$G$90:$G$212,MATCH(TRIM(CONCATENATE(AO153,IF(V153<400,0,IF(V153>4200,4201,ROUNDDOWN(V153,-2))) )),Lookup!$E$90:$E$212,0))*V153, INDEX(Lookup!$G$90:$G$212,MATCH(TRIM(CONCATENATE(AO153,V155,V157,V159)),Lookup!$E$90:$E$212,0))*V153))*7.48052 *IF(OR(AO153="Permeable Pavement Facility",AO153="Vegetated Roof System"),MIN(1,H155/(AP153*V153)),1) +IF(AO153="Permeable Pavement Facility",H155*2.1*7.48052,1) ->  | AT153: =IFERROR(IF(AO153="Single-family Residential Cisterns",INDEX(Lookup!$H$90:$H$212,MATCH(TRIM(CONCATENATE(AO153,IF(V153<400,0,IF(V153>4200,4201,ROUNDDOWN(V153,-2))))),Lookup!$E$90:$E$212,0)),IF(AND(V155="",V157="",V159=""),"",TRIM(V157&" "&AP157&" "&V155&" "&AP155&" "&V159&" "&AP159))),"") -> 
B155: =IFERROR(IF(AO153="Permeable Pavement Facility","Facility Area (sf)",IF(AO153="Vegetated Roof System","Vegetated Area (sf)","")),"") ->  | N155: =IFERROR(INDEX(Lookup!$C$70:$C$87,MATCH(AO153,Lookup!$A$70:$A$87,0)),"") ->  | AC155: =IFERROR(TEXT(AS153,"#,##0")&" gal managed/year",IFERROR(IF(AP153=0,"Infiltration rate too low.",""),"")) ->  | AO155: =TRIM(SUBSTITUTE(SUBSTITUTE(AO153," ",""),"-","")&"List1") ->  | AP155: =IFERROR(INDEX(Lookup!$F$70:$F$87,MATCH(AO153,Lookup!$A$70:$A$87,0)),"") -> 
B157: =IFERROR(IF(OR(AO153="Permeable Pavement Facility",AO153="Vegetated Roof System"),"Minimum Facility Area "&TEXT((AP153*V153),"#,###")&" sf",""),"") ->  | N157: =IFERROR(INDEX(Lookup!$D$70:$D$87,MATCH(AO153,Lookup!$A$70:$A$87,0)),"") ->  | AO157: =TRIM(SUBSTITUTE(SUBSTITUTE(AO153," ",""),"-","")&"List2") ->  | AP157: =IFERROR(INDEX(Lookup!$G$70:$G$87,MATCH(AO153,Lookup!$A$70:$A$87,0)),"") -> 
N159: =IFERROR(INDEX(Lookup!$E$70:$E$87,MATCH(AO153,Lookup!$A$70:$A$87,0)),"") ->  | AO159: =TRIM(SUBSTITUTE(SUBSTITUTE(AO153," ",""),"-","")&"List3") -> 
B161: =IFERROR(IF(INDEX($K$7:$K$46,MATCH(AN161,$AO$7:$AO$46,0))="","",INDEX($K$7:$K$46,MATCH(AN161,$AO$7:$AO$46,0))),"") ->  | N161: =IF(B161="","",IF(AO161="Vegetated Roof System","Roof Area","Contributing Area (sf)")) ->  | V161: =IF(B161="","",SUMIF($AO$7:$AO$46,AN161,$F$7:$I$46)) ->  | AC161: =IFERROR(IF(AP161=-999,"Configuration not allowed.",IF(AP161=0,"Configuration not allowed.",IF(AO161="New or Retained Trees","As many as feasible.",TEXT(IF(OR(AO161="Permeable Pavement Facility",AO161="Vegetated Roof System"),H163,AP161*V161),"#,##0")&" "&AR161))),"") ->  | AN161: 15 | AO161: =INDEX($AP$7:$AP$46,MATCH(AN161,$AO$7:$AO$46,0)) ->  | AP161: =IF(AO161="New or Retained Trees", INDEX(Lookup!$F$90:$F$212,MATCH(TRIM(CONCATENATE(AO161,V163)),Lookup!$E$90:$E$212,0)), IF(AO161="Single-family Residential Cisterns", INDEX(Lookup!$F$90:$F$212,MATCH(TRIM(CONCATENATE(AO161,IF(V161<400,0,IF(V161>4200,4201,ROUNDDOWN(V161,-2))) )),Lookup!$E$90:$E$212,0)), INDEX(Lookup!$F$90:$F$212,MATCH(TRIM(CONCATENATE(AO161,V163,V165,V167)),Lookup!$E$90:$E$212,0)))) ->  | AQ161: =IF(AP161<=0,NA(),IF(OR(AO161="Permeable Pavement Facility",AO161="Vegetated Roof System"),H163,AP161*V161)) ->  | AR161: =IF(AO161="Single-family Residential Cisterns", "sf",INDEX(Lookup!$H$90:$H$212,MATCH(TRIM(CONCATENATE(AO161,V163,V165,V167)),Lookup!$E$90:$E$212,0))) ->  | AS161: =IF(AO161="New or Retained Trees", INDEX(Lookup!$G$90:$G$212,MATCH(TRIM(CONCATENATE(AO161,V163)),Lookup!$E$90:$E$212,0))*V165, IF(AO161="Single-family Residential Cisterns", INDEX(Lookup!$G$90:$G$212,MATCH(TRIM(CONCATENATE(AO161,IF(V161<400,0,IF(V161>4200,4201,ROUNDDOWN(V161,-2))) )),Lookup!$E$90:$E$212,0))*V161, INDEX(Lookup!$G$90:$G$212,MATCH(TRIM(CONCATENATE(AO161,V163,V165,V167)),Lookup!$E$90:$E$212,0))*V161))*7.48052 *IF(OR(AO161="Permeable Pavement Facility",AO161="Vegetated Roof System"),MIN(1,H163/(AP161*V161)),1) +IF(AO161="Permeable Pavement Facility",H163*2.1*7.48052,1) ->  | AT161: =IFERROR(IF(AO161="Single-family Residential Cisterns",INDEX(Lookup!$H$90:$H$212,MATCH(TRIM(CONCATENATE(AO161,IF(V161<400,0,IF(V161>4200,4201,ROUNDDOWN(V161,-2))))),Lookup!$E$90:$E$212,0)),IF(AND(V163="",V165="",V167=""),"",TRIM(V165&" "&AP165&" "&V163&" "&AP163&" "&V167&" "&AP167))),"") -> 
B163: =IFERROR(IF(AO161="Permeable Pavement Facility","Facility Area (sf)",IF(AO161="Vegetated Roof System","Vegetated Area (sf)","")),"") ->  | N163: =IFERROR(INDEX(Lookup!$C$70:$C$87,MATCH(AO161,Lookup!$A$70:$A$87,0)),"") ->  | AC163: =IFERROR(TEXT(AS161,"#,##0")&" gal managed/year",IFERROR(IF(AP161=0,"Infiltration rate too low.",""),"")) ->  | AO163: =TRIM(SUBSTITUTE(SUBSTITUTE(AO161," ",""),"-","")&"List1") ->  | AP163: =IFERROR(INDEX(Lookup!$F$70:$F$87,MATCH(AO161,Lookup!$A$70:$A$87,0)),"") -> 
B165: =IFERROR(IF(OR(AO161="Permeable Pavement Facility",AO161="Vegetated Roof System"),"Minimum Facility Area "&TEXT((AP161*V161),"#,###")&" sf",""),"") ->  | N165: =IFERROR(INDEX(Lookup!$D$70:$D$87,MATCH(AO161,Lookup!$A$70:$A$87,0)),"") ->  | AO165: =TRIM(SUBSTITUTE(SUBSTITUTE(AO161," ",""),"-","")&"List2") ->  | AP165: =IFERROR(INDEX(Lookup!$G$70:$G$87,MATCH(AO161,Lookup!$A$70:$A$87,0)),"") -> 
N167: =IFERROR(INDEX(Lookup!$E$70:$E$87,MATCH(AO161,Lookup!$A$70:$A$87,0)),"") ->  | AO167: =TRIM(SUBSTITUTE(SUBSTITUTE(AO161," ",""),"-","")&"List3") -> 
B169: =IFERROR(IF(INDEX($K$7:$K$46,MATCH(AN169,$AO$7:$AO$46,0))="","",INDEX($K$7:$K$46,MATCH(AN169,$AO$7:$AO$46,0))),"") ->  | N169: =IF(B169="","",IF(AO169="Vegetated Roof System","Roof Area","Contributing Area (sf)")) ->  | V169: =IF(B169="","",SUMIF($AO$7:$AO$46,AN169,$F$7:$I$46)) ->  | AC169: =IFERROR(IF(AP169=-999,"Configuration not allowed.",IF(AP169=0,"Configuration not allowed.",IF(AO169="New or Retained Trees","As many as feasible.",TEXT(IF(OR(AO169="Permeable Pavement Facility",AO169="Vegetated Roof System"),H171,AP169*V169),"#,##0")&" "&AR169))),"") ->  | AN169: 16 | AO169: =INDEX($AP$7:$AP$46,MATCH(AN169,$AO$7:$AO$46,0)) ->  | AP169: =IF(AO169="New or Retained Trees", INDEX(Lookup!$F$90:$F$212,MATCH(TRIM(CONCATENATE(AO169,V171)),Lookup!$E$90:$E$212,0)), IF(AO169="Single-family Residential Cisterns", INDEX(Lookup!$F$90:$F$212,MATCH(TRIM(CONCATENATE(AO169,IF(V169<400,0,IF(V169>4200,4201,ROUNDDOWN(V169,-2))) )),Lookup!$E$90:$E$212,0)), INDEX(Lookup!$F$90:$F$212,MATCH(TRIM(CONCATENATE(AO169,V171,V173,V175)),Lookup!$E$90:$E$212,0)))) ->  | AQ169: =IF(AP169<=0,NA(),IF(OR(AO169="Permeable Pavement Facility",AO169="Vegetated Roof System"),H171,AP169*V169)) ->  | AR169: =IF(AO169="Single-family Residential Cisterns", "sf",INDEX(Lookup!$H$90:$H$212,MATCH(TRIM(CONCATENATE(AO169,V171,V173,V175)),Lookup!$E$90:$E$212,0))) ->  | AS169: =IF(AO169="New or Retained Trees", INDEX(Lookup!$G$90:$G$212,MATCH(TRIM(CONCATENATE(AO169,V171)),Lookup!$E$90:$E$212,0))*V173, IF(AO169="Single-family Residential Cisterns", INDEX(Lookup!$G$90:$G$212,MATCH(TRIM(CONCATENATE(AO169,IF(V169<400,0,IF(V169>4200,4201,ROUNDDOWN(V169,-2))) )),Lookup!$E$90:$E$212,0))*V169, INDEX(Lookup!$G$90:$G$212,MATCH(TRIM(CONCATENATE(AO169,V171,V173,V175)),Lookup!$E$90:$E$212,0))*V169))*7.48052 *IF(OR(AO169="Permeable Pavement Facility",AO169="Vegetated Roof System"),MIN(1,H171/(AP169*V169)),1) +IF(AO169="Permeable Pavement Facility",H171*2.1*7.48052,1) ->  | AT169: =IFERROR(IF(AO169="Single-family Residential Cisterns",INDEX(Lookup!$H$90:$H$212,MATCH(TRIM(CONCATENATE(AO169,IF(V169<400,0,IF(V169>4200,4201,ROUNDDOWN(V169,-2))))),Lookup!$E$90:$E$212,0)),IF(AND(V171="",V173="",V175=""),"",TRIM(V173&" "&AP173&" "&V171&" "&AP171&" "&V175&" "&AP175))),"") -> 
B171: =IFERROR(IF(AO169="Permeable Pavement Facility","Facility Area (sf)",IF(AO169="Vegetated Roof System","Vegetated Area (sf)","")),"") ->  | N171: =IFERROR(INDEX(Lookup!$C$70:$C$87,MATCH(AO169,Lookup!$A$70:$A$87,0)),"") ->  | AC171: =IFERROR(TEXT(AS169,"#,##0")&" gal managed/year",IFERROR(IF(AP169=0,"Infiltration rate too low.",""),"")) ->  | AO171: =TRIM(SUBSTITUTE(SUBSTITUTE(AO169," ",""),"-","")&"List1") ->  | AP171: =IFERROR(INDEX(Lookup!$F$70:$F$87,MATCH(AO169,Lookup!$A$70:$A$87,0)),"") -> 
B173: =IFERROR(IF(OR(AO169="Permeable Pavement Facility",AO169="Vegetated Roof System"),"Minimum Facility Area "&TEXT((AP169*V169),"#,###")&" sf",""),"") ->  | N173: =IFERROR(INDEX(Lookup!$D$70:$D$87,MATCH(AO169,Lookup!$A$70:$A$87,0)),"") ->  | AO173: =TRIM(SUBSTITUTE(SUBSTITUTE(AO169," ",""),"-","")&"List2") ->  | AP173: =IFERROR(INDEX(Lookup!$G$70:$G$87,MATCH(AO169,Lookup!$A$70:$A$87,0)),"") -> 
N175: =IFERROR(INDEX(Lookup!$E$70:$E$87,MATCH(AO169,Lookup!$A$70:$A$87,0)),"") ->  | AO175: =TRIM(SUBSTITUTE(SUBSTITUTE(AO169," ",""),"-","")&"List3") -> 
B177: =IFERROR(IF(INDEX($K$7:$K$46,MATCH(AN177,$AO$7:$AO$46,0))="","",INDEX($K$7:$K$46,MATCH(AN177,$AO$7:$AO$46,0))),"") ->  | N177: =IF(B177="","",IF(AO177="Vegetated Roof System","Roof Area","Contributing Area (sf)")) ->  | V177: =IF(B177="","",SUMIF($AO$7:$AO$46,AN177,$F$7:$I$46)) ->  | AC177: =IFERROR(IF(AP177=-999,"Configuration not allowed.",IF(AP177=0,"Configuration not allowed.",IF(AO177="New or Retained Trees","As many as feasible.",TEXT(IF(OR(AO177="Permeable Pavement Facility",AO177="Vegetated Roof System"),H179,AP177*V177),"#,##0")&" "&AR177))),"") ->  | AN177: 17 | AO177: =INDEX($AP$7:$AP$46,MATCH(AN177,$AO$7:$AO$46,0)) ->  | AP177: =IF(AO177="New or Retained Trees", INDEX(Lookup!$F$90:$F$212,MATCH(TRIM(CONCATENATE(AO177,V179)),Lookup!$E$90:$E$212,0)), IF(AO177="Single-family Residential Cisterns", INDEX(Lookup!$F$90:$F$212,MATCH(TRIM(CONCATENATE(AO177,IF(V177<400,0,IF(V177>4200,4201,ROUNDDOWN(V177,-2))) )),Lookup!$E$90:$E$212,0)), INDEX(Lookup!$F$90:$F$212,MATCH(TRIM(CONCATENATE(AO177,V179,V181,V183)),Lookup!$E$90:$E$212,0)))) ->  | AQ177: =IF(AP177<=0,NA(),IF(OR(AO177="Permeable Pavement Facility",AO177="Vegetated Roof System"),H179,AP177*V177)) ->  | AR177: =IF(AO177="Single-family Residential Cisterns", "sf",INDEX(Lookup!$H$90:$H$212,MATCH(TRIM(CONCATENATE(AO177,V179,V181,V183)),Lookup!$E$90:$E$212,0))) ->  | AS177: =IF(AO177="New or Retained Trees", INDEX(Lookup!$G$90:$G$212,MATCH(TRIM(CONCATENATE(AO177,V179)),Lookup!$E$90:$E$212,0))*V181, IF(AO177="Single-family Residential Cisterns", INDEX(Lookup!$G$90:$G$212,MATCH(TRIM(CONCATENATE(AO177,IF(V177<400,0,IF(V177>4200,4201,ROUNDDOWN(V177,-2))) )),Lookup!$E$90:$E$212,0))*V177, INDEX(Lookup!$G$90:$G$212,MATCH(TRIM(CONCATENATE(AO177,V179,V181,V183)),Lookup!$E$90:$E$212,0))*V177))*7.48052 *IF(OR(AO177="Permeable Pavement Facility",AO177="Vegetated Roof System"),MIN(1,H179/(AP177*V177)),1) +IF(AO177="Permeable Pavement Facility",H179*2.1*7.48052,1) ->  | AT177: =IFERROR(IF(AO177="Single-family Residential Cisterns",INDEX(Lookup!$H$90:$H$212,MATCH(TRIM(CONCATENATE(AO177,IF(V177<400,0,IF(V177>4200,4201,ROUNDDOWN(V177,-2))))),Lookup!$E$90:$E$212,0)),IF(AND(V179="",V181="",V183=""),"",TRIM(V181&" "&AP181&" "&V179&" "&AP179&" "&V183&" "&AP183))),"") -> 
B179: =IFERROR(IF(AO177="Permeable Pavement Facility","Facility Area (sf)",IF(AO177="Vegetated Roof System","Vegetated Area (sf)","")),"") ->  | N179: =IFERROR(INDEX(Lookup!$C$70:$C$87,MATCH(AO177,Lookup!$A$70:$A$87,0)),"") ->  | AC179: =IFERROR(TEXT(AS177,"#,##0")&" gal managed/year",IFERROR(IF(AP177=0,"Infiltration rate too low.",""),"")) ->  | AO179: =TRIM(SUBSTITUTE(SUBSTITUTE(AO177," ",""),"-","")&"List1") ->  | AP179: =IFERROR(INDEX(Lookup!$F$70:$F$87,MATCH(AO177,Lookup!$A$70:$A$87,0)),"") -> 
B181: =IFERROR(IF(OR(AO177="Permeable Pavement Facility",AO177="Vegetated Roof System"),"Minimum Facility Area "&TEXT((AP177*V177),"#,###")&" sf",""),"") ->  | N181: =IFERROR(INDEX(Lookup!$D$70:$D$87,MATCH(AO177,Lookup!$A$70:$A$87,0)),"") ->  | AO181: =TRIM(SUBSTITUTE(SUBSTITUTE(AO177," ",""),"-","")&"List2") ->  | AP181: =IFERROR(INDEX(Lookup!$G$70:$G$87,MATCH(AO177,Lookup!$A$70:$A$87,0)),"") -> 
N183: =IFERROR(INDEX(Lookup!$E$70:$E$87,MATCH(AO177,Lookup!$A$70:$A$87,0)),"") ->  | AO183: =TRIM(SUBSTITUTE(SUBSTITUTE(AO177," ",""),"-","")&"List3") -> 
B185: =IFERROR(IF(INDEX($K$7:$K$46,MATCH(AN185,$AO$7:$AO$46,0))="","",INDEX($K$7:$K$46,MATCH(AN185,$AO$7:$AO$46,0))),"") ->  | N185: =IF(B185="","",IF(AO185="Vegetated Roof System","Roof Area","Contributing Area (sf)")) ->  | V185: =IF(B185="","",SUMIF($AO$7:$AO$46,AN185,$F$7:$I$46)) ->  | AC185: =IFERROR(IF(AP185=-999,"Configuration not allowed.",IF(AP185=0,"Configuration not allowed.",IF(AO185="New or Retained Trees","As many as feasible.",TEXT(IF(OR(AO185="Permeable Pavement Facility",AO185="Vegetated Roof System"),H187,AP185*V185),"#,##0")&" "&AR185))),"") ->  | AN185: 18 | AO185: =INDEX($AP$7:$AP$46,MATCH(AN185,$AO$7:$AO$46,0)) ->  | AP185: =IF(AO185="New or Retained Trees", INDEX(Lookup!$F$90:$F$212,MATCH(TRIM(CONCATENATE(AO185,V187)),Lookup!$E$90:$E$212,0)), IF(AO185="Single-family Residential Cisterns", INDEX(Lookup!$F$90:$F$212,MATCH(TRIM(CONCATENATE(AO185,IF(V185<400,0,IF(V185>4200,4201,ROUNDDOWN(V185,-2))) )),Lookup!$E$90:$E$212,0)), INDEX(Lookup!$F$90:$F$212,MATCH(TRIM(CONCATENATE(AO185,V187,V189,V191)),Lookup!$E$90:$E$212,0)))) ->  | AQ185: =IF(AP185<=0,NA(),IF(OR(AO185="Permeable Pavement Facility",AO185="Vegetated Roof System"),H187,AP185*V185)) ->  | AR185: =IF(AO185="Single-family Residential Cisterns", "sf",INDEX(Lookup!$H$90:$H$212,MATCH(TRIM(CONCATENATE(AO185,V187,V189,V191)),Lookup!$E$90:$E$212,0))) ->  | AS185: =IF(AO185="New or Retained Trees", INDEX(Lookup!$G$90:$G$212,MATCH(TRIM(CONCATENATE(AO185,V187)),Lookup!$E$90:$E$212,0))*V189, IF(AO185="Single-family Residential Cisterns", INDEX(Lookup!$G$90:$G$212,MATCH(TRIM(CONCATENATE(AO185,IF(V185<400,0,IF(V185>4200,4201,ROUNDDOWN(V185,-2))) )),Lookup!$E$90:$E$212,0))*V185, INDEX(Lookup!$G$90:$G$212,MATCH(TRIM(CONCATENATE(AO185,V187,V189,V191)),Lookup!$E$90:$E$212,0))*V185))*7.48052 *IF(OR(AO185="Permeable Pavement Facility",AO185="Vegetated Roof System"),MIN(1,H187/(AP185*V185)),1) +IF(AO185="Permeable Pavement Facility",H187*2.1*7.48052,1) ->  | AT185: =IFERROR(IF(AO185="Single-family Residential Cisterns",INDEX(Lookup!$H$90:$H$212,MATCH(TRIM(CONCATENATE(AO185,IF(V185<400,0,IF(V185>4200,4201,ROUNDDOWN(V185,-2))))),Lookup!$E$90:$E$212,0)),IF(AND(V187="",V189="",V191=""),"",TRIM(V189&" "&AP189&" "&V187&" "&AP187&" "&V191&" "&AP191))),"") -> 
B187: =IFERROR(IF(AO185="Permeable Pavement Facility","Facility Area (sf)",IF(AO185="Vegetated Roof System","Vegetated Area (sf)","")),"") ->  | N187: =IFERROR(INDEX(Lookup!$C$70:$C$87,MATCH(AO185,Lookup!$A$70:$A$87,0)),"") ->  | AC187: =IFERROR(TEXT(AS185,"#,##0")&" gal managed/year",IFERROR(IF(AP185=0,"Infiltration rate too low.",""),"")) ->  | AO187: =TRIM(SUBSTITUTE(SUBSTITUTE(AO185," ",""),"-","")&"List1") ->  | AP187: =IFERROR(INDEX(Lookup!$F$70:$F$87,MATCH(AO185,Lookup!$A$70:$A$87,0)),"") -> 
B189: =IFERROR(IF(OR(AO185="Permeable Pavement Facility",AO185="Vegetated Roof System"),"Minimum Facility Area "&TEXT((AP185*V185),"#,###")&" sf",""),"") ->  | N189: =IFERROR(INDEX(Lookup!$D$70:$D$87,MATCH(AO185,Lookup!$A$70:$A$87,0)),"") ->  | AO189: =TRIM(SUBSTITUTE(SUBSTITUTE(AO185," ",""),"-","")&"List2") ->  | AP189: =IFERROR(INDEX(Lookup!$G$70:$G$87,MATCH(AO185,Lookup!$A$70:$A$87,0)),"") -> 
N191: =IFERROR(INDEX(Lookup!$E$70:$E$87,MATCH(AO185,Lookup!$A$70:$A$87,0)),"") ->  | AO191: =TRIM(SUBSTITUTE(SUBSTITUTE(AO185," ",""),"-","")&"List3") -> 
B193: =IFERROR(IF(INDEX($K$7:$K$46,MATCH(AN193,$AO$7:$AO$46,0))="","",INDEX($K$7:$K$46,MATCH(AN193,$AO$7:$AO$46,0))),"") ->  | N193: =IF(B193="","",IF(AO193="Vegetated Roof System","Roof Area","Contributing Area (sf)")) ->  | V193: =IF(B193="","",SUMIF($AO$7:$AO$46,AN193,$F$7:$I$46)) ->  | AC193: =IFERROR(IF(AP193=-999,"Configuration not allowed.",IF(AP193=0,"Configuration not allowed.",IF(AO193="New or Retained Trees","As many as feasible.",TEXT(IF(OR(AO193="Permeable Pavement Facility",AO193="Vegetated Roof System"),H195,AP193*V193),"#,##0")&" "&AR193))),"") ->  | AN193: 19 | AO193: =INDEX($AP$7:$AP$46,MATCH(AN193,$AO$7:$AO$46,0)) ->  | AP193: =IF(AO193="New or Retained Trees", INDEX(Lookup!$F$90:$F$212,MATCH(TRIM(CONCATENATE(AO193,V195)),Lookup!$E$90:$E$212,0)), IF(AO193="Single-family Residential Cisterns", INDEX(Lookup!$F$90:$F$212,MATCH(TRIM(CONCATENATE(AO193,IF(V193<400,0,IF(V193>4200,4201,ROUNDDOWN(V193,-2))) )),Lookup!$E$90:$E$212,0)), INDEX(Lookup!$F$90:$F$212,MATCH(TRIM(CONCATENATE(AO193,V195,V197,V199)),Lookup!$E$90:$E$212,0)))) ->  | AQ193: =IF(AP193<=0,NA(),IF(OR(AO193="Permeable Pavement Facility",AO193="Vegetated Roof System"),H195,AP193*V193)) ->  | AR193: =IF(AO193="Single-family Residential Cisterns", "sf",INDEX(Lookup!$H$90:$H$212,MATCH(TRIM(CONCATENATE(AO193,V195,V197,V199)),Lookup!$E$90:$E$212,0))) ->  | AS193: =IF(AO193="New or Retained Trees", INDEX(Lookup!$G$90:$G$212,MATCH(TRIM(CONCATENATE(AO193,V195)),Lookup!$E$90:$E$212,0))*V197, IF(AO193="Single-family Residential Cisterns", INDEX(Lookup!$G$90:$G$212,MATCH(TRIM(CONCATENATE(AO193,IF(V193<400,0,IF(V193>4200,4201,ROUNDDOWN(V193,-2))) )),Lookup!$E$90:$E$212,0))*V193, INDEX(Lookup!$G$90:$G$212,MATCH(TRIM(CONCATENATE(AO193,V195,V197,V199)),Lookup!$E$90:$E$212,0))*V193))*7.48052 *IF(OR(AO193="Permeable Pavement Facility",AO193="Vegetated Roof System"),MIN(1,H195/(AP193*V193)),1) +IF(AO193="Permeable Pavement Facility",H195*2.1*7.48052,1) ->  | AT193: =IFERROR(IF(AO193="Single-family Residential Cisterns",INDEX(Lookup!$H$90:$H$212,MATCH(TRIM(CONCATENATE(AO193,IF(V193<400,0,IF(V193>4200,4201,ROUNDDOWN(V193,-2))))),Lookup!$E$90:$E$212,0)),IF(AND(V195="",V197="",V199=""),"",TRIM(V197&" "&AP197&" "&V195&" "&AP195&" "&V199&" "&AP199))),"") -> 
B195: =IFERROR(IF(AO193="Permeable Pavement Facility","Facility Area (sf)",IF(AO193="Vegetated Roof System","Vegetated Area (sf)","")),"") ->  | N195: =IFERROR(INDEX(Lookup!$C$70:$C$87,MATCH(AO193,Lookup!$A$70:$A$87,0)),"") ->  | AC195: =IFERROR(TEXT(AS193,"#,##0")&" gal managed/year",IFERROR(IF(AP193=0,"Infiltration rate too low.",""),"")) ->  | AO195: =TRIM(SUBSTITUTE(SUBSTITUTE(AO193," ",""),"-","")&"List1") ->  | AP195: =IFERROR(INDEX(Lookup!$F$70:$F$87,MATCH(AO193,Lookup!$A$70:$A$87,0)),"") -> 
B197: =IFERROR(IF(OR(AO193="Permeable Pavement Facility",AO193="Vegetated Roof System"),"Minimum Facility Area "&TEXT((AP193*V193),"#,###")&" sf",""),"") ->  | N197: =IFERROR(INDEX(Lookup!$D$70:$D$87,MATCH(AO193,Lookup!$A$70:$A$87,0)),"") ->  | AO197: =TRIM(SUBSTITUTE(SUBSTITUTE(AO193," ",""),"-","")&"List2") ->  | AP197: =IFERROR(INDEX(Lookup!$G$70:$G$87,MATCH(AO193,Lookup!$A$70:$A$87,0)),"") -> 
N199: =IFERROR(INDEX(Lookup!$E$70:$E$87,MATCH(AO193,Lookup!$A$70:$A$87,0)),"") ->  | AO199: =TRIM(SUBSTITUTE(SUBSTITUTE(AO193," ",""),"-","")&"List3") -> 
B201: =IFERROR(IF(INDEX($K$7:$K$46,MATCH(AN201,$AO$7:$AO$46,0))="","",INDEX($K$7:$K$46,MATCH(AN201,$AO$7:$AO$46,0))),"") ->  | N201: =IF(B201="","",IF(AO201="Vegetated Roof System","Roof Area","Contributing Area (sf)")) ->  | V201: =IF(B201="","",SUMIF($AO$7:$AO$46,AN201,$F$7:$I$46)) ->  | AC201: =IFERROR(IF(AP201=-999,"Configuration not allowed.",IF(AP201=0,"Configuration not allowed.",IF(AO201="New or Retained Trees","As many as feasible.",TEXT(IF(OR(AO201="Permeable Pavement Facility",AO201="Vegetated Roof System"),H203,AP201*V201),"#,##0")&" "&AR201))),"") ->  | AN201: 20 | AO201: =INDEX($AP$7:$AP$46,MATCH(AN201,$AO$7:$AO$46,0)) ->  | AP201: =IF(AO201="New or Retained Trees", INDEX(Lookup!$F$90:$F$212,MATCH(TRIM(CONCATENATE(AO201,V203)),Lookup!$E$90:$E$212,0)), IF(AO201="Single-family Residential Cisterns", INDEX(Lookup!$F$90:$F$212,MATCH(TRIM(CONCATENATE(AO201,IF(V201<400,0,IF(V201>4200,4201,ROUNDDOWN(V201,-2))) )),Lookup!$E$90:$E$212,0)), INDEX(Lookup!$F$90:$F$212,MATCH(TRIM(CONCATENATE(AO201,V203,V205,V207)),Lookup!$E$90:$E$212,0)))) ->  | AQ201: =IF(AP201<=0,NA(),IF(OR(AO201="Permeable Pavement Facility",AO201="Vegetated Roof System"),H203,AP201*V201)) ->  | AR201: =IF(AO201="Single-family Residential Cisterns", "sf",INDEX(Lookup!$H$90:$H$212,MATCH(TRIM(CONCATENATE(AO201,V203,V205,V207)),Lookup!$E$90:$E$212,0))) ->  | AS201: =IF(AO201="New or Retained Trees", INDEX(Lookup!$G$90:$G$212,MATCH(TRIM(CONCATENATE(AO201,V203)),Lookup!$E$90:$E$212,0))*V205, IF(AO201="Single-family Residential Cisterns", INDEX(Lookup!$G$90:$G$212,MATCH(TRIM(CONCATENATE(AO201,IF(V201<400,0,IF(V201>4200,4201,ROUNDDOWN(V201,-2))) )),Lookup!$E$90:$E$212,0))*V201, INDEX(Lookup!$G$90:$G$212,MATCH(TRIM(CONCATENATE(AO201,V203,V205,V207)),Lookup!$E$90:$E$212,0))*V201))*7.48052 *IF(OR(AO201="Permeable Pavement Facility",AO201="Vegetated Roof System"),MIN(1,H203/(AP201*V201)),1) +IF(AO201="Permeable Pavement Facility",H203*2.1*7.48052,1) ->  | AT201: =IFERROR(IF(AO201="Single-family Residential Cisterns",INDEX(Lookup!$H$90:$H$212,MATCH(TRIM(CONCATENATE(AO201,IF(V201<400,0,IF(V201>4200,4201,ROUNDDOWN(V201,-2))))),Lookup!$E$90:$E$212,0)),IF(AND(V203="",V205="",V207=""),"",TRIM(V205&" "&AP205&" "&V203&" "&AP203&" "&V207&" "&AP207))),"") -> 
B203: =IFERROR(IF(AO201="Permeable Pavement Facility","Facility Area (sf)",IF(AO201="Vegetated Roof System","Vegetated Area (sf)","")),"") ->  | N203: =IFERROR(INDEX(Lookup!$C$70:$C$87,MATCH(AO201,Lookup!$A$70:$A$87,0)),"") ->  | AC203: =IFERROR(TEXT(AS201,"#,##0")&" gal managed/year",IFERROR(IF(AP201=0,"Infiltration rate too low.",""),"")) ->  | AO203: =TRIM(SUBSTITUTE(SUBSTITUTE(AO201," ",""),"-","")&"List1") ->  | AP203: =IFERROR(INDEX(Lookup!$F$70:$F$87,MATCH(AO201,Lookup!$A$70:$A$87,0)),"") -> 
B205: =IFERROR(IF(OR(AO201="Permeable Pavement Facility",AO201="Vegetated Roof System"),"Minimum Facility Area "&TEXT((AP201*V201),"#,###")&" sf",""),"") ->  | N205: =IFERROR(INDEX(Lookup!$D$70:$D$87,MATCH(AO201,Lookup!$A$70:$A$87,0)),"") ->  | AO205: =TRIM(SUBSTITUTE(SUBSTITUTE(AO201," ",""),"-","")&"List2") ->  | AP205: =IFERROR(INDEX(Lookup!$G$70:$G$87,MATCH(AO201,Lookup!$A$70:$A$87,0)),"") -> 
N207: =IFERROR(INDEX(Lookup!$E$70:$E$87,MATCH(AO201,Lookup!$A$70:$A$87,0)),"") ->  | AO207: =TRIM(SUBSTITUTE(SUBSTITUTE(AO201," ",""),"-","")&"List3") -> 
